{"text_format":"1","workbook":"xlsx","n_sheets":14,"sheets":["Hoofdmenu","Toelichting","Voorblad","Mededelingen","NAW_gegevens","Kostenverzamelstaat-2020","Kostenverzamelstaat","Specifieke informatie A","Specifieke informatie C","Contractinformatie","Wanbetalers","Controleoverzicht","Blad1","Parameters"],"not_rendered":{"charts":0,"images":1,"macros":1,"external_links":0,"defined_names":434,"comments":0,"pivot_tables":0},"unopened":[],"bounds":{"document_bytes":16777216,"sheet_cells":100000,"rows_first":2000,"rows_last":500,"rows_between":2000,"halvings":0,"cell_chars":16384,"cell_head_chars":4096},"cells_cut":0,"cells_raw":0,"read":"whole","date_system":"1900"}

{"sheet":"Hoofdmenu","index":0,"n_rows":3,"n_cols":2,"rows_kept":3,"cut":false,"hidden":false,"merged":[[0,0,0,1],[1,0,1,1]]}
[" "]
[{"$f":"CONCATENATE(\"KWARTAALSTAAT ZVW \", jaar_id,\" \",kwartaal_id,\"E KWARTAAL\")","v":"KWARTAALSTAAT ZVW 2020 3E KWARTAAL"}]
["Navigatie","Afdrukken"]

{"sheet":"Toelichting","index":1,"n_rows":4,"n_cols":2,"rows_kept":4,"cut":false,"hidden":false,"merged":[]}
[]
[]
[]
[null,{"$f":"CONCATENATE(\" KWARTAALSTAAT ZVW \",jaar_id,\" \",kwartaal_id,\"E KWARTAAL (VERSIE: \",revisie_id,\")\")","v":" KWARTAALSTAAT ZVW 2020 3E KWARTAAL (VERSIE: A)"}]

{"sheet":"Voorblad","index":2,"n_rows":38,"n_cols":4,"rows_kept":38,"cut":false,"hidden":false,"merged":[[15,3,16,11],[13,3,14,11],[17,3,18,11]]}
[null,null,"VOORBLAD"]
[]
[]
[]
[]
["Pagina 1",null,null," "]
[]
[]
[]
[]
[]
[]
[]
[null,null,null,{"$f":"CONCATENATE(\"KWARTAALSTAAT ZVW \",jaar_id)","v":"KWARTAALSTAAT ZVW 2020"}]
[]
[null,null,null,{"$f":"CONCATENATE(kwartaal_id,\"E KWARTAAL\")","v":"3E KWARTAAL"}]
[]
[null,null,null,"SPECIFIEKE INFORMATIE"]
[]
[]
[]
[null,null,null,"    KOSTENVERZAMELSTAAT-2020 (SPECIFIEKE INFORMATIE A)"]
[null,null,null,"     ● Informatie risicoverevening (pagina 1 t/m 4)"]
[]
[null,null,null,"    KOSTENVERZAMELSTAAT (SPECIFIEKE INFORMATIE A)"]
[null,null,null,"     ● Informatie risicoverevening (pagina 1 t/m 4)"]
[]
[null,null,null,"    SPECIFIEKE INFORMATIE A"]
[null,null,null,"     ● Informatie risicoverevening (pagina 1 t/m 4)"]
[]
[null,null,null,"    SPECIFIEKE INFORMATIE C"]
[null,null,null,"     ● Specificaties van kosten en productie (pagina 1 t/m 5)"]
[]
[null,null,null,"    CONTRACTINFORMATIE (SPECIFIEKE INFORMATIE C)"]
[null,null,null,"     ● Specificaties van kosten en productie (pagina 1 & 2)"]
[]
[null,null,null,"    WANBETALERS (SPECIFIEKE INFORMATIE C)"]
[null,null,null,"     ● Specificaties van aantallen (pagina 1)"]

{"sheet":"Mededelingen","index":3,"n_rows":49,"n_cols":12,"rows_kept":49,"cut":false,"hidden":false,"merged":[[48,3,48,4]]}
[]
[]
[]
[]
[]
["Pagina 1",null,null,{"$f":"CONCATENATE(\"KWARTAALSTAAT ZVW \", jaar_id,\" \",kwartaal_id,\"E KWARTAAL\")","v":"KWARTAALSTAAT ZVW 2020 3E KWARTAAL"}]
[null,null,null,{"$f":"IF(naw_uzovi_zorgverzekeraar<>\"0000\",CONCATENATE(UPPER(naw_naam_zorgverzekeraar),\", \",UPPER(naw_plaats_zorgverzekeraar)),\"\")","v":""},null,null,null,null,null,null,null,{"$f":"CONCATENATE(\"UZOVI: \",naw_uzovi_zorgverzekeraar)","v":"UZOVI: 0000"}]
[null,null,null,"MEDEDELINGEN :"]
[]
[]
[]
[]
[]
[]
[]
[]
[]
[]
[]
[]
[]
[]
[]
[]
[]
[]
[]
[]
[]
[]
[]
[]
[]
[]
[]
[]
[]
[]
[]
[]
[]
[]
[]
[]
[]
[]
[]
[]
[null,null,null,{"$f":"NOW()","v":"2020-09-18T09:15:45.460"},null,null,null,null,null,null,null,{"$f":"CONCATENATE(\"Mededelingen \",LOWER(A6))","v":"Mededelingen pagina 1"}]

{"sheet":"NAW_gegevens","index":4,"n_rows":41,"n_cols":6,"rows_kept":41,"cut":false,"hidden":false,"merged":[[2,1,2,2],[3,1,3,2]]}
[]
[]
[null,"NAW-GEGEVENS"]
[null,{"$f":"CONCATENATE(\"KWARTAALSTAAT ZVW \", jaar_id,\" \",kwartaal_id,\"E KWARTAAL\")","v":"KWARTAALSTAAT ZVW 2020 3E KWARTAAL"}]
[null," Selecteer uw nummer:","0000 KIES UW UZOVI-NUMMER"]
[null," Uzovi-nummer:",{"$f":"MID(keuze_uzovi_nummer,1,4)","v":"0000"}]
[null," Zorgverzekeraar:"]
[null," Plaats:"]
[null," Contactpersoon:"]
[null," Telefoonnummer:"]
[null," E-mail:"]
[]
[null,"Let op dat u het goede UZOVI-nummer invult, zie onderstaand overzicht:"]
[]
[null,"UZOVI","NAAM",null,null,"PLAATS"]
[null,"0101","N.V. UNIVÉ ZORG",null,null,"ARNHEM"]
[null,"0104","DELTA LLOYD ZORGVERZEKERING N.V.",null,null,"TILBURG"]
[null,"0201","OHRA ZIEKTEKOSTENVERZEKERINGEN N.V. ",null,null,"TILBURG"]
[null,"0403","ASR BASIS ZIEKTENKOSTENVERZEKERINGEN N.V. ",null,null,"AMERSFOORT"]
[null,"0699","IZA ZORGVERZEKERAAR N.V.",null,null,"ARNHEM"]
[null,"0736","N.V. ZORGVERZEKERAAR UMC",null,null,"ARNHEM"]
[null,"3311","ZILVEREN KRUIS ACHMEA ZORGVERZEKERINGEN N.V.",null,null,"AMSTERDAM"]
[null,"3313","INTERPOLIS ZORGVERZEKERINGEN N.V.",null,null,"AMSTERDAM"]
[null,3329,"AVÉRO ACHMEA ZORGVERZEKERINGEN N.V.",null,null,"AMSTERDAM"]
[null,3332,"MENZIS ZORGVERZEKERAAR NV",null,null,"WAGENINGEN"]
[null,3333,"ANDERZORG NV",null,null,"GRONINGEN"]
[null,3343,"ONVZ ZIEKTEKOSTENVERZEKERAAR N.V.",null,null,"HOUTEN"]
[null,3347,"ENO ZORGVERZEKERAAR N.V.",null,null,"DEVENTER"]
[null,3351,"FBTO ZORGVERZEKERINGEN N.V.",null,null,"LEEUWARDEN"]
[null,3352,"IPTIQ LIFE S.A.",null,null,"AMSTELVEEN"]
[null,3358,"DE FRIESLAND ZORGVERZEKERAAR N.V.",null,null,"LEEUWARDEN"]
[null,3359,"EUCARE INSURANCE PCC LTD",null,null,"TA' XBIEX"]
[null,"7029","OWM ZORGVERZEKERAAR 'DSW' U.A.",null,null,"SCHIEDAM"]
[null,"7032","ENO ZORGVERZEKERAAR N.V.",null,null,"DEVENTER"]
[null,"7037","STAD HOLLAND ZORGVERZEKERAAR OWM U.A.",null,null,"SCHIEDAM"]
[null,"7053","OHRA ZORGVERZEKERINGEN  N.V.",null,null,"TILBURG"]
[null,"7084","DE FRIESLAND ZORGVERZEKERAAR N.V.",null,null,"LEEUWARDEN"]
[null,"7085","OWM ZORGVERZEKERAAR ZORG EN ZEKERHEID U.A.",null,null,"LEIDEN"]
[null,"7095","VGZ ZORGVERZEKERAAR N.V.",null,null,"ARNHEM"]
[null,"7119","OWM CENTRALE ZORGVERZEKRAARS GROEP, ZORGVERZEKERAAR UA'",null,null,"TILBURG"]
[null,"9015","VGZ VOOR DE ZORG N.V.",null,null,"ARNHEM"]

{"sheet":"Kostenverzamelstaat-2020","index":5,"n_rows":181,"n_cols":13,"rows_kept":181,"cut":false,"hidden":false,"merged":[[14,3,14,7],[15,3,15,6],[16,3,16,6],[17,3,17,6],[18,3,18,6],[19,3,19,6],[5,12,9,12],[10,8,11,9],[10,10,11,11],[12,7,13,7],[12,8,13,8],[12,9,13,9],[12,10,13,10],[12,11,13,11],[26,3,26,7],[27,3,27,6],[28,3,28,6],[29,3,29,6],[30,3,30,7],[31,3,31,7],[20,3,20,6],[21,3,21,6],[22,3,22,6],[23,3,23,6],[24,3,24,6],[25,3,25,7],[38,3,38,6],[39,3,39,6],[40,3,40,6],[41,3,41,6],[42,3,42,7],[43,3,43,7],[32,3,32,6],[33,3,33,6],[34,3,34,6],[35,3,35,7],[36,3,36,7],[37,3,37,6],[57,7,60,7],[59,8,60,8],[59,9,60,9],[59,10,60,10],[59,11,60,11],[57,10,58,11],[57,8,58,9],[44,3,44,6],[45,3,45,6],[46,3,46,6],[47,3,47,6],[48,3,48,7],[50,3,50,4],[67,3,67,6],[68,3,68,6],[69,3,69,6],[70,3,70,6],[71,3,71,6],[74,3,74,6],[61,3,61,7],[62,3,62,6],[63,3,63,6],[64,3,64,6],[65,3,65,6],[66,3,66,6],[81,3,81,6],[82,3,82,7],[83,3,83,7],[84,3,84,6],[85,3,85,6],[86,3,86,6],[75,3,75,6],[76,3,76,6],[77,3,77,6],[78,3,78,6],[79,3,79,6],[80,3,80,6],[93,3,93,6],[94,3,94,6],[95,3,95,4],[102,7,105,7],[104,8,105,8],[104,9,105,9],[104,10,105,10],[104,11,105,11],[87,3,87,7],[88,3,88,7],[89,3,89,6],[90,3,90,6],[91,3,91,6],[92,3,92,6],[102,8,103,9],[102,10,103,11],[112,3,112,6],[113,3,113,7],[114,3,114,7],[115,3,115,6],[116,3,116,6],[117,3,117,6],[106,3,106,7],[107,3,107,6],[108,3,108,6],[109,3,109,6],[110,3,110,6],[111,3,111,6],[124,3,124,7],[125,3,125,7],[126,3,126,6],[127,3,127,6],[128,3,128,6],[129,3,129,7],[118,3,118,6],[119,3,119,6],[120,3,120,6],[121,3,121,6],[122,3,122,6],[123,3,123,6],[152,10,153,11],[154,3,154,6],[155,3,155,6],[156,3,156,6],[157,3,157,6],[180,3,180,4],[144,3,144,7],[145,3,145,4],[152,3,152,7],[152,8,153,8],[152,9,153,9],[153,3,153,6],[138,3,138,6],[139,3,139,6],[140,3,140,6],[141,3,141,7],[142,3,142,6],[143,3,143,6],[130,3,130,7],[133,3,133,6],[134,3,134,6],[135,3,135,6],[136,3,136,6],[137,3,137,7]]}
[null,null,"INVULSPECIFICATIES SPECIFIEKE INFORMATIE A"]
[]
[]
[]
[]
["Pagina 1",null,null,{"$f":"CONCATENATE(\"KWARTAALSTAAT ZVW \", jaar_id,\" \",kwartaal_id,\"E KWARTAAL\")","v":"KWARTAALSTAAT ZVW 2020 3E KWARTAAL"},null,null,null,null,null,null,null,null,"Versimpelde weergave (zie toelichting) "]
[null,null,null,"KOSTENVERZAMELSTAAT (SPECIFIEKE INFORMATIE A)"]
[null,null,null,{"$f":"IF(naw_uzovi_zorgverzekeraar<>\"0000\",CONCATENATE(UPPER(naw_naam_zorgverzekeraar),\", \",UPPER(naw_plaats_zorgverzekeraar)),\"\")","v":""}]
[null,null,null,"SPECIFICATIES INFORMATIE RISICOVEREVENING"]
[null,null,null,"KOSTENVERZAMELSTAAT"]
[null,null,null,null,null,null,null,null,{"$f":"CONCATENATE(\"LASTEN \",jaar_id,)","v":"LASTEN 2020"},null,"waarvan kosten van directe zorg aan coronapatiënten, voor verzekerde zorg (Kosten corona type 1)",null,"↓"]
[]
[null,null,null,null,null,null,null,"\ncode","Lasten 2020 inclusief balanspost ","Ontvangen en geaccepteerde declaraties t/m 3e kwartaal 2020","Lasten 2020 inclusief balanspost ","Ontvangen en geaccepteerde declaraties t/m 3e kwartaal 2020"]
[null,null,null," KOSTENRUBRIEK"]
[null,null,null," 01  HUISARTSENZORG en MDZ "]
[null,null,null," Bijzondere betalingen",null,null,null,"503   "]
[null,null,null," Avond-, nacht- en weekenddiensten",null,null,null,"504   "]
[null,null,null," Inschrijftarieven",null,null,null,"505   ",null,null,null,null,"x"]
[null,null,null," Consulttarieven",null,null,null,"506   "]
[null,null,null," Overige tarieven ",null,null,null,"507   "]
[null,null,null," Multidisciplinaire zorg",null,null,null,"510   "]
[null,null,null," Resultaatbeloning en zorgvernieuwing huisartsen",null,null,null,"515   "]
[null,null,null," Resultaatbeloning en zorgvernieuwing MDZ",null,null,null,"516   "]
[null,null,null," Meerkosten Corona type 2 tm 5",null,null,null,801,null,null,{"$f":"I24","v":0},{"$f":"J24","v":0}]
[null,null,null," Netto continuïteitsbijdrage Corona (basisverzekering)",null,null,null,821]
[null,null,null," TOTAAL RUBRIEK 01",null,null,null,null,{"$f":"SUM(I15:I25)","v":0},{"$f":"SUM(J15:J25)","v":0},0,0]
[null,null,null," 02 FARMACEUTISCHE ZORG"]
[null,null,null," Farmaceutische zorg",null,null,null,"520   ",null,null,null,null,"x"]
[null,null,null," Meerkosten Corona type 2 tm 5",null,null,null,802,null,null,{"$f":"I29","v":0},{"$f":"J29","v":0}]
[null,null,null," Netto continuïteitsbijdrage Corona (basisverzekering)",null,null,null,822]
[null,null,null," TOTAAL RUBRIEK 02",null,null,null,null,{"$f":"SUM(I27:I30)","v":0},{"$f":"SUM(J27:J30)","v":0},0,0]
[null,null,null," 03 VERPLEGING EN VERZORGING "]
[null,null,null," Kosten van verpleging en verzorging ",null,null,null,"530   ",null,null,null,null,"x"]
[null,null,null," Meerkosten Corona type 2 tm 5",null,null,null,803,null,null,{"$f":"I34","v":0},{"$f":"J34","v":0}]
[null,null,null," Netto continuïteitsbijdrage Corona (basisverzekering)",null,null,null,823]
[null,null,null," TOTAAL RUBRIEK 03",null,null,null,null,{"$f":"SUM(I32:I35)","v":0},{"$f":"SUM(J32:J35)","v":0},0,0]
[null,null,null," 04  MONDZORG"]
[null,null,null," Kosten mondzorg volwassen verzekerden",null,null,null,"560.1"]
[null,null,null," Kosten mondzorg jeugdige verzekerden",null,null,null,"560.2",null,null,null,null,"x"]
[null,null,null," Kosten gebitsprothesen",null,null,null,"561   "]
[null,null,null," Meerkosten Corona type 2 tm 5",null,null,null,804,null,null,{"$f":"I41","v":0},{"$f":"J41","v":0}]
[null,null,null," Netto continuïteitsbijdrage Corona (basisverzekering)",null,null,null,824]
[null,null,null," TOTAAL RUBRIEK 04",null,null,null,null,{"$f":"SUM(I37:I42)","v":0},{"$f":"SUM(J37:J42)","v":0},0,0]
[null,null,null," 05  VERLOSKUNDIGE ZORG"]
[null,null,null," Kosten verloskundige zorg door verloskundigen",null,null,null,"580   ",null,null,null,null,"x"]
[null,null,null," Kosten Integrale geboortezorg ",null,null,null,"582   "]
[null,null,null," Meerkosten Corona type 2 tm 5",null,null,null,805,null,null,{"$f":"I47","v":0},{"$f":"J47","v":0}]
[null,null,null," Netto continuïteitsbijdrage Corona (basisverzekering)",null,null,null,825]
[null,null,null," TOTAAL RUBRIEK 05",null,null,null,null,{"$f":"SUM(I44:I48)","v":0},{"$f":"SUM(J44:J48)","v":0},0,0]
[]
[null,null,null,{"$f":"NOW()","v":"2020-09-18T09:15:45.460"},null,null,null,null,null,null,{"$f":"CONCATENATE(\"Specifieke informatie A, \",LOWER(A6))","v":"Specifieke informatie A, pagina 1"}]
[]
["Pagina 2",null,null,{"$f":"CONCATENATE(\"KWARTAALSTAAT ZVW \", jaar_id,\" \",kwartaal_id,\"E KWARTAAL\")","v":"KWARTAALSTAAT ZVW 2020 3E KWARTAAL"}]
[null,null,null,"KOSTENVERZAMELSTAAT (SPECIFIEKE INFORMATIE A)"]
[null,null,null,""]
[null,null,null,"SPECIFICATIES INFORMATIE RISICOVEREVENING"]
[null,null,null,"KOSTENVERZAMELSTAAT - vervolg"]
[null,null,null,null,null,null,null,"\ncode",{"$f":"CONCATENATE(\"LASTEN \",jaar_id,)","v":"LASTEN 2020"},null,{"$f":"K11","v":"waarvan kosten van directe zorg aan coronapatiënten, voor verzekerde zorg (Kosten corona type 1)"}]
[]
[null,null,null,null,null,null,null,null,"Lasten 2020 inclusief balanspost ",{"$f":"J13","v":"Ontvangen en geaccepteerde declaraties t/m 3e kwartaal 2020"},"Lasten 2020 inclusief balanspost ",{"$f":"L13","v":"Ontvangen en geaccepteerde declaraties t/m 3e kwartaal 2020"}]
[null,null,null," KOSTENRUBRIEK"]
[null,null,null," 06  MEDISCH SPECIALISTISCHE ZORG"]
[null,null,null," Kosten specialisten mondziekten en kaakchirurgie",null,null,null,"545   "]
[null,null,null," Overige kosten ziekenhuiszorg en curatieve zorg",null,null,null,"610   "]
[null,null,null," Overige zorgproducten",null,null,null,"611   "]
[null,null,null," Kosten addons - Dure geneesmiddelen",null,null,null,"612.1"]
[null,null,null," Kosten add-ons - IC",null,null,null,"612.2"]
[null,null,null," Integrale kosten van DBC-zorgproduct \n gereguleerde segment  ",null,null,null,"613.1 "]
[null,null,null," Integrale kosten DBC-zorgproduct vrije segment",null,null,null,"615.1 ",null,null,null,null,"x"]
[null,null,null," Integrale kosten extramuraal werkende \n specialisten",null,null,null,"619   "]
[null,null,null," Meerkosten Corona type 2 tm 5",null,null,null,806,null,null,{"$f":"I71","v":0},{"$f":"J71","v":0}]
[null,null,null," Netto continuïteitsbijdrage Corona (basisverzekering)",null,null,null,826]
[null,null,null," TOTAAL RUBRIEK 06",null,null,null,null,{"$f":"SUM(I62:I72)","v":0},{"$f":"SUM(J62:J72)","v":0},0,0]
[null,null,null," 07  PARAMEDISCHE ZORG"]
[null,null,null," Kosten fysiotherapie",null,null,null,"620   ",null,null,null,null,"x"]
[null,null,null," Kosten oefentherapie Mensendieck/Cesar",null,null,null,"621   "]
[null,null,null," Kosten logopedie",null,null,null,"623   "]
[null,null,null," Kosten ergotherapie",null,null,null,"624   "]
[null,null,null," Kosten dieetadvisering",null,null,null,"625   "]
[null,null,null," Gecombineerde Leefstijl Interventie (GLI)",null,null,null,"626   "]
[null,null,null," Meerkosten Corona type 2 tm 5",null,null,null,807,null,null,{"$f":"I81","v":0},{"$f":"J81","v":0}]
[null,null,null," Netto continuïteitsbijdrage Corona (basisverzekering)",null,null,null,827]
[null,null,null," TOTAAL RUBRIEK 07",null,null,null,null,{"$f":"SUM(I74:I82)","v":0},{"$f":"SUM(J74:J82)","v":0},0,0]
[null,null,null," 08  HULPMIDDELENZORG"]
[null,null,null," Hulpmiddelenzorg ",null,null,null,"640   ",null,null,null,null,"x"]
[null,null,null," Meerkosten Corona type 2 tm 5",null,null,null,808,null,null,{"$f":"I86","v":0},{"$f":"J86","v":0}]
[null,null,null," Netto continuïteitsbijdrage Corona (basisverzekering)",null,null,null,828]
[null,null,null," TOTAAL RUBRIEK 08",null,null,null,null,{"$f":"SUM(I84:I87)","v":0},{"$f":"SUM(J84:J87)","v":0},0,0]
[null,null,null," 09  ZIEKENVERVOER"]
[null,null,null," Kosten vervoer per ambulance/helikopter",null,null,null,"650   ",null,null,null,null,"x"]
[null,null,null," Opbrengstenverrekeningen regionale ambulance-\n voorzieningen",null,null,null,"650.1"]
[null,null,null," Kosten vervoer per openbaar vervoer, taxi \n en eigen auto",null,null,null,"651   "]
[null,null,null," Meerkosten Corona type 2 tm 5",null,null,null,809,null,null,{"$f":"I93","v":0},{"$f":"J93","v":0}]
[null,null,null," Netto continuïteitsbijdrage Corona (basisverzekering)",null,null,null,829]
[null,null,null," TOTAAL RUBRIEK 09",null,null,null,null,{"$f":"SUM(I89:I94)","v":0},{"$f":"SUM(J89:J94)","v":0},0,0]
[null,null,null,{"$f":"NOW()","v":"2020-09-18T09:15:45.460"},null,null,null,null,null,null,{"$f":"CONCATENATE(\"Specifieke informatie A, \",LOWER(A53))","v":"Specifieke informatie A, pagina 2"}]
[]
["Pagina 3",null,null,{"$f":"CONCATENATE(\"KWARTAALSTAAT ZVW \", jaar_id,\" \",kwartaal_id,\"E KWARTAAL\")","v":"KWARTAALSTAAT ZVW 2020 3E KWARTAAL"}]
[null,null,null,"KOSTENVERZAMELSTAAT (SPECIFIEKE INFORMATIE A)"]
[null,null,null,""]
[null,null,null,"SPECIFICATIES INFORMATIE RISICOVEREVENING"]
[null,null,null,"KOSTENVERZAMELSTAAT - vervolg"]
[null,null,null,null,null,null,null,"\ncode","LASTEN 2020",null,{"$f":"K11","v":"waarvan kosten van directe zorg aan coronapatiënten, voor verzekerde zorg (Kosten corona type 1)"}]
[]
[null,null,null,null,null,null,null,null,"Lasten 2020 inclusief balanspost ",{"$f":"J60","v":"Ontvangen en geaccepteerde declaraties t/m 3e kwartaal 2020"},"Lasten 2020 inclusief balanspost ",{"$f":"L60","v":"Ontvangen en geaccepteerde declaraties t/m 3e kwartaal 2020"}]
[null,null,null," KOSTENRUBRIEK"]
[null,null,null," 10 GENEESKUNDIGE GEESTELIJKE GEZONDHEIDSZORG"]
[null,null,null," Kosten specialistische GGZ met verblijf",null,null,null,"661   "]
[null,null,null," Kosten LGGZ (langdurige GGZ, jaar 2 en 3)",null,null,null,"661.1 "]
[null,null,null," Kosten specialistische GGZ zonder verblijf",null,null,null,"662   ",null,null,null,null,"x"]
[null,null,null," Generalistische basis GGZ",null,null,null,"665"]
[null,null,null," Meerkosten Corona type 2 tm 5",null,null,null,810,null,null,{"$f":"I112","v":0},{"$f":"J112","v":0}]
[null,null,null," Netto continuïteitsbijdrage Corona (basisverzekering)",null,null,null,830]
[null,null,null," TOTAAL RUBRIEK 10",null,null,null,null,{"$f":"SUM(I107:I113)","v":0},{"$f":"SUM(J107:J113)","v":0},0,0]
[null,null,null," 11  GRZ, ELV EN GZSP"]
[null,null,null," Geriatrische Revalidatiezorg (GRZ)",null,null,null,"670   ",null,null,null,null,"x"]
[null,null,null," Meerkosten Corona type 2 tm 5",null,null,null,"811.1",null,null,{"$f":"I117","v":0},{"$f":"J117","v":0}]
[null,null,null," Netto continuïteitsbijdrage Corona (basisverzekering)",null,null,null,"831.1"]
[null,null,null," Eerstelijnsverblijf (ELV)",null,null,null,"671   ",null,null,null,null,"x"]
[null,null,null," Meerkosten Corona type 2 tm 5",null,null,null,"811.2",null,null,{"$f":"I120","v":0},{"$f":"J120","v":0}]
[null,null,null," Netto continuïteitsbijdrage Corona (basisverzekering)",null,null,null,"831.2"]
[null,null,null," Geneeskundige  Zorg Specifieke Patiëntgroepen (GZSP)",null,null,null,"672   ",null,null,null,null,"x"]
[null,null,null," Meerkosten Corona type 2 tm 5",null,null,null,"811.3",null,null,{"$f":"I123","v":0},{"$f":"J123","v":0}]
[null,null,null," Netto continuïteitsbijdrage Corona (basisverzekering)",null,null,null,"831.3"]
[null,null,null," TOTAAL RUBRIEK 11",null,null,null,null,{"$f":"SUM(I115:I124)","v":0},{"$f":"SUM(J115:J124)","v":0},0,0]
[null,null,null," 12  KRAAMZORG"]
[null,null,null," Kraamzorg",null,null,null,"680   ",null,null,null,null,"x"]
[null,null,null," Meerkosten Corona type 2 tm 5",null,null,null,"812",null,null,{"$f":"I128","v":0},{"$f":"J128","v":0}]
[null,null,null," Netto continuïteitsbijdrage Corona (basisverzekering)",null,null,null,"832"]
[null,null,null," TOTAAL RUBRIEK 12",null,null,null,null,{"$f":"SUM(I126:I129)","v":0},{"$f":"SUM(J126:J129)","v":0},0,0]
[null,null,null," 13  DIVERSE OVERIGE KOSTEN"]
[null,null,null," Overige kosten",null,null,null,"700   "]
[null,null,null," Overige geneeskundige zorg",null,null,null,"701"]
[null,null,null," Kosten van zorg zintuiglijk gehandicapten ",null,null,null,"702",null,null,null,null,"x"]
[null,null,null," Meerkosten Corona type 2 tm 5",null,null,null,"813",null,null,{"$f":"I135","v":0},{"$f":"J135","v":0}]
[null,null,null," Netto continuïteitsbijdrage Corona (basisverzekering)",null,null,null,"833"]
[null,null,null," TOTAAL RUBRIEK 13",null,null,null,null,{"$f":"SUM(I131:I136)","v":0},{"$f":"SUM(J131:J136)","v":0},0,0]
[null,null,null," 15  GRENSOVERSCHRIJDENDE ZORG"]
[null,null,null," Kosten via verzekeraar",null,null,null,"720",null,null,null,null,"x"]
[null,null,null," Kosten via verbindingsorgaan",null,null,null,"721",null,null,null,null,"x"]
[null,null,null," TOTAAL RUBRIEK 15",null,null,null,null,{"$f":"SUM(I138:I140)","v":0},{"$f":"SUM(J138:J140)","v":0},{"$f":"SUM(K138:K140)","v":0},{"$f":"SUM(L138:L140)","v":0}]
[null,null,null," 16  KWALITEITSGELDEN"]
[null,null,null," Kwaliteitsgelden",null,null,null,730,null,null,null,null,"x"]
[null,null,null," TOTAAL RUBRIEK 16",null,null,null,null,{"$f":"SUM(I142:I143)","v":0},{"$f":"SUM(J142:J143)","v":0},{"$f":"SUM(K142:K143)","v":0},{"$f":"SUM(L142:L143)","v":0}]
[null,null,null," TOTAAL LASTEN   (bruto-schade, definitie ZIN)",null,null,null,null,{"$f":"SUM(I26,I31,I36,I43,I49,I73,I83,I88,I95,I114,I125,I130,I137,I141,I144)","v":0},{"$f":"SUM(J26,J31,J36,J43,J49,J73,J83,J88,J95,J114,J125,J130,J137,J141,J144)","v":0},{"$f":"SUM(K26,K31,K36,K43,K49,K73,K83,K88,K95,K114,K125,K130,K137,K141,K144)","v":0},{"$f":"SUM(L26,L31,L36,L43,L49,L73,L83,L88,L95,L114,L125,L130,L137,L141,L144)","v":0}]
[null,null,null,{"$f":"NOW()","v":"2020-09-18T09:15:45.460"},null,null,null,null,null,null,{"$f":"CONCATENATE(\"Specifieke informatie A, \",LOWER(A98))","v":"Specifieke informatie A, pagina 3"}]
[]
["Pagina 4",null,null,{"$f":"CONCATENATE(\"KWARTAALSTAAT ZVW \", jaar_id,\" \",kwartaal_id,\"E KWARTAAL\")","v":"KWARTAALSTAAT ZVW 2020 3E KWARTAAL"}]
[null,null,null,"KOSTENVERZAMELSTAAT (SPECIFIEKE INFORMATIE A)"]
[null,null,null,""]
[null,null,null,"SPECIFICATIES INFORMATIE RISICOVEREVENING"]
[null,null,null,"KOSTENVERZAMELSTAAT - vervolg"]
[null,null,null," BATEN ZVW",null,null,null,null,"Totale baten 2020 inclusief balanspost ","Ontvangen t/m 2e kwartaal 2020","waarvan verplicht Eigen Risico mbt directe prestaties voor Corona-patiënten (kosten type 1)"]
[null,null,null,null,null,null,null,"code",null,"waarvan ontvangen  t/m 3e Kwartaal 2019"]
[null,null,null," OPBRENGSTEN VERHAAL",null,null,null,"890.1"]
[null,null,null," SCHADE T.L.V. HET VRIJWILLIG EIGEN RISICO",null,null,null,"910   "]
[null,null,null," SCHADE T.L.V. HET VERPLICHT EIGEN RISICO",null,null,null,"915   ",null,null,null,null,"x"]
[null,null,null," GEBOEKTE NETTO PREMIES",null,null,null,"940   "]
[]
[]
[]
[]
[]
[]
[]
[]
[]
[]
[]
[]
[]
[]
[]
[]
[]
[]
[]
[]
[]
[]
[null,null,null,{"$f":"NOW()","v":"2020-09-18T09:15:45.460"},null,null,null,null,null,null,{"$f":"CONCATENATE(\"Specifieke informatie A, \",LOWER(A148))","v":"Specifieke informatie A, pagina 4"}]

{"sheet":"Kostenverzamelstaat","index":6,"n_rows":146,"n_cols":17,"rows_kept":146,"cut":false,"hidden":false,"merged":[[83,11,84,11],[110,3,110,4],[107,3,107,7],[100,3,100,6],[109,3,109,7],[47,10,48,10],[47,8,48,8],[47,9,48,9],[46,8,46,9],[46,10,46,11],[82,8,82,9],[82,10,82,11],[103,3,103,7],[102,3,102,6],[54,3,54,6],[55,3,55,6],[75,3,75,4],[71,3,71,6],[57,3,57,6],[67,3,67,7],[68,3,68,7],[70,3,70,7],[73,3,73,6],[58,3,58,6],[92,3,92,7],[82,7,84,7],[91,3,91,7],[95,3,95,7],[122,3,122,6],[82,12,82,13],[83,10,84,10],[53,3,53,6],[87,3,87,6],[85,3,85,7],[117,11,118,11],[117,13,118,13],[117,12,118,12],[117,10,118,10],[83,9,84,9],[117,9,118,9],[108,3,108,6],[117,8,118,8],[118,3,118,6],[117,3,117,7],[83,13,84,13],[83,12,84,12],[83,8,84,8],[99,3,99,6],[145,3,145,4],[119,3,119,6],[120,3,120,6],[121,3,121,6],[104,3,104,6],[105,3,105,6],[93,3,93,6],[94,3,94,6],[106,3,106,6],[97,3,97,6],[98,3,98,7],[101,3,101,6],[96,3,96,7],[89,3,89,6],[86,3,86,6],[69,3,69,6],[72,3,72,6],[56,3,56,6],[61,3,61,6],[62,3,62,6],[49,3,49,7],[39,3,39,4],[65,3,65,6],[63,3,63,6],[64,3,64,6],[50,3,50,6],[51,3,51,6],[88,3,88,6],[10,8,11,9],[15,3,15,6],[12,7,13,7],[19,3,19,6],[12,9,13,9],[12,8,13,8],[17,3,17,6],[20,3,20,6],[21,3,21,6],[22,3,22,6],[24,3,24,7],[37,3,37,7],[29,3,29,6],[30,3,30,6],[14,3,14,7],[16,3,16,6],[18,3,18,6],[52,3,52,6],[35,3,35,6],[90,3,90,6],[47,11,48,11],[47,13,48,13],[10,12,11,13],[12,12,13,12],[12,13,13,13],[10,10,11,11],[12,11,13,11],[12,10,13,10],[47,12,48,12],[46,12,46,13],[34,3,34,6],[23,3,23,7],[31,3,31,6],[32,3,32,7],[33,3,33,7],[25,3,25,6],[28,3,28,7],[26,3,26,7],[27,3,27,6],[36,3,36,6],[46,7,48,7],[66,3,66,6],[74,3,74,6]]}
[null,null,"INVULSPECIFICATIES SPECIFIEKE INFORMATIE A"]
[]
[]
[]
[]
["Pagina 1",null,null,{"$f":"CONCATENATE(\"KWARTAALSTAAT ZVW \", jaar_id,\" \",kwartaal_id,\"E KWARTAAL\")","v":"KWARTAALSTAAT ZVW 2020 3E KWARTAAL"}]
[null,null,null,"KOSTENVERZAMELSTAAT (SPECIFIEKE INFORMATIE A)"]
[null,null,null,{"$f":"IF(naw_uzovi_zorgverzekeraar<>\"0000\",CONCATENATE(UPPER(naw_naam_zorgverzekeraar),\", \",UPPER(naw_plaats_zorgverzekeraar)),\"\")","v":""},null,null,null,null,null,null,null,null,null,{"$f":"CONCATENATE(\"UZOVI: \",naw_uzovi_zorgverzekeraar)","v":"UZOVI: 0000"}]
[null,null,null,"SPECIFICATIES INFORMATIE RISICOVEREVENING"]
[null,null,null,"KOSTENVERZAMELSTAAT"]
[null,null,null,null,null,null,null,null,{"$f":"CONCATENATE(\"LASTEN \",jaar_id,)","v":"LASTEN 2020"},null,{"$f":"CONCATENATE(\"LASTEN \",jaar_id-1,)","v":"LASTEN 2019"},null,{"$f":"CONCATENATE(\"LASTEN \",jaar_id-2,\" EN OUDER\")","v":"LASTEN 2018 EN OUDER"}]
[]
[null,null,null,null,null,null,null,"\ncode","Lasten 2020 inclusief balanspost ","Ontvangen en geaccepteerde declaraties t/m 3e kwartaal 2020","Lasten 2019 inclusief balanspost","Ontvangen en geaccepteerde declaraties m.b.t. 2019","Lasten 2018 en ouder inclusief balanspost","Ontvangen en geaccepteerde declaraties m.b.t. 2018 en ouder"]
[null,null,null," KOSTENRUBRIEK"]
[null,null,null," 01  HUISARTSENZORG en MDZ"]
[null,null,null," Bijzondere betalingen",null,null,null,"503   ",null,null,null,null,null,null,null,null,{"$f":"IF(OR((I16-J16)/IF(I16=0,1,I16)<-10%,(K16-L16)/IF(K16=0,1,K16)<-10%,(M16-N16)/IF(M16=0,1,M16)<-10%),\"De balans is < -10%, als dit plausibel is dan vragen wij u dit nader toe te lichten bij de opmerkingen, zo niet dan dient u uw raming aan te scherpen.\",\"\")","v":""}]
[null,null,null," Avond-, nacht- en weekenddiensten",null,null,null,"504   ",null,null,null,null,null,null,null,null,{"$f":"IF(OR((I17-J17)/IF(I17=0,1,I17)<-10%,(K17-L17)/IF(K17=0,1,K17)<-10%,(M17-N17)/IF(M17=0,1,M17)<-10%),\"De balans is < -10%, als dit plausibel is dan vragen wij u dit nader toe te lichten bij de opmerkingen, zo niet dan dient u uw raming aan te scherpen.\",\"\")","v":""}]
[null,null,null," Inschrijftarieven",null,null,null,"505   ",null,null,null,null,null,null,null,null,""]
[null,null,null," Consulttarieven",null,null,null,"506   ",null,null,null,null,null,null,null,null,""]
[null,null,null," Overige tarieven",null,null,null,"507   ",null,null,null,null,null,null,null,null,""]
[null,null,null," Multidisciplinaire zorg",null,null,null,"510   ",null,null,null,null,null,null,null,null,""]
[null,null,null," Resultaatbeloning en zorgvernieuwing huisartsen",null,null,null,"515   ",null,null,null,null,null,null,null,null,""]
[null,null,null," Resultaatbeloning en zorgvernieuwing MDZ",null,null,null,"516   ",null,null,null,null,null,null,null,null,""]
[null,null,null," TOTAAL RUBRIEK 01",null,null,null,null,{"$f":"SUM(I16:I23)","v":0},{"$f":"SUM(J16:J23)","v":0},0,0,0,0]
[null,null,null," 02 FARMACEUTISCHE ZORG"]
[null,null,null," TOTAAL RUBRIEK 02",null,null,null,"520   ",null,null,null,null,null,null,null,null,{"$f":"IF(OR((I26-J26)/IF(I26=0,1,I26)<-10%,(K26-L26)/IF(K26=0,1,K26)<-10%,(M26-N26)/IF(M26=0,1,M26)<-10%),\"De balans is < -10%, als dit plausibel is dan vragen wij u dit nader toe te lichten bij de opmerkingen, zo niet dan dient u uw raming aan te scherpen.\",\"\")","v":""}]
[null,null,null," 03 VERPLEGING EN VERZORGING "]
[null,null,null," Kosten van verpleging en verzorging ",null,null,null,"530   ",null,null,null,null,null,null,null,null,{"$f":"IF(OR((I28-J28)/IF(I28=0,1,I28)<-10%,(K28-L28)/IF(K28=0,1,K28)<-10%,(M28-N28)/IF(M28=0,1,M28)<-10%),\"De balans is < -10%, als dit plausibel is dan vragen wij u dit nader toe te lichten bij de opmerkingen, zo niet dan dient u uw raming aan te scherpen.\",\"\")","v":""}]
[null,null,null," 04  MONDZORG"]
[null,null,null," Kosten mondzorg volwassen verzekerden",null,null,null,"560.1",null,null,null,null,null,null,null,null,{"$f":"IF(OR((I30-J30)/IF(I30=0,1,I30)<-10%,(K30-L30)/IF(K30=0,1,K30)<-10%,(M30-N30)/IF(M30=0,1,M30)<-10%),\"De balans is < -10%, als dit plausibel is dan vragen wij u dit nader toe te lichten bij de opmerkingen, zo niet dan dient u uw raming aan te scherpen.\",\"\")","v":""}]
[null,null,null," Kosten mondzorg jeugdige verzekerden",null,null,null,"560.2",null,null,null,null,null,null,null,null,""]
[null,null,null," Kosten gebitsprothesen",null,null,null,"561   ",null,null,null,null,null,null,null,null,""]
[null,null,null," TOTAAL RUBRIEK 04",null,null,null,null,{"$f":"SUM(I30:I32)","v":0},0,0,0,0,0]
[null,null,null," 05  VERLOSKUNDIGE ZORG"]
[null,null,null," Kosten verloskundige zorg door verloskundigen",null,null,null,"580   ",null,null,null,null,null,null,null,null,{"$f":"IF(OR((I35-J35)/IF(I35=0,1,I35)<-10%,(K35-L35)/IF(K35=0,1,K35)<-10%,(M35-N35)/IF(M35=0,1,M35)<-10%),\"De balans is < -10%, als dit plausibel is dan vragen wij u dit nader toe te lichten bij de opmerkingen, zo niet dan dient u uw raming aan te scherpen.\",\"\")","v":""}]
[null,null,null," Kosten verloskundige zorg door huisartsen",null,null,null,"581   ",null,null,null,null,null,null,null,null,""]
[null,null,null," Kosten Integrale geboortezorg ",null,null,null,"582   ",null,null,null,null,null,null,null,null,""]
[null,null,null," TOTAAL RUBRIEK 05",null,null,null,null,{"$f":"SUM(I35:I37)","v":0},{"$f":"SUM(J35:J37)","v":0},0,0,0,0]
[]
[null,null,null,{"$f":"NOW()","v":"2020-09-18T09:15:45.460"},null,null,null,null,null,null,null,null,null,{"$f":"CONCATENATE(\"Specifieke informatie A, \",LOWER(A6))","v":"Specifieke informatie A, pagina 1"}]
[]
["Pagina 2",null,null,{"$f":"CONCATENATE(\"KWARTAALSTAAT ZVW \", jaar_id,\" \",kwartaal_id,\"E KWARTAAL\")","v":"KWARTAALSTAAT ZVW 2020 3E KWARTAAL"}]
[null,null,null,"KOSTENVERZAMELSTAAT (SPECIFIEKE INFORMATIE A)"]
[null,null,null,{"$f":"IF(naw_uzovi_zorgverzekeraar<>\"0000\",CONCATENATE(UPPER(naw_naam_zorgverzekeraar),\", \",UPPER(naw_plaats_zorgverzekeraar)),\"\")","v":""},null,null,null,null,null,null,null,null,null,{"$f":"CONCATENATE(\"UZOVI: \",naw_uzovi_zorgverzekeraar)","v":"UZOVI: 0000"}]
[null,null,null,"SPECIFICATIES INFORMATIE RISICOVEREVENING"]
[null,null,null,"KOSTENVERZAMELSTAAT - vervolg"]
[null,null,null,null,null,null,null,"\ncode",{"$f":"CONCATENATE(\"LASTEN \",jaar_id,)","v":"LASTEN 2020"},null,{"$f":"CONCATENATE(\"LASTEN \",jaar_id-1,)","v":"LASTEN 2019"},null,{"$f":"CONCATENATE(\"LASTEN \",jaar_id-2,\" EN OUDER\")","v":"LASTEN 2018 EN OUDER"}]
[null,null,null,null,null,null,null,null,"Lasten 2020 inclusief balanspost ",{"$f":"J13","v":"Ontvangen en geaccepteerde declaraties t/m 3e kwartaal 2020"},"Lasten 2019 inclusief balanspost","Ontvangen en geaccepteerde declaraties m.b.t. 2019","Lasten 2018 en ouder inclusief balanspost","Ontvangen en geaccepteerde declaraties m.b.t. 2018 en ouder"]
[null,null,null," KOSTENRUBRIEK"]
[null,null,null," 06  MEDISCH SPECIALISTISCHE ZORG"]
[null,null,null," Kosten specialisten mondziekten en kaakchirurgie",null,null,null,"545   ",null,null,null,null,null,null,null,null,{"$f":"IF(OR((I51-J51)/IF(I51=0,1,I51)<-10%,(K51-L51)/IF(K51=0,1,K51)<-10%,(M51-N51)/IF(M51=0,1,M51)<-10%),\"De balans is < -10%, als dit plausibel is dan vragen wij u dit nader toe te lichten bij de opmerkingen, zo niet dan dient u uw raming aan te scherpen.\",\"\")","v":""}]
[null,null,null," Overige kosten ziekenhuiszorg en curatieve zorg",null,null,null,"610   ",null,null,null,null,null,null,null,null,""]
[null,null,null," Overige zorgproducten",null,null,null,"611   ",null,null,null,null,null,null,null,null,""]
[null,null,null," Kosten add-ons ",null,null,null,"612   ",null,null,null,null,null,null,null,null,""]
[null,null,null," Kosten add-ons - Dure geneesmiddelen",null,null,null,"612.1",null,null,null,null,null,null,null,null,""]
[null,null,null," Kosten add-ons - IC",null,null,null,"612.2",null,null,null,null,null,null,null,null,""]
[null,null,null," Integrale kosten van DBC-zorgproduct \n gereguleerde segment  ",null,null,null,"613.1 ",null,null,null,null,null,null,null,null,""]
[null,null,null," Integrale kosten DBC-zorgproduct vrije segment",null,null,null,"615.1 ",null,null,null,null,null,null,null,null,""]
[null,null,null," Integrale kosten extramuraal werkende \n specialisten",null,null,null,"619   ",null,null,null,null,null,null,null,null,""]
[null,null,null," TOTAAL RUBRIEK 06",null,null,null,null,{"$f":"SUM(I51:I59)","v":0},{"$f":"SUM(J51:J59)","v":0},{"$f":"SUM(K51:K59)","v":0},0,{"$f":"SUM(M51:M59)","v":0},0]
[null,null,null," 07  PARAMEDISCHE ZORG"]
[null,null,null," Kosten fysiotherapie",null,null,null,"620   ",null,null,null,null,null,null,null,null,{"$f":"IF(OR((I62-J62)/IF(I62=0,1,I62)<-10%,(K62-L62)/IF(K62=0,1,K62)<-10%,(M62-N62)/IF(M62=0,1,M62)<-10%),\"De balans is < -10%, als dit plausibel is dan vragen wij u dit nader toe te lichten bij de opmerkingen, zo niet dan dient u uw raming aan te scherpen.\",\"\")","v":""}]
[null,null,null," Kosten oefentherapie Mensendieck/Cesar",null,null,null,"621   ",null,null,null,null,null,null,null,null,""]
[null,null,null," Kosten logopedie",null,null,null,"623   ",null,null,null,null,null,null,null,null,""]
[null,null,null," Kosten ergotherapie",null,null,null,"624   ",null,null,null,null,null,null,null,null,""]
[null,null,null," Kosten dieetadvisering",null,null,null,"625   ",null,null,null,null,null,null,null,null,""]
[null,null,null," Gecombineerde Leefstijl Interventie (GLI)",null,null,null,"626   ",null,null,null,null,null,null,null,null,""]
[null,null,null," TOTAAL RUBRIEK 07",null,null,null,null,{"$f":"SUM(I62:I67)","v":0},{"$f":"SUM(J62:J67)","v":0},0,0,0,0]
[null,null,null," 08  HULPMIDDELENZORG"]
[null,null,null," TOTAAL RUBRIEK 08",null,null,null,"640   ",null,null,null,null,null,null,null,null,{"$f":"IF(OR((I70-J70)/IF(I70=0,1,I70)<-10%,(K70-L70)/IF(K70=0,1,K70)<-10%,(M70-N70)/IF(M70=0,1,M70)<-10%),\"De balans is < -10%, als dit plausibel is dan vragen wij u dit nader toe te lichten bij de opmerkingen, zo niet dan dient u uw raming aan te scherpen.\",\"\")","v":""}]
[null,null,null," 09  ZIEKENVERVOER"]
[null,null,null," Kosten vervoer per ambulance/helikopter",null,null,null,"650   ",null,null,null,null,null,null,null,null,{"$f":"IF(OR((I72-J72)/IF(I72=0,1,I72)<-10%,(K72-L72)/IF(K72=0,1,K72)<-10%,(M72-N72)/IF(M72=0,1,M72)<-10%),\"De balans is < -10%, als dit plausibel is dan vragen wij u dit nader toe te lichten bij de opmerkingen, zo niet dan dient u uw raming aan te scherpen.\",\"\")","v":""}]
[null,null,null," Opbrengstenverrekeningen regionale ambulance-\n voorzieningen",null,null,null,"650.1"]
[null,null,null," Kosten vervoer per openbaar vervoer, taxi \n en eigen auto",null,null,null,"651   ",null,null,null,null,null,null,null,null,""]
[null,null,null," TOTAAL RUBRIEK 09",null,null,null,null,{"$f":"SUM(I72:I74)","v":0},0,0,0,0,0]
[null,null,null,{"$f":"NOW()","v":"2020-09-18T09:15:45.460"},null,null,null,null,null,null,null,null,null,{"$f":"CONCATENATE(\"Specifieke informatie A, \",LOWER(A42))","v":"Specifieke informatie A, pagina 2"}]
[]
["Pagina 3",null,null,{"$f":"CONCATENATE(\"KWARTAALSTAAT ZVW \", jaar_id,\" \",kwartaal_id,\"E KWARTAAL\")","v":"KWARTAALSTAAT ZVW 2020 3E KWARTAAL"}]
[null,null,null,"KOSTENVERZAMELSTAAT (SPECIFIEKE INFORMATIE A)"]
[null,null,null,{"$f":"IF(naw_uzovi_zorgverzekeraar<>\"0000\",CONCATENATE(UPPER(naw_naam_zorgverzekeraar),\", \",UPPER(naw_plaats_zorgverzekeraar)),\"\")","v":""},null,null,null,null,null,null,null,null,null,{"$f":"CONCATENATE(\"UZOVI: \",naw_uzovi_zorgverzekeraar)","v":"UZOVI: 0000"}]
[null,null,null,"SPECIFICATIES INFORMATIE RISICOVEREVENING"]
[null,null,null,"KOSTENVERZAMELSTAAT - vervolg"]
[null,null,null,null,null,null,null,"\ncode",{"$f":"CONCATENATE(\"LASTEN \",jaar_id,)","v":"LASTEN 2020"},null,{"$f":"CONCATENATE(\"LASTEN \",jaar_id-1,)","v":"LASTEN 2019"},null,{"$f":"CONCATENATE(\"LASTEN \",jaar_id-2,\" EN OUDER\")","v":"LASTEN 2018 EN OUDER"}]
[null,null,null,null,null,null,null,null,"Lasten 2020 inclusief balanspost ",{"$f":"J13","v":"Ontvangen en geaccepteerde declaraties t/m 3e kwartaal 2020"},"Lasten 2019 inclusief balanspost","Ontvangen en geaccepteerde declaraties m.b.t. 2019","Lasten 2018 en ouder inclusief balanspost","Ontvangen en geaccepteerde declaraties m.b.t. 2018 en ouder"]
[null,null,null," KOSTENRUBRIEK"]
[null,null,null," 10 GENEESKUNDIGE GEESTELIJKE GEZONDHEIDSZORG"]
[null,null,null," Kosten specialistische GGZ met verblijf",null,null,null,"661   ",null,null,null,null,null,null,null,null,{"$f":"IF(OR((I87-J87)/IF(I87=0,1,I87)<-10%,(K87-L87)/IF(K87=0,1,K87)<-10%,(M87-N87)/IF(M87=0,1,M87)<-10%),\"De balans is < -10%, als dit plausibel is dan vragen wij u dit nader toe te lichten bij de opmerkingen, zo niet dan dient u uw raming aan te scherpen.\",\"\")","v":""}]
[null,null,null," Kosten LGGZ (langdurige GGZ, jaar 2 en 3)",null,null,null,"661.1 ",null,null,null,null,null,null,null,null,""]
[null,null,null," Kosten specialistische GGZ zonder verblijf",null,null,null,"662   ",null,null,null,null,null,null,null,null,""]
[null,null,null," Generalistische basis GGZ",null,null,null,"665",null,null,null,null,null,null,null,null,""]
[null,null,null," Netto continuïteitsbijdrage Corona (basisverzekering)",null,null,null,"830"]
[null,null,null," TOTAAL RUBRIEK 10",null,null,null,null,{"$f":"SUM(I87:I91)","v":0},0,0,0,0,0]
[null,null,null," 11  GRZ, ELV EN GZSP"]
[null,null,null," Geriatrische Revalidatiezorg (GRZ)",null,null,null,"670   ",null,null,null,null,null,null,null,null,{"$f":"IF(OR((I94-J94)/IF(I94=0,1,I94)<-10%,(K94-L94)/IF(K94=0,1,K94)<-10%,(M94-N94)/IF(M94=0,1,M94)<-10%),\"De balans is < -10%, als dit plausibel is dan vragen wij u dit nader toe te lichten bij de opmerkingen, zo niet dan dient u uw raming aan te scherpen.\",\"\")","v":""}]
[null,null,null," Eerstelijnsverblijf (ELV)",null,null,null,"671   ",null,null,null,null,null,null,null,null,""]
[null,null,null," TOTAAL RUBRIEK 11",null,null,null,null,{"$f":"SUM(I94:I95)","v":0},0,0,0,0,0]
[null,null,null," 12  KRAAMZORG"]
[null,null,null," TOTAAL RUBRIEK 12",null,null,null,"680   ",null,null,null,null,null,null,null,null,{"$f":"IF(OR((I98-J98)/IF(I98=0,1,I98)<-10%,(K98-L98)/IF(K98=0,1,K98)<-10%,(M98-N98)/IF(M98=0,1,M98)<-10%),\"De balans is < -10%, als dit plausibel is dan vragen wij u dit nader toe te lichten bij de opmerkingen, zo niet dan dient u uw raming aan te scherpen.\",\"\")","v":""}]
[null,null,null," 13  DIVERSE OVERIGE KOSTEN"]
[null,null,null," Overige kosten",null,null,null,"700   ",null,null,null,null,null,null,null,null,{"$f":"IF(OR((I100-J100)/IF(I100=0,1,I100)<-10%,(K100-L100)/IF(K100=0,1,K100)<-10%,(M100-N100)/IF(M100=0,1,M100)<-10%),\"De balans is < -10%, als dit plausibel is dan vragen wij u dit nader toe te lichten bij de opmerkingen, zo niet dan dient u uw raming aan te scherpen.\",\"\")","v":""}]
[null,null,null," Overige geneeskundige zorg",null,null,null,"701",null,null,null,null,null,null,null,null,""]
[null,null,null," Kosten van zorg zintuiglijk gehandicapten ",null,null,null,"702",null,null,null,null,null,null,null,null,""]
[null,null,null," TOTAAL RUBRIEK 13",null,null,null,null,{"$f":"SUM(I100:I102)","v":0},{"$f":"SUM(J100:J102)","v":0},0,0,0,0]
[null,null,null," 15  GRENSOVERSCHRIJDENDE ZORG"]
[null,null,null," Kosten via verzekeraar",null,null,null,"720",null,null,null,null,null,null,null,null,{"$f":"IF(OR((I105-J105)/IF(I105=0,1,I105)<-10%,(K105-L105)/IF(K105=0,1,K105)<-10%,(M105-N105)/IF(M105=0,1,M105)<-10%),\"De balans is < -10%, als dit plausibel is dan vragen wij u dit nader toe te lichten bij de opmerkingen, zo niet dan dient u uw raming aan te scherpen.\",\"\")","v":""}]
[null,null,null," Kosten via verbindingsorgaan",null,null,null,"721",null,null,null,null,null,null,null,null,{"$f":"IF(OR((I106-J106)/IF(I106=0,1,I106)<-10%,(K106-L106)/IF(K106=0,1,K106)<-10%,(M106-N106)/IF(M106=0,1,M106)<-10%),\"De balans is < -10%, als dit plausibel is dan vragen wij u dit nader toe te lichten bij de opmerkingen, zo niet dan dient u uw raming aan te scherpen.\",\"\")","v":""}]
[null,null,null," TOTAAL RUBRIEK 15",null,null,null,null,{"$f":"SUM(I105:I106)","v":0},0,0,0,0,0]
[null,null,null," 16  KWALITEITSGELDEN"]
[null,null,null," TOTAAL RUBRIEK 16",null,null,null,"730   ",null,null,null,null,null,null,null,null,{"$f":"IF(OR((I109-J109)/IF(I109=0,1,I109)<-10%,(K109-L109)/IF(K109=0,1,K109)<-10%,(M109-N109)/IF(M109=0,1,M109)<-10%),\"De balans is < -10%, als dit plausibel is dan vragen wij u dit nader toe te lichten bij de opmerkingen, zo niet dan dient u uw raming aan te scherpen.\",\"\")","v":""}]
[null,null,null," TOTAAL LASTEN   (bruto-schade, definitie ZIN)",null,null,null,null,{"$f":"SUM(I24,I26,I28,I33,I38,I60,I68,I70,I75,I92,I96,I98,I103,I107,I109)","v":0},0,0,0,0,0]
[null,null,null,{"$f":"NOW()","v":"2020-09-18T09:15:45.460"},null,null,null,null,null,null,null,null,null,{"$f":"CONCATENATE(\"Specifieke informatie A, \",LOWER(A78))","v":"Specifieke informatie A, pagina 3"}]
[]
["Pagina 4",null,null,{"$f":"CONCATENATE(\"KWARTAALSTAAT ZVW \", jaar_id,\" \",kwartaal_id,\"E KWARTAAL\")","v":"KWARTAALSTAAT ZVW 2020 3E KWARTAAL"}]
[null,null,null,"KOSTENVERZAMELSTAAT (SPECIFIEKE INFORMATIE A)"]
[null,null,null,{"$f":"IF(naw_uzovi_zorgverzekeraar<>\"0000\",CONCATENATE(UPPER(naw_naam_zorgverzekeraar),\", \",UPPER(naw_plaats_zorgverzekeraar)),\"\")","v":""},null,null,null,null,null,null,null,null,null,{"$f":"CONCATENATE(\"UZOVI: \",naw_uzovi_zorgverzekeraar)","v":"UZOVI: 0000"}]
[null,null,null,"SPECIFICATIES INFORMATIE RISICOVEREVENING"]
[null,null,null,"KOSTENVERZAMELSTAAT - vervolg"]
[null,null,null," BATEN ZVW",null,null,null,null,"Totale baten 2020 inclusief balanspost ","waarvan ontvangen  m.b.t. 2020","Totale baten 2019 inclusief balanspost ","waarvan ontvangen m.b.t. 2019","Totale baten 2018 inclusief balanspost ","waarvan ontvangen m.b.t. 2018 en ouder"]
[null,null,null,null,null,null,null,"code",null,"waarvan ontvangen  t/m 3e Kwartaal 2019"]
[null,null,null," OPBRENGSTEN VERHAAL",null,null,null,"890.1",null,null,null,null,null,null,null,null,{"$f":"IF(AND(OR(I120<0,J120<0,J120<0,L120<0,L120<0,M120<0),OR((I120-I120)/IF(I120=0,1,I120)<-10%,(K120-L120)/IF(K120=0,1,K120)<-10%,(M120-N120)/IF(M120=0,1,M120)<-10%)), \"U rapporteert een bedrag <0. Kunt u dit vooraf toelichten bij de mededelingen? En De balans is < -10%, als dit plausibel is dan vragen wij u dit nader toe te lichten bij de opmerkingen, zo niet dan dient u uw raming aan te scherpen.\",IF(OR(I120<0,J120<0,K120<0,L120<0,M120<0,N120<0),\"U rapporteert een bedrag <0. Kunt u dit vooraf toelichten bij de mededelingen?\",IF(OR((I120-J120)/IF(I120=0,1,I120)<-10%,(K120-L120)/IF(K120=0,1,K120)<-10%,(M120-N120)/IF(M120=0,1,M120)<-10%),\"De balans is < -10%, als dit plausibel is dan vragen wij u dit nader toe te lichten bij de opmerkingen, zo niet dan dient u uw raming aan te scherpen.\",\"\")))","v":""}]
[null,null,null," SCHADE T.L.V. HET VRIJWILLIG EIGEN RISICO",null,null,null,"910   ",null,null,null,null,null,null,null,null,{"$f":"IF(AND(OR(I121<0,J121<0,J121<0,L121<0,L121<0,M121<0),OR((I121-I121)/IF(I121=0,1,I121)<-10%,(K121-L121)/IF(K121=0,1,K121)<-10%,(M121-N121)/IF(M121=0,1,M121)<-10%)), \"U rapporteert een bedrag <0. Kunt u dit vooraf toelichten bij de mededelingen? En De balans is < -10%, als dit plausibel is dan vragen wij u dit nader toe te lichten bij de opmerkingen, zo niet dan dient u uw raming aan te scherpen.\",IF(OR(I121<0,J121<0,K121<0,L121<0,M121<0,N121<0),\"U rapporteert een bedrag <0. Kunt u dit vooraf toelichten bij de mededelingen?\",IF(OR((I121-J121)/IF(I121=0,1,I121)<-10%,(K121-L121)/IF(K121=0,1,K121)<-10%,(M121-N121)/IF(M121=0,1,M121)<-10%),\"De balans is < -10%, als dit plausibel is dan vragen wij u dit nader toe te lichten bij de opmerkingen, zo niet dan dient u uw raming aan te scherpen.\",\"\")))","v":""}]
[null,null,null," SCHADE T.L.V. HET VERPLICHT EIGEN RISICO",null,null,null,"915   ",null,null,null,null,null,null,null,null,{"$f":"IF(AND(OR(I122<0,J122<0,J122<0,L122<0,L122<0,M122<0),OR((I122-I122)/IF(I122=0,1,I122)<-10%,(K122-L122)/IF(K122=0,1,K122)<-10%,(M122-N122)/IF(M122=0,1,M122)<-10%)), \"U rapporteert een bedrag <0. Kunt u dit vooraf toelichten bij de mededelingen? En De balans is < -10%, als dit plausibel is dan vragen wij u dit nader toe te lichten bij de opmerkingen, zo niet dan dient u uw raming aan te scherpen.\",IF(OR(I122<0,J122<0,K122<0,L122<0,M122<0,N122<0),\"U rapporteert een bedrag <0. Kunt u dit vooraf toelichten bij de mededelingen?\",IF(OR((I122-J122)/IF(I122=0,1,I122)<-10%,(K122-L122)/IF(K122=0,1,K122)<-10%,(M122-N122)/IF(M122=0,1,M122)<-10%),\"De balans is < -10%, als dit plausibel is dan vragen wij u dit nader toe te lichten bij de opmerkingen, zo niet dan dient u uw raming aan te scherpen.\",\"\")))","v":""}]
[null,null,null," GEBOEKTE NETTO PREMIES",null,null,null,"940   ",null,null,null,null,null,null,null,null,""]
[]
[]
[]
[]
[]
[]
[]
[]
[]
[]
[]
[]
[]
[]
[]
[]
[]
[]
[]
[]
[]
[]
[null,null,null,{"$f":"NOW()","v":"2020-09-18T09:15:45.460"},null,null,null,null,null,null,null,null,null,{"$f":"CONCATENATE(\"Specifieke informatie A, \",LOWER(A113))","v":"Specifieke informatie A, pagina 4"}]

{"sheet":"Specifieke informatie A","index":7,"n_rows":183,"n_cols":12,"rows_kept":183,"cut":false,"hidden":false,"merged":[[11,11,12,11],[92,3,92,4],[86,9,88,11],[47,3,47,4],[56,11,57,11],[56,8,56,10],[56,4,57,4],[11,10,12,10],[11,3,12,9],[13,3,13,9],[14,3,14,9],[16,3,16,9],[17,3,17,9],[176,9,178,11],[182,3,182,4],[101,4,102,4],[101,8,101,10],[101,11,102,11],[131,9,133,11],[137,3,137,4],[146,4,147,4],[146,8,146,10],[146,11,147,11]]}
[null,null,"INVULSPECIFICATIES SPECIFIEKE INFORMATIE A"]
[]
[]
[]
[]
["Pagina 1",null,null,{"$f":"CONCATENATE(\"KWARTAALSTAAT ZVW \", jaar_id,\" \",kwartaal_id,\"E KWARTAAL\")","v":"KWARTAALSTAAT ZVW 2020 3E KWARTAAL"}]
[null,null,null,"SPECIFIEKE INFORMATIE A"]
[null,null,null,{"$f":"IF(naw_uzovi_zorgverzekeraar<>\"0000\",CONCATENATE(UPPER(naw_naam_zorgverzekeraar),\", \",UPPER(naw_plaats_zorgverzekeraar)),\"\")","v":""},null,null,null,null,null,null,null,{"$f":"CONCATENATE(\"UZOVI: \",naw_uzovi_zorgverzekeraar)","v":"UZOVI: 0000"}]
[]
[null,null,null,"SPECIFICATIES INFORMATIE RISICOVEREVENING"]
[null,null,null,"KOSTEN NAAR DEELBIJDRAGE"]
[null,null,null," KOSTEN NAAR DEELBIJDRAGE",null,null,null,null,null,null,"Lasten 2020 inclusief balanspost ","waarvan kosten van directe zorg aan coronapatiënten, voor verzekerde zorg (Kosten corona type 1)"]
[]
[null,null,null," Variabele zorgkosten "]
[null,null,null," Vaste zorgkosten"]
[null,null,null," Kosten geneeskundige geestelijke gezondheidszorg "]
[null,null,null," Meerkosten Corona type 2 tm 5",null,null,null,null,null,null,null,{"$f":"K17","v":0}]
[null,null,null," Netto continuïteitsbijdrage Corona (basisverzekering)"]
[null,null,null," TOTAAL lasten (bruto-schade, definitie ZIN)",null,null,null,null,null,null,{"$f":"SUM(K14:K18)","v":0},{"$f":"SUM(L14:L17)","v":0}]
[]
[]
[]
[]
[]
[]
[]
[]
[]
[]
[]
[]
[]
[]
[]
[]
[]
[]
[]
[]
[]
[]
[]
[]
[]
[]
[]
[]
[null,null,null,{"$f":"NOW()","v":"2020-09-18T09:15:45.460"},null,null,null,null,null,null,null,{"$f":"CONCATENATE(\"Specifieke informatie A, \",LOWER(A6))","v":"Specifieke informatie A, pagina 1"}]
[]
["Pagina 2",null,null,{"$f":"CONCATENATE(\"KWARTAALSTAAT ZVW \", jaar_id,\" \",kwartaal_id,\"E KWARTAAL\")","v":"KWARTAALSTAAT ZVW 2020 3E KWARTAAL"}]
[null,null,null,"SPECIFIEKE INFORMATIE A"]
[null,null,null,{"$f":"IF(naw_uzovi_zorgverzekeraar<>\"0000\",CONCATENATE(UPPER(naw_naam_zorgverzekeraar),\", \",UPPER(naw_plaats_zorgverzekeraar)),\"\")","v":""},null,null,null,null,null,null,null,{"$f":"CONCATENATE(\"UZOVI: \",naw_uzovi_zorgverzekeraar)","v":"UZOVI: 0000"}]
[]
[null,null,null,"SPECIFICATIES INFORMATIE RISICOVEREVENING"]
[null,null,null,"VERZEKERDENSTAND NAAR RISICOKLASSE",null,null,null,null,null,null,null,"Peildatum: datum van nominale premieprolongatie"]
[null,null,null,null,null,null,null,null,null,null,null,"voor de maand AUGUSTUS 2020"]
[null,null,null,null,"LEEFTIJD",null,null,null,"AANTAL NAAR GESLACHT",null,null,"TOTAAL \nAANTAL"]
[null,null,null,null,null,null,null,null,"MAN","VROUW","ONBEPAALD"]
[null,null,null,"  1a.   0  t/m   1",null,null,null,null,null,null,null,{"$f":"SUM(I59:K59)","v":0}]
[null,null,null,"  1b.   2  t/m   4",null,null,null,null,null,null,null,{"$f":"SUM(I60:K60)","v":0}]
[null,null,null,"  2.     5  t/m   9",null,null,null,null,null,null,null,0]
[null,null,null,"  3.   10  t/m 14",null,null,null,null,null,null,null,0]
[null,null,null,"  4.   15  t/m 19",null,null,null,null,null,null,null,0]
[null,null,null,"  5.   20  t/m 24",null,null,null,null,null,null,null,0]
[null,null,null,"  6.   25  t/m 29",null,null,null,null,null,null,null,0]
[null,null,null,"  7.   30  t/m 34",null,null,null,null,null,null,null,0]
[null,null,null,"  8.   35  t/m 39",null,null,null,null,null,null,null,0]
[null,null,null,"  9.   40  t/m 44",null,null,null,null,null,null,null,0]
[null,null,null," 10.  45  t/m 49",null,null,null,null,null,null,null,0]
[null,null,null," 11.  50  t/m 54",null,null,null,null,null,null,null,0]
[null,null,null," 12.  55  t/m 59",null,null,null,null,null,null,null,0]
[null,null,null," 13.  60  t/m 64",null,null,null,null,null,null,null,0]
[null,null,null," 14.  65  t/m 69",null,null,null,null,null,null,null,0]
[null,null,null," 15.  70  t/m 74",null,null,null,null,null,null,null,0]
[null,null,null," 16.  75  t/m 79",null,null,null,null,null,null,null,0]
[null,null,null," 17.  80  t/m 84",null,null,null,null,null,null,null,0]
[null,null,null," 18.  85  t/m 89",null,null,null,null,null,null,null,0]
[null,null,null," 19.  90 en ouder",null,null,null,null,null,null,null,0]
[null,null,null," TOTAAL",null,null,null,null,{"$f":"SUM(I59:I78)","v":0},{"$f":"SUM(J59:J78)","v":0},{"$f":"SUM(K59:K78)","v":0},0]
[]
[null,null,null,"VERZEKERDENSTAND NAAR NOMINALE PREMIE",null,null,null,null,null,null,null,"Peildatum: datum van nominale premieprolongatie"]
[null,null,null,null,null,null,null,null,null,null,null,"voor de maand AUGUSTUS 2020"]
[null,null,null,null,null,null,null,null,null,null,null,"AANTAL"]
[null,null,null," Verzekerden met nominale premie Zvw"]
[null,null,null," Verzekerden zonder nominale premie Zvw"]
[null,null,null," TOTAAL",null,null,null,null,null,null,null,{"$f":"SUM(L84:L85)","v":0}]
[null,null,null,null,null,null,null,null,null,{"$f":"IF(AND(ISBLANK(K78)=FALSE,ISBLANK(L84)=FALSE),IF(L84<SUM(L64:L78),\"ATTENTIE: is het juist dat het aantal verzekerden \nmet nominale premie kleiner is dan het totaal\naantal verzekerden van 20 jaar en ouder?\",\"\"),\"\")","v":""}]
[]
[]
[]
[]
[]
[null,null,null,{"$f":"NOW()","v":"2020-09-18T09:15:45.460"},null,null,null,null,null,null,null,{"$f":"CONCATENATE(\"Specifieke informatie A, \",LOWER(A50))","v":"Specifieke informatie A, pagina 2"}]
[]
["Pagina 3",null,null,{"$f":"CONCATENATE(\"KWARTAALSTAAT ZVW \", jaar_id,\" \",kwartaal_id,\"E KWARTAAL\")","v":"KWARTAALSTAAT ZVW 2020 3E KWARTAAL"}]
[null,null,null,"SPECIFIEKE INFORMATIE A"]
[null,null,null,{"$f":"IF(naw_uzovi_zorgverzekeraar<>\"0000\",CONCATENATE(UPPER(naw_naam_zorgverzekeraar),\", \",UPPER(naw_plaats_zorgverzekeraar)),\"\")","v":""},null,null,null,null,null,null,null,{"$f":"CONCATENATE(\"UZOVI: \",naw_uzovi_zorgverzekeraar)","v":"UZOVI: 0000"}]
[]
[null,null,null,"SPECIFICATIES INFORMATIE RISICOVEREVENING"]
[null,null,null,"VERZEKERDENSTAND NAAR RISICOKLASSE",null,null,null,null,null,null,null,"Peildatum: datum van nominale premieprolongatie"]
[null,null,null,null,null,null,null,null,null,null,null,"voor de maand SEPTEMBER 2020"]
[null,null,null,null,"LEEFTIJD",null,null,null,"AANTAL NAAR GESLACHT",null,null,"TOTAAL \nAANTAL"]
[null,null,null,null,null,null,null,null,"MAN","VROUW","ONBEPAALD"]
[null,null,null,"  1a.   0  t/m   1",null,null,null,null,null,null,null,{"$f":"SUM(I104:K104)","v":0}]
[null,null,null,"  1b.   2  t/m   4",null,null,null,null,null,null,null,{"$f":"SUM(I105:K105)","v":0}]
[null,null,null,"  2.     5  t/m   9",null,null,null,null,null,null,null,0]
[null,null,null,"  3.   10  t/m 14",null,null,null,null,null,null,null,0]
[null,null,null,"  4.   15  t/m 19",null,null,null,null,null,null,null,0]
[null,null,null,"  5.   20  t/m 24",null,null,null,null,null,null,null,0]
[null,null,null,"  6.   25  t/m 29",null,null,null,null,null,null,null,0]
[null,null,null,"  7.   30  t/m 34",null,null,null,null,null,null,null,0]
[null,null,null,"  8.   35  t/m 39",null,null,null,null,null,null,null,0]
[null,null,null,"  9.   40  t/m 44",null,null,null,null,null,null,null,0]
[null,null,null," 10.  45  t/m 49",null,null,null,null,null,null,null,0]
[null,null,null," 11.  50  t/m 54",null,null,null,null,null,null,null,0]
[null,null,null," 12.  55  t/m 59",null,null,null,null,null,null,null,0]
[null,null,null," 13.  60  t/m 64",null,null,null,null,null,null,null,0]
[null,null,null," 14.  65  t/m 69",null,null,null,null,null,null,null,0]
[null,null,null," 15.  70  t/m 74",null,null,null,null,null,null,null,0]
[null,null,null," 16.  75  t/m 79",null,null,null,null,null,null,null,0]
[null,null,null," 17.  80  t/m 84",null,null,null,null,null,null,null,0]
[null,null,null," 18.  85  t/m 89",null,null,null,null,null,null,null,0]
[null,null,null," 19.  90 en ouder",null,null,null,null,null,null,null,0]
[null,null,null," TOTAAL",null,null,null,null,{"$f":"SUM(I104:I123)","v":0},{"$f":"SUM(J104:J123)","v":0},{"$f":"SUM(K104:K123)","v":0},0]
[]
[null,null,null,"VERZEKERDENSTAND NAAR NOMINALE PREMIE",null,null,null,null,null,null,null,"Peildatum: datum van nominale premieprolongatie"]
[null,null,null,null,null,null,null,null,null,null,null,"voor de maand SEPTEMBER 2020"]
[null,null,null,null,null,null,null,null,null,null,null,"AANTAL"]
[null,null,null," Verzekerden met nominale premie Zvw"]
[null,null,null," Verzekerden zonder nominale premie Zvw"]
[null,null,null," TOTAAL",null,null,null,null,null,null,null,{"$f":"SUM(L129:L130)","v":0}]
[null,null,null,null,null,null,null,null,null,{"$f":"IF(AND(ISBLANK(K123)=FALSE,ISBLANK(L129)=FALSE),IF(L129<SUM(L109:L123),\"ATTENTIE: is het juist dat het aantal verzekerden \nmet nominale premie kleiner is dan het totaal\naantal verzekerden van 20 jaar en ouder?\",\"\"),\"\")","v":""}]
[]
[]
[]
[]
[]
[null,null,null,{"$f":"NOW()","v":"2020-09-18T09:15:45.460"},null,null,null,null,null,null,null,{"$f":"CONCATENATE(\"Specifieke informatie A, \",LOWER(A95))","v":"Specifieke informatie A, pagina 3"}]
[]
["Pagina 4",null,null,{"$f":"CONCATENATE(\"KWARTAALSTAAT ZVW \", jaar_id,\" \",kwartaal_id,\"E KWARTAAL\")","v":"KWARTAALSTAAT ZVW 2020 3E KWARTAAL"}]
[null,null,null,"SPECIFIEKE INFORMATIE A"]
[null,null,null,{"$f":"IF(naw_uzovi_zorgverzekeraar<>\"0000\",CONCATENATE(UPPER(naw_naam_zorgverzekeraar),\", \",UPPER(naw_plaats_zorgverzekeraar)),\"\")","v":""},null,null,null,null,null,null,null,{"$f":"CONCATENATE(\"UZOVI: \",naw_uzovi_zorgverzekeraar)","v":"UZOVI: 0000"}]
[]
[null,null,null,"SPECIFICATIES INFORMATIE RISICOVEREVENING"]
[null,null,null,"VERZEKERDENSTAND NAAR RISICOKLASSE",null,null,null,null,null,null,null,"Peildatum: datum van nominale premieprolongatie"]
[null,null,null,null,null,null,null,null,null,null,null,"voor de maand OKTOBER 2020"]
[null,null,null,null,"LEEFTIJD",null,null,null,"AANTAL NAAR GESLACHT",null,null,"TOTAAL \nAANTAL"]
[null,null,null,null,null,null,null,null,"MAN","VROUW","ONBEPAALD"]
[null,null,null,"  1a.   0  t/m   1",null,null,null,null,null,null,null,{"$f":"SUM(I149:K149)","v":0}]
[null,null,null,"  1b.   2  t/m   4",null,null,null,null,null,null,null,{"$f":"SUM(I150:K150)","v":0}]
[null,null,null,"  2.     5  t/m   9",null,null,null,null,null,null,null,0]
[null,null,null,"  3.   10  t/m 14",null,null,null,null,null,null,null,0]
[null,null,null,"  4.   15  t/m 19",null,null,null,null,null,null,null,0]
[null,null,null,"  5.   20  t/m 24",null,null,null,null,null,null,null,0]
[null,null,null,"  6.   25  t/m 29",null,null,null,null,null,null,null,0]
[null,null,null,"  7.   30  t/m 34",null,null,null,null,null,null,null,0]
[null,null,null,"  8.   35  t/m 39",null,null,null,null,null,null,null,0]
[null,null,null,"  9.   40  t/m 44",null,null,null,null,null,null,null,0]
[null,null,null," 10.  45  t/m 49",null,null,null,null,null,null,null,0]
[null,null,null," 11.  50  t/m 54",null,null,null,null,null,null,null,0]
[null,null,null," 12.  55  t/m 59",null,null,null,null,null,null,null,0]
[null,null,null," 13.  60  t/m 64",null,null,null,null,null,null,null,0]
[null,null,null," 14.  65  t/m 69",null,null,null,null,null,null,null,0]
[null,null,null," 15.  70  t/m 74",null,null,null,null,null,null,null,0]
[null,null,null," 16.  75  t/m 79",null,null,null,null,null,null,null,0]
[null,null,null," 17.  80  t/m 84",null,null,null,null,null,null,null,0]
[null,null,null," 18.  85  t/m 89",null,null,null,null,null,null,null,0]
[null,null,null," 19.  90 en ouder",null,null,null,null,null,null,null,0]
[null,null,null," TOTAAL",null,null,null,null,{"$f":"SUM(I149:I168)","v":0},{"$f":"SUM(J149:J168)","v":0},{"$f":"SUM(K149:K168)","v":0},0]
[]
[null,null,null,"VERZEKERDENSTAND NAAR NOMINALE PREMIE",null,null,null,null,null,null,null,"Peildatum: datum van nominale premieprolongatie"]
[null,null,null,null,null,null,null,null,null,null,null,"voor de maand OKTOBER 2020"]
[null,null,null,null,null,null,null,null,null,null,null,"AANTAL"]
[null,null,null," Verzekerden met nominale premie Zvw"]
[null,null,null," Verzekerden zonder nominale premie Zvw"]
[null,null,null," TOTAAL",null,null,null,null,null,null,null,{"$f":"SUM(L174:L175)","v":0}]
[null,null,null,null,null,null,null,null,null,{"$f":"IF(AND(ISBLANK(K168)=FALSE,ISBLANK(L174)=FALSE),IF(L174<SUM(L154:L168),\"ATTENTIE: is het juist dat het aantal verzekerden \nmet nominale premie kleiner is dan het totaal\naantal verzekerden van 20 jaar en ouder?\",\"\"),\"\")","v":""}]
[]
[]
[]
[]
[]
[null,null,null,{"$f":"NOW()","v":"2020-09-18T09:15:45.460"},null,null,null,null,null,null,null,{"$f":"CONCATENATE(\"Specifieke informatie A, \",LOWER(A140))","v":"Specifieke informatie A, pagina 4"}]

{"sheet":"Specifieke informatie C","index":8,"n_rows":216,"n_cols":12,"rows_kept":216,"cut":false,"hidden":false,"merged":[[10,11,11,11],[12,3,12,10],[17,11,18,11],[17,3,18,10],[10,3,11,10],[13,3,13,10],[15,3,15,10],[14,3,14,10],[52,11,53,11],[37,11,38,11],[37,3,38,10],[32,3,32,10],[28,11,29,11],[39,3,39,10],[35,3,35,10],[30,3,30,10],[28,3,29,10],[52,3,53,10],[26,3,26,10],[42,3,42,10],[22,5,22,10],[19,3,21,4],[19,5,19,10],[20,5,20,10],[21,5,21,10],[43,3,43,10],[24,3,24,10],[31,3,31,10],[55,3,55,10],[25,3,25,10],[33,3,33,10],[40,3,40,10],[45,3,45,4],[41,3,41,10],[23,5,23,10],[34,3,34,10],[105,10,106,10],[58,11,59,11],[60,3,60,10],[58,3,59,10],[61,3,61,10],[62,3,62,10],[97,11,98,11],[88,3,88,4],[22,3,23,4],[56,3,56,10],[54,3,54,10],[140,11,141,11],[142,3,142,5],[104,10,104,11],[104,8,104,9],[104,3,106,5],[104,6,104,7],[105,9,106,9],[96,3,98,5],[100,3,100,5],[99,3,99,5],[96,6,96,7],[102,3,102,5],[105,11,106,11],[105,7,106,7],[105,6,106,6],[105,8,106,8],[101,3,101,5],[97,7,98,7],[96,8,96,9],[97,6,98,6],[97,9,98,9],[96,10,96,11],[97,10,98,10],[97,8,98,8],[117,3,117,5],[118,3,118,5],[119,3,119,5],[120,3,120,5],[126,3,126,5],[127,3,127,5],[128,3,128,5],[129,3,129,5],[130,3,130,5],[123,3,125,5],[121,3,121,5],[114,3,116,5],[114,6,114,7],[114,8,114,9],[114,10,114,11],[115,6,116,6],[115,7,116,7],[115,8,116,8],[115,9,116,9],[115,10,116,10],[115,11,116,11],[107,3,107,11],[151,3,151,5],[152,3,152,5],[108,3,108,5],[109,3,109,5],[110,3,110,5],[111,3,111,5],[112,3,112,5],[149,10,150,10],[149,6,150,6],[149,8,150,8],[148,8,148,9],[132,3,132,4],[123,6,123,7],[123,8,123,9],[123,10,123,11],[149,7,150,7],[124,11,125,11],[139,3,141,5],[139,6,139,7],[139,8,139,9],[139,10,139,11],[140,6,141,6],[140,7,141,7],[215,3,215,4],[195,3,195,10],[196,3,196,10],[197,3,197,10],[199,3,200,10],[192,3,192,10],[190,3,190,10],[191,3,191,10],[201,3,201,10],[202,3,202,10],[203,3,203,10],[193,3,193,10],[194,3,194,10],[188,3,189,10],[199,11,200,11],[188,11,189,11],[175,3,175,4],[183,3,184,10],[183,11,184,11],[145,3,145,5],[185,3,185,10],[149,9,150,9],[148,10,148,11],[149,11,150,11],[153,3,153,5],[154,3,154,5],[155,3,155,5],[148,6,148,7],[148,3,150,5],[186,3,186,10],[140,8,141,8],[140,9,141,9],[140,10,141,10],[124,6,125,6],[124,7,125,7],[124,8,125,8],[124,9,125,9],[124,10,125,10],[146,3,146,5],[143,3,143,5],[144,3,144,5]]}
[" ",null,"INVULSPECIFICATIES SPECIFIEKE INFORMATIE C"]
[]
[]
[]
[]
["Pagina 1",null,null,{"$f":"CONCATENATE(\"KWARTAALSTAAT ZVW \", jaar_id,\" \",kwartaal_id,\"E KWARTAAL\")","v":"KWARTAALSTAAT ZVW 2020 3E KWARTAAL"}]
[null,null,null,"SPECIFIEKE INFORMATIE C "]
[null,null,null,{"$f":"IF(naw_uzovi_zorgverzekeraar<>\"0000\",CONCATENATE(UPPER(naw_naam_zorgverzekeraar),\", \",UPPER(naw_plaats_zorgverzekeraar)),\"\")","v":""},null,null,null,null,null,null,null,{"$f":"CONCATENATE(\"UZOVI: \",naw_uzovi_zorgverzekeraar)","v":"UZOVI: 0000"}]
[null,null,null,"SPECIFICATIES VAN KOSTEN EN PRODUCTIE"]
[null,null,null,"RUBRIEK 01 HUISARTSENZORG"]
[null,null,null,"  CODE 503 - BIJZONDERE BETALINGEN",null,null,null,null,null,null,null,"Ontvangen en geaccepteerde declaraties tot en met 3e kwartaal 2020"]
[]
[null,null,null," Module achterstandsfonds"]
[null,null,null," Module modernisering en innovatie"]
[null,null,null," Overige kosten"]
[null,null,null," TOTAAL code 503",null,null,null,null,null,null,null,{"$f":"SUM(L13:L15)","v":0}]
[]
[null,null,null,"  CODE 506 - CONSULTTARIEVEN",null,null,null,null,null,null,null,{"$f":"L11","v":"Ontvangen en geaccepteerde declaraties tot en met 3e kwartaal 2020"}]
[]
[null,null,null," Kosten consulten huisartsen",null," korter dan 5 minuten"]
[null,null,null,null,null," van 5 tot 20 minuten"]
[null,null,null,null,null," 20 minuten en langer"]
[null,null,null," Kosten visites huisartsen",null," ≤ 20 minuten"]
[null,null,null,null,null," > 20 minuten"]
[null,null,null," Kosten consulttarieven POH GGZ"]
[null,null,null," Kosten huisartsenzorg ELV en Intensieve zorg "]
[null,null,null," TOTAAL code 506",null,null,null,null,null,null,null,{"$f":"SUM(L20:L26)","v":0}]
[]
[null,null,null,"  CODE 507 - OVERIGE TARIEVEN",null,null,null,null,null,null,null,{"$f":"L11","v":"Ontvangen en geaccepteerde declaraties tot en met 3e kwartaal 2020"}]
[null,null,null,null,null,null,null,null,null,null,null,"Ontvangen en geaccepteerde declaraties mbt jaar T"]
[null,null,null," Module POH GGZ"]
[null,null,null," S1 Verrichtingen "]
[null,null,null," Vaccinaties"]
[null,null,null," Passantentarieven"]
[null,null,null," Verloskundige zorg door huisartsen"]
[null,null,null," TOTAAL code 507",null,null,null,null,null,null,null,{"$f":"SUM(L31:L35)","v":0}]
[]
[null,null,null,"  CODE 510 - MULTIDISCIPLINAIRE ZORG",null,null,null,null,null,null,null,{"$f":"L11","v":"Ontvangen en geaccepteerde declaraties tot en met 3e kwartaal 2020"}]
[null,null,null,null,null,null,null,null,null,null,null,"Ontvangen en geaccepteerde declaraties mbt jaar T"]
[null,null,null," Multidisciplinaire zorgverlening Diabetes Mellitus type 2 en multidisciplinaire zorgverlening Cardiovasculair risicomanagement \n (vergoedingscomponent te verzekeren prestatie Zvw)"]
[null,null,null," Multidisciplinaire zorgverlening COPD (vergoedingscomponent te verzekeren prestatie Zvw) "]
[null,null,null," Organisatie en infrastructuur"]
[null,null,null," Programma stoppen met roken"]
[null,null,null," TOTAAL code 510",null,null,null,null,null,null,null,{"$f":"SUM(L40:L43)","v":0}]
[]
[null,null,null,{"$f":"NOW()","v":"2020-09-18T09:15:45.460"},null,null,null,null,null,null,null,{"$f":"CONCATENATE(\"Specifieke informatie C, \",LOWER(A6))","v":"Specifieke informatie C, pagina 1"}]
[]
["Pagina 2",null,null,{"$f":"CONCATENATE(\"KWARTAALSTAAT ZVW \", jaar_id,\" \",kwartaal_id,\"E KWARTAAL\")","v":"KWARTAALSTAAT ZVW 2020 3E KWARTAAL"}]
[null,null,null,"SPECIFIEKE INFORMATIE C"]
[null,null,null,{"$f":"IF(naw_uzovi_zorgverzekeraar<>\"0000\",CONCATENATE(UPPER(naw_naam_zorgverzekeraar),\", \",UPPER(naw_plaats_zorgverzekeraar)),\"\")","v":""},null,null,null,null,null,null,null,{"$f":"CONCATENATE(\"UZOVI: \",naw_uzovi_zorgverzekeraar)","v":"UZOVI: 0000"}]
[null,null,null,"SPECIFICATIES VAN KOSTEN EN PRODUCTIE"]
[null,null,null,"RUBRIEK 01 HUISARTSENZORG - vervolg"]
[null,null,null,"  CODE 515 - RESULTAATBELONING EN ZORGVERNIEUWING HUISARTSEN",null,null,null,null,null,null,null,{"$f":"L11","v":"Ontvangen en geaccepteerde declaraties tot en met 3e kwartaal 2020"}]
[null,null,null,null,null,null,null,null,null,null,null,"Ontvangen en geaccepteerde declaraties mbt jaar T"]
[null,null,null," Kosten resultaatbeloning huisartsen"]
[null,null,null," Kosten zorgvernieuwing huisartsen"]
[null,null,null," TOTAAL code 515",null,null,null,null,null,null,null,{"$f":"SUM(L55:L56)","v":0}]
[]
[null,null,null,"  CODE 516 - RESULTAATBELONING EN ZORGVERNIEUWING MDZ",null,null,null,null,null,null,null,{"$f":"L11","v":"Ontvangen en geaccepteerde declaraties tot en met 3e kwartaal 2020"}]
[null,null,null,null,null,null,null,null,null,null,null,"Ontvangen en geaccepteerde declaraties mbt jaar T"]
[null,null,null," Kosten resultaatbeloning MDZ"]
[null,null,null," Kosten zorgvernieuwing MDZ"]
[null,null,null," TOTAAL code 516",null,null,null,null,null,null,null,{"$f":"SUM(L61:L62)","v":0}]
[]
[]
[]
[]
[]
[]
[]
[]
[]
[]
[]
[]
[]
[]
[]
[]
[]
[]
[]
[]
[]
[]
[]
[]
[]
[null,null,null,{"$f":"NOW()","v":"2020-09-18T09:15:45.460"},null,null,null,null,null,null,null,{"$f":"CONCATENATE(\"Specifieke informatie C, \",LOWER(A48))","v":"Specifieke informatie C, pagina 2"}]
[]
["Pagina 3",null,null,{"$f":"CONCATENATE(\"KWARTAALSTAAT ZVW \", jaar_id,\" \",kwartaal_id,\"E KWARTAAL\")","v":"KWARTAALSTAAT ZVW 2020 3E KWARTAAL"}]
[null,null,null,"SPECIFIEKE INFORMATIE C "]
[null,null,null,{"$f":"IF(naw_uzovi_zorgverzekeraar<>\"0000\",CONCATENATE(UPPER(naw_naam_zorgverzekeraar),\", \",UPPER(naw_plaats_zorgverzekeraar)),\"\")","v":""},null,null,null,null,null,null,null,{"$f":"CONCATENATE(\"UZOVI: \",naw_uzovi_zorgverzekeraar)","v":"UZOVI: 0000"}]
[null,null,null,"SPECIFICATIES VAN KOSTEN EN PRODUCTIE"]
[]
[null,null,null,"RUBRIEK 06 MEDISCH SPECIALISTISCHE ZORG"]
[null,null,null," CODE 610 - OVERIGE KOSTEN \n ZIEKENHUISZORG EN CURATIEVE ZORG",null,null,"Lasten 2020 t/m 3e kwartaal",null,"Lasten 2019 ",null,"Lasten 2018 en ouder"]
[null,null,null,null,null,null,"Lasten 2020 inclusief balanspost",{"$f":"L11","v":"Ontvangen en geaccepteerde declaraties tot en met 3e kwartaal 2020"},"Lasten 2019 inclusief balanspost","Ontvangen en geaccepteerde declaraties m.b.t. 2019","Lasten 2018 en ouder inclusief balanspost ","Ontvangen en geaccepteerde declaraties m.b.t. 2018 en ouder"]
[null,null,null,null,null,null,null,null,"Ontvangen en geaccepteerde declaraties mbt jaar T","Ontvangen en geaccepteerde declaraties mbt jaar T","Ontvangen en geaccepteerde declaraties mbt jaar T","Ontvangen en geaccepteerde declaraties mbt jaar T"]
[null,null,null," Kosten van eerstelijnsdiagnostiek \n aangevraagd door eerstelijnszorg-\n aanbieders geleverd door \n huisartsenlaboratoria "]
[null,null,null," Trombosediensten "]
[null,null,null," SKION en NTS"]
[null,null,null," TOTAAL code 610",null,null,{"$f":"SUM(G100:G102)","v":0},0,0,0,0,0]
[]
[null,null,null,"  CODE 611 - NAAR INSTELLING",null,null,{"$f":"G97","v":"Lasten 2020 t/m 3e kwartaal"},null,"Lasten 2019 ",null,"Lasten 2018 en ouder"]
[null,null,null,null,null,null,"Lasten 2020 inclusief balanspost",{"$f":"L11","v":"Ontvangen en geaccepteerde declaraties tot en met 3e kwartaal 2020"},"Lasten 2019 inclusief balanspost","Ontvangen en geaccepteerde declaraties m.b.t. 2019","Lasten 2018 en ouder inclusief balanspost ","Ontvangen en geaccepteerde declaraties m.b.t. 2018 en ouder"]
[null,null,null,null,null,null,null,null,"Ontvangen en geaccepteerde declaraties mbt jaar T","Ontvangen en geaccepteerde declaraties mbt jaar T","Ontvangen en geaccepteerde declaraties mbt jaar T","Ontvangen en geaccepteerde declaraties mbt jaar T"]
[null,null,null," Overige zorgproducten"]
[null,null,null," Academische ziekenhuizen"]
[null,null,null," Algemene ziekenhuizen"]
[null,null,null," Zelfstandige behandelcentra"]
[null,null,null," Overige zorgaanbieders"]
[null,null,null," TOTAAL code 611",null,null,{"$f":"SUM(G109:G112)","v":0},0,0,0,0,0]
[]
[null,null,null," CODE 612.1 - KOSTEN ADD-ONS DURE \n GENEESMIDDELEN NAAR INSTELLING",null,null,{"$f":"G97","v":"Lasten 2020 t/m 3e kwartaal"},null,"Lasten 2019 ",null,"Lasten 2018 en ouder"]
[null,null,null,null,null,null,"Lasten 2020 inclusief balanspost",{"$f":"L11","v":"Ontvangen en geaccepteerde declaraties tot en met 3e kwartaal 2020"},"Lasten 2019 inclusief balanspost","Ontvangen en geaccepteerde declaraties m.b.t. 2019","Lasten 2018 en ouder inclusief balanspost ","Ontvangen en geaccepteerde declaraties m.b.t. 2018 en ouder"]
[null,null,null,null,null,null,null,null,"Ontvangen en geaccepteerde declaraties mbt jaar T","Ontvangen en geaccepteerde declaraties mbt jaar T","Ontvangen en geaccepteerde declaraties mbt jaar T","Ontvangen en geaccepteerde declaraties mbt jaar T"]
[null,null,null," Academische ziekenhuizen"]
[null,null,null," Algemene ziekenhuizen"]
[null,null,null," Zelfstandige behandelcentra"]
[null,null,null," Overige zorgaanbieders"]
[null,null,null," TOTAAL code 612.1",null,null,{"$f":"SUM(G118:G121)","v":0},{"$f":"SUM(H118:H121)","v":0},0,0,0,0]
[]
[null,null,null," CODE 612.2 - KOSTEN ADD-ONS IC  \n NAAR INSTELLING",null,null,{"$f":"G97","v":"Lasten 2020 t/m 3e kwartaal"},null,"Lasten 2019 ",null,"Lasten 2018 en ouder"]
[null,null,null,null,null,null,"Lasten 2020 inclusief balanspost",{"$f":"L11","v":"Ontvangen en geaccepteerde declaraties tot en met 3e kwartaal 2020"},"Lasten 2019 inclusief balanspost","Ontvangen en geaccepteerde declaraties m.b.t. 2019","Lasten 2018 en ouder inclusief balanspost ","Ontvangen en geaccepteerde declaraties m.b.t. 2018 en ouder"]
[null,null,null,null,null,null,null,null,"Ontvangen en geaccepteerde declaraties mbt jaar T","Ontvangen en geaccepteerde declaraties mbt jaar T","Ontvangen en geaccepteerde declaraties mbt jaar T","Ontvangen en geaccepteerde declaraties mbt jaar T"]
[null,null,null," Academische ziekenhuizen"]
[null,null,null," Algemene ziekenhuizen"]
[null,null,null," Zelfstandige behandelcentra"]
[null,null,null," Overige zorgaanbieders"]
[null,null,null," TOTAAL code 612.2",null,null,{"$f":"SUM(G127:G130)","v":0},{"$f":"SUM(H127:H130)","v":0},0,0,0,0]
[]
[null,null,null,{"$f":"NOW()","v":"2020-09-18T09:15:45.460"},null,null,null,null,null,null,null,{"$f":"CONCATENATE(\"Specifieke informatie C, \",LOWER(A91))","v":"Specifieke informatie C, pagina 3"}]
[]
["Pagina 4",null,null,{"$f":"CONCATENATE(\"KWARTAALSTAAT ZVW \", jaar_id,\" \",kwartaal_id,\"E KWARTAAL\")","v":"KWARTAALSTAAT ZVW 2020 3E KWARTAAL"}]
[null,null,null,"SPECIFIEKE INFORMATIE C "]
[null,null,null,{"$f":"IF(naw_uzovi_zorgverzekeraar<>\"0000\",CONCATENATE(UPPER(naw_naam_zorgverzekeraar),\", \",UPPER(naw_plaats_zorgverzekeraar)),\"\")","v":""},null,null,null,null,null,null,null,{"$f":"CONCATENATE(\"UZOVI: \",naw_uzovi_zorgverzekeraar)","v":"UZOVI: 0000"}]
[null,null,null,"SPECIFICATIES VAN KOSTEN EN PRODUCTIE"]
[null,null,null,"RUBRIEK 06 MEDISCH SPECIALISTISCHE ZORG - vervolg"]
[null,null,null,"  CODE 613.1 - INTEGRALE KOSTEN VAN \n  DBC-ZORGPRODUCTEN GEREGULEERDE \n  SEGMENT NAAR \n  INSTELLING",null,null,{"$f":"G97","v":"Lasten 2020 t/m 3e kwartaal"},null,"Lasten 2019 ",null,"Lasten 2018 en ouder"]
[null,null,null,null,null,null,"Lasten 2020 inclusief balanspost",{"$f":"L11","v":"Ontvangen en geaccepteerde declaraties tot en met 3e kwartaal 2020"},"Lasten 2019 inclusief balanspost","Ontvangen en geaccepteerde declaraties m.b.t. 2019","Lasten 2018 en ouder inclusief balanspost ","Ontvangen en geaccepteerde declaraties m.b.t. 2018 en ouder"]
[null,null,null,null,null,"code",null,null,"Ontvangen en geaccepteerde declaraties mbt jaar T","Ontvangen en geaccepteerde declaraties mbt jaar T","Ontvangen en geaccepteerde declaraties mbt jaar T","Ontvangen en geaccepteerde declaraties mbt jaar T"]
[null,null,null," Academische ziekenhuizen"]
[null,null,null," Algemene ziekenhuizen"]
[null,null,null," Zelfstandige behandelcentra"]
[null,null,null," Overige zorgaanbieders"]
[null,null,null," TOTAAL code 613.1",null,null,{"$f":"SUM(G143:G146)","v":0},{"$f":"SUM(H143:H146)","v":0},{"$f":"SUM(I143:I146)","v":0},0,0,0]
[]
[null,null,null,"  CODE 615.1 - INTEGRALE KOSTEN VAN\n  DBC-ZORGPRODUCTEN VRIJE SEGMENT\n  NAAR INSTELLING",null,null,{"$f":"G97","v":"Lasten 2020 t/m 3e kwartaal"},null,"Lasten 2019 ",null,"Lasten 2018 en ouder"]
[null,null,null,null,null,null,"Lasten 2020 inclusief balanspost",{"$f":"L11","v":"Ontvangen en geaccepteerde declaraties tot en met 3e kwartaal 2020"},"Lasten 2019 inclusief balanspost","Ontvangen en geaccepteerde declaraties m.b.t. 2019","Lasten 2018 en ouder inclusief balanspost ","Ontvangen en geaccepteerde declaraties m.b.t. 2018 en ouder"]
[null,null,null,null,null,"code",null,null,"Ontvangen en geaccepteerde declaraties mbt jaar T","Ontvangen en geaccepteerde declaraties mbt jaar T","Ontvangen en geaccepteerde declaraties mbt jaar T","Ontvangen en geaccepteerde declaraties mbt jaar T"]
[null,null,null," Academische ziekenhuizen"]
[null,null,null," Algemene ziekenhuizen"]
[null,null,null," Zelfstandige behandelcentra"]
[null,null,null," Overige zorgaanbieders"]
[null,null,null," TOTAAL code 615.1",null,null,{"$f":"SUM(G152:G155)","v":0},0,0,0,0,0]
[]
[]
[]
[]
[]
[]
[]
[]
[]
[]
[]
[]
[]
[]
[]
[]
[]
[]
[]
[null,null,null,{"$f":"NOW()","v":"2020-09-18T09:15:45.460"},null,null,null,null,null,null,null,{"$f":"CONCATENATE(\"Specifieke informatie C, \",LOWER(A135))","v":"Specifieke informatie C, pagina 4"}]
[]
["Pagina 5",null,null,{"$f":"CONCATENATE(\"KWARTAALSTAAT ZVW \", jaar_id,\" \",kwartaal_id,\"E KWARTAAL\")","v":"KWARTAALSTAAT ZVW 2020 3E KWARTAAL"}]
[null,null,null,"SPECIFIEKE INFORMATIE C "]
[null,null,null,{"$f":"IF(naw_uzovi_zorgverzekeraar<>\"0000\",CONCATENATE(UPPER(naw_naam_zorgverzekeraar),\", \",UPPER(naw_plaats_zorgverzekeraar)),\"\")","v":""},null,null,null,null,null,null,null,{"$f":"CONCATENATE(\"UZOVI: \",naw_uzovi_zorgverzekeraar)","v":"UZOVI: 0000"}]
[null,null,null,"SPECIFICATIES VAN KOSTEN EN PRODUCTIE"]
[]
[null,null,null,"RUBRIEK 13 DIVERSE OVERIGE KOSTEN"]
[null,null,null," CODE 700 - OVERIGE KOSTEN",null,null,null,null,null,null,null,{"$f":"L11","v":"Ontvangen en geaccepteerde declaraties tot en met 3e kwartaal 2020"}]
[null,null,null,null,null,null,null,null,null,null,null,"Ontvangen en geaccepteerde declaraties mbt jaar T"]
[null,null,null," Kosten i.v.m. beleidsregel innovatie t.b.v. nieuwe zorgprestaties "]
[null,null,null," TOTAAL code 700",null,null,null,null,null,null,null,{"$f":"SUM(L186:L186)","v":0}]
[]
[null,null,null," CODE 701 - OVERIGE GENEESKUNDIGE ZORG",null,null,null,null,null,null,null,{"$f":"L11","v":"Ontvangen en geaccepteerde declaraties tot en met 3e kwartaal 2020"}]
[null,null,null,null,null,null,null,null,null,null,null,"Ontvangen en geaccepteerde declaraties mbt jaar T"]
[null,null,null," Geneeskundige individuele zorg bij tuberculose en infectieziekten door GGD'en"]
[null,null,null," Huidtherapie"]
[null,null,null," Orthoptie"]
[null,null,null," Optometrie"]
[null,null,null," Kosten voetzorg bij Diabetes Mellitus type 2"]
[null,null,null," Koemelkallergietest (niet horend bij Multidisciplinaire Zorg) "]
[null,null,null," Regiefunctie complexe wondzorg"]
[null,null,null," TOTAAL code 701",null,null,null,null,null,null,null,{"$f":"SUM(L191:L197)","v":0}]
[]
[null,null,null," CODE 702 - ZINTUIGLIJK GEHANDICAPTEN",null,null,null,null,null,null,null,{"$f":"L11","v":"Ontvangen en geaccepteerde declaraties tot en met 3e kwartaal 2020"}]
[null,null,null,null,null,null,null,null,null,null,null,"Ontvangen en geaccepteerde declaraties mbt jaar T"]
[null,null,null," Kosten van zorg ivm visuele beperking"]
[null,null,null," Kosten van zorg ivm auditieve en communicatieve beperking"]
[null,null,null," TOTAAL code 702",null,null,null,null,null,null,null,{"$f":"SUM(L202:L203)","v":0}]
[]
[]
[]
[]
[]
[]
[]
[]
[]
[]
[]
[null,null,null,{"$f":"NOW()","v":"2020-09-18T09:15:45.460"},null,null,null,null,null,null,null,{"$f":"CONCATENATE(\"Specifieke informatie C, \",LOWER(A178))","v":"Specifieke informatie C, pagina 5"}]

{"sheet":"Contractinformatie","index":9,"n_rows":125,"n_cols":11,"rows_kept":125,"cut":false,"hidden":false,"merged":[[33,3,33,9],[36,3,36,9],[37,3,37,9],[40,3,40,9],[113,3,113,10],[93,3,93,10],[104,3,104,10],[108,3,108,9],[109,3,109,9],[112,3,112,9],[65,3,65,9],[66,3,66,9],[48,3,48,9],[49,3,49,9],[52,3,52,9],[54,3,54,9],[19,3,19,9],[25,3,25,9],[28,3,28,9],[29,3,29,9],[32,3,32,9],[20,3,20,10],[21,3,21,9],[22,3,22,9],[23,3,23,9],[24,3,24,9],[30,3,30,9],[31,3,31,9],[14,3,14,9],[16,3,16,9],[17,3,17,9],[18,3,18,9],[15,3,15,10],[10,3,10,10],[9,3,9,9],[11,3,11,9],[12,3,12,9],[13,3,13,9],[124,3,124,4],[59,3,59,4],[95,3,95,10],[114,3,114,9],[117,3,117,9],[118,3,118,9],[67,3,67,9],[68,3,68,9],[69,3,69,9],[72,3,72,9],[73,3,73,9],[74,3,74,9],[77,3,77,9],[79,3,79,9],[80,3,80,9],[83,3,83,9],[55,3,55,9],[41,3,41,9],[42,3,42,9],[43,3,43,9],[44,3,44,9],[47,3,47,9],[51,3,51,9],[121,3,121,9],[122,3,122,9],[96,3,96,9],[99,3,99,9],[100,3,100,9],[103,3,103,9],[105,3,105,9],[97,3,97,9],[98,3,98,9],[106,3,106,9],[107,3,107,9],[115,3,115,9],[116,3,116,9],[101,3,101,9],[102,3,102,9],[110,3,110,9],[34,3,34,9],[35,3,35,9],[45,3,45,9],[46,3,46,9],[50,3,50,9],[111,3,111,9],[119,3,119,9],[120,3,120,9],[70,3,70,9],[71,3,71,9],[75,3,75,9],[76,3,76,9],[85,3,85,9],[84,3,84,9],[87,3,87,9],[88,3,88,9],[91,3,91,9],[94,3,94,9],[86,3,86,9],[89,3,89,9],[90,3,90,9]]}
[null,null,"INVULSPECIFICATIES SPECIFIEKE INFORMATIE C"]
[]
[]
[]
[]
["Pagina 1",null,null,{"$f":"CONCATENATE(\"KWARTAALSTAAT ZVW \", jaar_id,\" \",kwartaal_id,\"E KWARTAAL\")","v":"KWARTAALSTAAT ZVW 2020 3E KWARTAAL"}]
[null,null,null,"SPECIFIEKE INFORMATIE C - CONTRACTINFORMATIE"]
[null,null,null,{"$f":"IF(naw_uzovi_zorgverzekeraar<>\"0000\",CONCATENATE(UPPER(naw_naam_zorgverzekeraar),\", \",UPPER(naw_plaats_zorgverzekeraar)),\"\")","v":""},null,null,null,null,null,null,{"$f":"CONCATENATE(\"UZOVI: \",naw_uzovi_zorgverzekeraar)","v":"UZOVI: 0000"}]
[null,null,null," CONTRACTINFORMATIE HUISARTSENZORG EN MULTIDISCIPLINAIRE ZORG, rubriek 01"]
[null,null,null,null,null,null,null,null,null,null,"Lasten inclusief \nbalanspost \n2020"]
[null,null,null," Huisartsenzorg, codes 503, 504, 505, 506, 507, 515"]
[null,null,null," Gecontracteerde zorg"]
[null,null,null," Lopende onderhandelingen"]
[null,null,null," Niet gecontracteerde zorg"]
[null,null,null," Subtotaal huisartsenzorg",null,null,null,null,null,{"$f":"SUM(J12:J14)","v":0},{"$f":"SUM(K12:K14)","v":0}]
[null,null,null," Multidisciplinaire zorg, codes 510 en 516"]
[null,null,null," Gecontracteerde zorg"]
[null,null,null," Lopende onderhandelingen"]
[null,null,null," Niet gecontracteerde zorg"]
[null,null,null," Subtotaal multidisciplinaire zorg",null,null,null,null,null,{"$f":"SUM(J17:J19)","v":0},{"$f":"SUM(K17:K19)","v":0}]
[null,null,null," Huisartsenzorg en multidisciplinaire zorg"]
[null,null,null," Meerkosten Corona type 2 tm 5 -gecontracteerde zorg"]
[null,null,null," Netto continuïteitsbijdrage Corona (basisverzekering) - gecontracteerde zorg"]
[null,null,null," Meerkosten Corona type 2 tm 5 - niet gecontracteerde zorg"]
[null,null,null," Netto continuïteitsbijdrage Corona (basisverzekering) - niet gecontracteerde zorg"]
[null,null,null," TOTAAL RUBRIEK 01 ",null,null,null,null,null,null,{"$f":"SUM(K15+K20+K22+K23+K24+K25)","v":0}]
[]
[null,null,null," CONTRACTINFORMATIE VERPLEGING EN VERZORGING, rubriek 03"]
[null,null,null,null,null,null,null,null,null,null,"Lasten inclusief \nbalanspost \n2020"]
[null,null,null," Gecontracteerde zorg"]
[null,null,null," Meerkosten Corona type 2 tm 5 - Gecontracteerde zorg"]
[null,null,null," Netto continuïteitsbijdrage Corona (basisverzekering) - gecontracteerde zorg"]
[null,null,null," Lopende onderhandelingen"]
[null,null,null," Niet gecontracteerde zorg"]
[null,null,null," Meerkosten Corona type 2 tm 5 - niet gecontracteerde zorg"]
[null,null,null," Netto continuïteitsbijdrage Corona (basisverzekering) - niet gecontracteerde zorg"]
[null,null,null," PGB"]
[null,null,null," TOTAAL RUBRIEK 03",null,null,null,null,null,{"$f":"SUM(J30:J34)","v":0},{"$f":"SUM(K30:K37)","v":0}]
[]
[null,null,null," CONTRACTINFORMATIE MEDISCH SPECIALISTISCHE ZORG, rubriek 06"]
[null,null,null,null,null,null,null,null,null,null,"Lasten inclusief \nbalanspost \n2020"]
[null,null,null," Gecontracteerde zorg: aanneemsom"]
[null,null,null," Gecontracteerde zorg: plafond"]
[null,null,null," Gecontracteerde zorg: nacalculatie bij aanneemsommen en plafondcontracten"]
[null,null,null," Gecontracteerde zorg: open einde contract"]
[null,null,null," Meerkosten Corona type 2 tm 5 - Gecontracteerde zorg"]
[null,null,null," Netto continuïteitsbijdrage Corona (basisverzekering) - gecontracteerde zorg"]
[null,null,null," Subtotaal gecontracteerde zorg",null,null,null,null,null,{"$f":"SUM(J42:J45)","v":0},{"$f":"SUM(K42:K47)","v":0}]
[null,null,null," Lopende onderhandelingen"]
[null,null,null," Niet gecontracteerde zorg"]
[null,null,null," Meerkosten Corona type 2 tm 5 - niet gecontracteerde zorg"]
[null,null,null," Netto continuïteitsbijdrage Corona (basisverzekering) - niet gecontracteerde zorg"]
[null,null,null," TOTAAL RUBRIEK 06 ",null,null,null,null,null,{"$f":"SUM(J48:J50)","v":0},{"$f":"SUM(K48:K52)","v":0}]
[]
[null,null,null,null,null,null,null,null,null,2020,2020]
[null,null,null," Totaal afgesproken maximumomzet plafondcontracten"]
[]
[]
[]
[null,null,null,{"$f":"NOW()","v":"2020-09-18T09:15:45.460"},null,null,null,null,null,null,{"$f":"CONCATENATE(\"Specifieke informatie C - Contractinformatie, \",LOWER(A6))","v":"Specifieke informatie C - Contractinformatie, pagina 1"}]
[]
["Pagina 2",null,null,{"$f":"CONCATENATE(\"KWARTAALSTAAT ZVW \", jaar_id,\" \",kwartaal_id,\"E KWARTAAL\")","v":"KWARTAALSTAAT ZVW 2020 3E KWARTAAL"}]
[null,null,null,"SPECIFIEKE INFORMATIE C - CONTRACTINFORMATIE"]
[null,null,null,{"$f":"IF(naw_uzovi_zorgverzekeraar<>\"0000\",CONCATENATE(UPPER(naw_naam_zorgverzekeraar),\"\",),\"\")","v":""},null,null,null,null,null,null,{"$f":"CONCATENATE(\"UZOVI: \",naw_uzovi_zorgverzekeraar)","v":"UZOVI: 0000"}]
[null,null,null," CONTRACTINFORMATIE GENEESKUNDIGE GEESTELIJKE GEZONDHEIDSZORG, rubriek 10"]
[null,null,null,null,null,null,null,null,null,"Lasten inclusief \nbalanspost \n2020","Lasten inclusief \nbalanspost \n2020"]
[null,null,null," Gecontracteerde zorg: aanneemsom"]
[null,null,null," Gecontracteerde zorg: plafond"]
[null,null,null," Gecontracteerde zorg: nacalculatie bij aanneemsommen en plafondcontracten"]
[null,null,null," Gecontracteerde zorg: open einde contract"]
[null,null,null," Meerkosten Corona type 2 tm 5 - Gecontracteerde zorg"]
[null,null,null," Netto continuïteitsbijdrage Corona (basisverzekering) - gecontracteerde zorg"]
[null,null,null," Subtotaal gecontracteerde zorg",null,null,null,null,null,{"$f":"SUM(J67:J70)","v":0},{"$f":"SUM(K67:K72)","v":0}]
[null,null,null," Lopende onderhandelingen"]
[null,null,null," Niet gecontracteerde zorg"]
[null,null,null," Meerkosten Corona type 2 tm 5 - niet gecontracteerde zorg"]
[null,null,null," Netto continuïteitsbijdrage Corona (basisverzekering) - niet gecontracteerde zorg"]
[null,null,null," TOTAAL RUBRIEK 10 ",null,null,null,null,null,{"$f":"SUM(J73:J75)","v":0},{"$f":"SUM(K73:K77)","v":0}]
[]
[null,null,null,null,null,null,null,null,null,2020,2020]
[null,null,null," Totaal afgesproken maximumomzet plafondcontracten"]
[]
[null,null,null," CONTRACTINFORMATIE ZINTUIGLIJK GEHANDICAPTEN, code 702 "]
[null,null,null,null,null,null,null,null,null,"Lasten inclusief \nbalanspost \n2020","Lasten inclusief \nbalanspost \n2020"]
[null,null,null," Gecontracteerde zorg"]
[null,null,null," Meerkosten Corona type 2 tm 5 - Gecontracteerde zorg"]
[null,null,null," Netto continuïteitsbijdrage Corona (basisverzekering) - gecontracteerde zorg"]
[null,null,null," Lopende onderhandelingen"]
[null,null,null," Niet gecontracteerde zorg"]
[null,null,null," Meerkosten Corona type 2 tm 5 - niet gecontracteerde zorg"]
[null,null,null," Netto continuïteitsbijdrage Corona (basisverzekering) - niet gecontracteerde zorg"]
[null,null,null," TOTAAL CODE 702",null,null,null,null,null,{"$f":"SUM(J85:J89)","v":0},{"$f":"SUM(K85:K91)","v":0}]
[]
[null,null,null," CONTRACTINFORMATIE GERIATRISCHE REVALIDATIE, EERSTELIJNSVERBLIJF EN GENEESKUNDIGE ZORG       SPECIFIEKE PATIENTGROEPEN, rubriek 11"]
[null,null,null,null,null,null,null,null,null,"Lasten inclusief \nbalanspost \n2020","Lasten inclusief \nbalanspost \n2020"]
[null,null,null," Geriatrische Revalidatie, code 670"]
[null,null,null," Gecontracteerde zorg"]
[null,null,null," Meerkosten Corona type 2 tm 5 - Gecontracteerde zorg"]
[null,null,null," Netto continuïteitsbijdrage Corona (basisverzekering) - gecontracteerde zorg"]
[null,null,null," Lopende onderhandelingen"]
[null,null,null," Niet gecontracteerde zorg"]
[null,null,null," Meerkosten Corona type 2 tm 5 - niet gecontracteerde zorg"]
[null,null,null," Netto continuïteitsbijdrage Corona (basisverzekering) - niet gecontracteerde zorg"]
[null,null,null," Subtotaal Geriatrische Revalidatie zorg",null,null,null,null,null,{"$f":"SUM(J97:J101)","v":0},{"$f":"SUM(K97:K103)","v":0}]
[null,null,null," Eerstelijnsverblijf, code 671"]
[null,null,null," Gecontracteerde zorg"]
[null,null,null," Meerkosten Corona type 2 tm 5 - Gecontracteerde zorg"]
[null,null,null," Netto continuïteitsbijdrage Corona (basisverzekering) - gecontracteerde zorg"]
[null,null,null," Lopende onderhandelingen"]
[null,null,null," Niet gecontracteerde zorg"]
[null,null,null," Meerkosten Corona type 2 tm 5 - niet gecontracteerde zorg"]
[null,null,null," Netto continuïteitsbijdrage Corona (basisverzekering) - niet gecontracteerde zorg"]
[null,null,null," Subtotaal Eerstelijnsverblijf ",null,null,null,null,null,{"$f":"SUM(J106:J110)","v":0},{"$f":"SUM(K106:K112)","v":0}]
[null,null,null," Geneeskundige Zorg Specifieke Patiëntgroepen, code 672"]
[null,null,null," Gecontracteerde zorg"]
[null,null,null," Meerkosten Corona type 2 tm 5 - Gecontracteerde zorg"]
[null,null,null," Netto continuïteitsbijdrage Corona (basisverzekering) - gecontracteerde zorg"]
[null,null,null," Lopende onderhandelingen"]
[null,null,null," Niet gecontracteerde zorg"]
[null,null,null," Meerkosten Corona type 2 tm 5 - niet gecontracteerde zorg"]
[null,null,null," Netto continuïteitsbijdrage Corona (basisverzekering) - niet gecontracteerde zorg"]
[null,null,null," Subtotaal Geneeskundige Zorg Specifieke Patiëntgroepen",null,null,null,null,null,{"$f":"SUM(J115:J119)","v":0},{"$f":"SUM(K115:K121)","v":0}]
[null,null,null," TOTAAL RUBRIEK 11 ",null,null,null,null,null,{"$f":"SUM(J104+J113+J122)","v":0},{"$f":"SUM(K104+K113+K122)","v":0}]
[]
[null,null,null,{"$f":"NOW()","v":"2020-09-18T09:15:45.460"},null,null,null,null,null,null,{"$f":"CONCATENATE(\"Specifieke informatie C - Contractinformatie, \",LOWER(A62))","v":"Specifieke informatie C - Contractinformatie, pagina 2"}]

{"sheet":"Wanbetalers","index":10,"n_rows":48,"n_cols":11,"rows_kept":48,"cut":false,"hidden":false,"merged":[[15,3,15,7],[16,3,16,7],[10,3,10,7],[11,3,11,7],[12,3,12,7],[13,3,13,7],[26,3,26,7],[47,3,47,4],[27,3,27,7],[17,3,17,7],[19,3,19,7],[20,3,20,7],[21,3,21,7],[22,3,22,7],[24,3,24,7],[25,3,25,7]]}
[null,null,"INVULSPECIFICATIES SPECIFIEKE INFORMATIE C"]
[]
[]
[]
[]
["Pagina 1",null,null,{"$f":"CONCATENATE(\"KWARTAALSTAAT ZVW \", jaar_id,\" \",kwartaal_id,\"E KWARTAAL\")","v":"KWARTAALSTAAT ZVW 2020 3E KWARTAAL"}]
[null,null,null,"SPECIFIEKE INFORMATIE C - WANBETALERS"]
[null,null,null,{"$f":"IF(naw_uzovi_zorgverzekeraar<>\"0000\",CONCATENATE(UPPER(naw_naam_zorgverzekeraar),\", \",UPPER(naw_plaats_zorgverzekeraar)),\"\")","v":""},null,null,null,null,null,null,{"$f":"CONCATENATE(\"UZOVI: \",naw_uzovi_zorgverzekeraar)","v":"UZOVI: 0000"}]
[]
[null,null,null,"SPECIFICATIES VAN WANBETALERS"]
[null,null,null,null,null,null,null,null,"AANTAL \njuli","AANTAL \naugustus","AANTAL \nseptember"]
[null,null,null," Verzekeringnemers die een achterstand in de premiebetaling hebben van \n twee of meer, maar minder dan vier volle maandpremies."]
[null,null,null," Verzekeringnemers die een achterstand in de premiebetaling hebben van \n vier of meer, maar minder dan zes volle maandpremies."]
[null,null,null," Verzekeringnemers die een achterstand in de premiebetaling hebben van \n zes of meer volle maandpremies."]
[]
[null,null,null,null,null,null,null,null,"AANTAL \njuli","AANTAL \naugustus","AANTAL \nseptember"]
[null,null,null," Verstuurde tweedemaandsbrieven"]
[null,null,null," Verstuurde vierdemaandsbrieven"]
[]
[null,null,null,null,null,null,null,null,"AANTAL \njuli","AANTAL \naugustus","AANTAL \nseptember"]
[null,null,null," Debiteuren met een interne betalingsregeling, al dan niet uitsluitend \n voor premiebetaling."]
[null,null,null," Debiteuren met een externe betalingsregeling, al dan niet uitsluitend \n voor premiebetaling."]
[null,null,null," Actieve stabilisatieovereenkomsten voor premiebetaling."]
[]
[null,null,null,null,null,null,null,null,"AANTAL \njuli","AANTAL \naugustus","AANTAL \nseptember"]
[null,null,null," Wanbetalers bij CAK aangemeld met een betalingsachterstand van minder \n dan € 250."]
[null,null,null," Wanbetalers bij CAK aangemeld met een betalingsachterstand van \n meer dan € 250, maar minder dan € 750."]
[null,null,null," Wanbetalers bij CAK aangemeld met een betalingsachterstand van meer \n dan € 750."]
[]
[]
[]
[]
[]
[]
[]
[]
[]
[]
[]
[]
[]
[]
[]
[]
[]
[]
[]
[null,null,null,{"$f":"NOW()","v":"2020-09-18T09:15:45.460"},null,null,null,null,null,null,{"$f":"CONCATENATE(\"Specifieke informatie C - Wanbetalers, \",LOWER(A6))","v":"Specifieke informatie C - Wanbetalers, pagina 1"}]

{"sheet":"Controleoverzicht","index":11,"n_rows":199,"n_cols":12,"rows_kept":199,"cut":false,"hidden":false,"merged":[[197,3,197,8],[9,10,10,10],[9,11,10,11],[110,3,110,8],[45,3,45,8],[95,3,95,8],[98,3,98,8],[156,3,156,8],[157,3,157,8],[137,3,138,8],[88,3,88,8],[86,3,86,8],[78,3,78,8],[73,3,73,8],[58,3,58,8],[125,3,125,8],[122,3,122,8],[123,3,123,8],[124,3,124,8],[109,3,109,8],[104,3,104,8],[106,3,106,8],[105,3,105,8],[71,3,72,8],[82,3,82,8],[19,11,20,11],[19,9,20,9],[19,10,20,10],[21,3,21,8],[71,10,72,10],[71,9,72,9],[39,3,39,8],[49,3,49,8],[81,3,81,8],[44,3,44,8],[40,3,40,8],[74,3,74,8],[43,3,43,8],[37,3,37,8],[38,3,38,8],[53,3,53,8],[54,3,54,8],[50,3,50,8],[35,3,35,8],[36,3,36,8],[41,3,41,8],[42,3,42,8],[46,3,46,8],[152,10,153,10],[149,3,149,8],[152,9,153,9],[143,9,144,9],[152,3,153,8],[148,3,148,8],[159,3,159,8],[152,11,153,11],[150,3,150,8],[114,11,115,11],[174,3,174,8],[173,3,173,8],[172,3,172,8],[182,3,182,8],[181,3,181,8],[180,3,180,8],[179,3,179,8],[175,3,175,8],[139,3,139,8],[137,11,138,11],[141,3,141,8],[140,3,140,8],[169,11,170,11],[169,10,170,10],[169,9,170,9],[169,3,170,8],[137,9,138,9],[171,3,171,8],[114,10,115,10],[147,3,147,8],[145,3,145,8],[177,11,178,11],[177,10,178,10],[9,9,10,9],[9,3,10,8],[11,3,11,8],[15,3,16,8],[12,3,12,8],[13,3,13,8],[31,3,31,8],[34,3,34,8],[28,3,28,8],[24,3,24,8],[26,3,26,8],[23,3,23,8],[25,3,25,8],[17,3,17,8],[19,3,20,8],[27,3,27,8],[22,3,22,8],[29,3,29,8],[30,3,30,8],[32,3,32,8],[33,3,33,8],[15,11,16,11],[15,9,16,9],[15,10,16,10],[48,3,48,8],[51,3,51,8],[190,3,191,8],[190,9,191,9],[190,10,191,10],[190,11,191,11],[83,3,83,8],[55,3,55,8],[59,3,59,8],[60,3,60,8],[71,11,72,11],[137,10,138,10],[158,3,158,8],[155,3,155,8],[154,3,154,8],[114,9,115,9],[116,3,116,8],[117,3,117,8],[118,3,118,8],[119,3,119,8],[127,3,127,8],[192,3,192,8],[193,3,193,8],[194,3,194,8],[195,3,195,8],[196,3,196,8],[89,3,89,8],[111,3,111,8],[87,3,87,8],[101,3,101,8],[120,3,120,8],[121,3,121,8],[126,3,126,8],[92,3,92,8],[114,3,115,8],[187,3,187,11],[183,3,183,8],[177,9,178,9],[186,3,186,10],[177,3,178,8],[185,3,185,10],[143,11,144,11],[143,10,144,10],[143,3,144,8],[146,3,146,8],[47,3,47,8],[56,3,56,8],[57,3,57,8],[76,3,76,8],[77,3,77,8],[79,3,79,8],[80,3,80,8],[52,3,52,8],[75,3,75,8],[100,3,100,8],[102,3,102,8],[103,3,103,8],[107,3,107,8],[108,3,108,8],[84,3,84,8],[85,3,85,8],[90,3,90,8],[91,3,91,8],[93,3,93,8],[94,3,94,8],[96,3,96,8],[97,3,97,8],[99,3,99,8]]}
[null,null,"CONTROLEOVERZICHT"]
[]
[]
[]
[]
["Pagina 1",null,null,{"$f":"CONCATENATE(\"KWARTAALSTAAT ZVW \", jaar_id,\" \",kwartaal_id,\"E KWARTAAL\")","v":"KWARTAALSTAAT ZVW 2020 3E KWARTAAL"}]
[null,null,null,"CONTROLEOVERZICHT"]
[null,null,null,{"$f":"IF(naw_uzovi_zorgverzekeraar<>\"0000\",CONCATENATE(UPPER(naw_naam_zorgverzekeraar),\", \",UPPER(naw_plaats_zorgverzekeraar)),\"\")","v":""},null,null,null,null,null,null,null,{"$f":"CONCATENATE(\"UZOVI: \",naw_uzovi_zorgverzekeraar)","v":"UZOVI: 0000"}]
[null,null,null,"SPECIFIEKE INFORMATIE A"]
[null,null,null," VERZEKERDENSTANDEN",null,null,null,null,null,"MEI","JUNI","JULI"]
[]
[null,null,null," Verzekerdenstand naar risicoklasse",null,null,null,null,null,{"$f":"'Specifieke informatie A'!L79","v":0},{"$f":"'Specifieke informatie A'!L124","v":0},{"$f":"'Specifieke informatie A'!L169","v":0}]
[null,null,null," Verzekerdenstand naar nominale premie",null,null,null,null,null,{"$f":"'Specifieke informatie A'!L86","v":0},{"$f":"'Specifieke informatie A'!L131","v":0},{"$f":"'Specifieke informatie A'!L176","v":0}]
[null,null,null," Verschil",null,null,null,null,null,{"$f":"IF(J12<>J13,J12-J13,\"\")","v":""},{"$f":"IF(K12<>K13,K12-K13,\"\")","v":""},{"$f":"IF(L12<>L13,L12-L13,\"\")","v":""}]
[]
[null,null,null," KOSTENSPECIFICATIES",null,null,null,null,null,"VOLGENS\nKOSTENVER- \nZAMELSTAAT","VOLGENS\nDETAIL- \nSPECIFICATIE ","VERSCHIL"]
[]
[null,null,null," Totaal kosten t.l.v. deelbijdragen (totaal lasten t/m rubriek 16)\n - inclusief balanspost",null,null,null,null,null,{"$f":"'Kostenverzamelstaat-2020'!I145","v":0},{"$f":"'Specifieke informatie A'!K19","v":0},{"$f":"IF(J18<>K18,J18-K18,\"\")","v":""}]
[]
[null,null,null," KOSTENVERZAMELSTAAT",null,null,null,null,null,"Kosten balanspost 2018","Kosten balanspost 2019","Kosten balanspost 2020"]
[]
[null,null,null," 503 Bijzondere betalingen",null,null,null,null,null,{"$f":"Kostenverzamelstaat!M16-Kostenverzamelstaat!N16","v":0},{"$f":"Kostenverzamelstaat!K16-Kostenverzamelstaat!L16","v":0},{"$f":"'Kostenverzamelstaat-2020'!I16-'Kostenverzamelstaat-2020'!J16","v":0}]
[null,null,null," 504 Avond-, nacht- en weekenddiensten",null,null,null,null,null,{"$f":"Kostenverzamelstaat!M17-Kostenverzamelstaat!N17","v":0},{"$f":"Kostenverzamelstaat!K17-Kostenverzamelstaat!L17","v":0},{"$f":"'Kostenverzamelstaat-2020'!I17-'Kostenverzamelstaat-2020'!J17","v":0}]
[null,null,null," 505 Inschrijftarieven",null,null,null,null,null,{"$f":"Kostenverzamelstaat!M18-Kostenverzamelstaat!N18","v":0},{"$f":"Kostenverzamelstaat!K18-Kostenverzamelstaat!L18","v":0},{"$f":"'Kostenverzamelstaat-2020'!I18-'Kostenverzamelstaat-2020'!J18","v":0}]
[null,null,null," 506 Consulttarieven",null,null,null,null,null,{"$f":"Kostenverzamelstaat!M19-Kostenverzamelstaat!N19","v":0},{"$f":"Kostenverzamelstaat!K19-Kostenverzamelstaat!L19","v":0},{"$f":"'Kostenverzamelstaat-2020'!I19-'Kostenverzamelstaat-2020'!J19","v":0}]
[null,null,null," 507 Overige tarieven",null,null,null,null,null,{"$f":"Kostenverzamelstaat!M20-Kostenverzamelstaat!N20","v":0},{"$f":"Kostenverzamelstaat!K20-Kostenverzamelstaat!L20","v":0},{"$f":"'Kostenverzamelstaat-2020'!I20-'Kostenverzamelstaat-2020'!J20","v":0}]
[null,null,null," 510 Multidisciplinaire zorg",null,null,null,null,null,{"$f":"Kostenverzamelstaat!M21-Kostenverzamelstaat!N21","v":0},{"$f":"Kostenverzamelstaat!K21-Kostenverzamelstaat!L21","v":0},{"$f":"'Kostenverzamelstaat-2020'!I21-'Kostenverzamelstaat-2020'!J21","v":0}]
[null,null,null," 515 Resultaatbeloning en zorgvernieuwing huisartsen",null,null,null,null,null,{"$f":"Kostenverzamelstaat!M22-Kostenverzamelstaat!N22","v":0},{"$f":"Kostenverzamelstaat!K22-Kostenverzamelstaat!L22","v":0},{"$f":"'Kostenverzamelstaat-2020'!I22-'Kostenverzamelstaat-2020'!J22","v":0}]
[null,null,null," 516 Resultaatbeloning en zorgvernieuwing MDZ",null,null,null,null,null,{"$f":"Kostenverzamelstaat!M23-Kostenverzamelstaat!N23","v":0},{"$f":"Kostenverzamelstaat!K23-Kostenverzamelstaat!L23","v":0},{"$f":"'Kostenverzamelstaat-2020'!I23-'Kostenverzamelstaat-2020'!J23","v":0}]
[null,null,null," 801 Meerkosten Corona type 2 tm 5 (incl. som opslagen HAZ)",null,null,null,null,null,null,null,{"$f":"'Kostenverzamelstaat-2020'!I24-'Kostenverzamelstaat-2020'!J24","v":0}]
[null,null,null," 821 Netto continuïteitsbijdrage Corona (basisverzekering)",null,null,null,null,null,null,null,{"$f":"'Kostenverzamelstaat-2020'!I25-'Kostenverzamelstaat-2020'!J25","v":0}]
[null,null,null," 520 Farmaceutische zorg",null,null,null,null,null,{"$f":"Kostenverzamelstaat!M26-Kostenverzamelstaat!N26","v":0},{"$f":"Kostenverzamelstaat!K26-Kostenverzamelstaat!L26","v":0},{"$f":"'Kostenverzamelstaat-2020'!I28-'Kostenverzamelstaat-2020'!J28","v":0}]
[null,null,null," 802 Meerkosten Corona type 2 tm 5 ",null,null,null,null,null,null,null,{"$f":"'Kostenverzamelstaat-2020'!I29-'Kostenverzamelstaat-2020'!J29","v":0}]
[null,null,null," 822 Netto continuïteitsbijdrage Corona (basisverzekering)",null,null,null,null,null,null,null,{"$f":"'Kostenverzamelstaat-2020'!I30-'Kostenverzamelstaat-2020'!J30","v":0}]
[null,null,null," 530 Kosten van verpleging en verzorging",null,null,null,null,null,{"$f":"Kostenverzamelstaat!M28-Kostenverzamelstaat!N28","v":0},{"$f":"Kostenverzamelstaat!K28-Kostenverzamelstaat!L28","v":0},{"$f":"'Kostenverzamelstaat-2020'!I33-'Kostenverzamelstaat-2020'!J33","v":0}]
[null,null,null," 803 Meerkosten Corona type 2 tm 5 ",null,null,null,null,null,null,null,{"$f":"'Kostenverzamelstaat-2020'!I34-'Kostenverzamelstaat-2020'!J34","v":0}]
[null,null,null," 823 Netto continuïteitsbijdrage Corona (basisverzekering)",null,null,null,null,null,null,null,{"$f":"'Kostenverzamelstaat-2020'!I35-'Kostenverzamelstaat-2020'!J35","v":0}]
[null,null,null," 545 Kosten specialisten mondziekten en kaakchirurgie",null,null,null,null,null,{"$f":"Kostenverzamelstaat!M51-Kostenverzamelstaat!N51","v":0},{"$f":"Kostenverzamelstaat!K51-Kostenverzamelstaat!L51","v":0},{"$f":"'Kostenverzamelstaat-2020'!I63-'Kostenverzamelstaat-2020'!J63","v":0}]
[null,null,null," 560.1 Kosten mondzorg volwassen verzekerden",null,null,null,null,null,{"$f":"Kostenverzamelstaat!M30-Kostenverzamelstaat!N30","v":0},{"$f":"Kostenverzamelstaat!K30-Kostenverzamelstaat!L30","v":0},{"$f":"'Kostenverzamelstaat-2020'!I38-'Kostenverzamelstaat-2020'!J38","v":0}]
[null,null,null," 560.2 Kosten mondzorg jeugdige verzekerden",null,null,null,null,null,{"$f":"Kostenverzamelstaat!M31-Kostenverzamelstaat!N31","v":0},{"$f":"Kostenverzamelstaat!K31-Kostenverzamelstaat!L31","v":0},{"$f":"'Kostenverzamelstaat-2020'!I39-'Kostenverzamelstaat-2020'!J39","v":0}]
[null,null,null," 561 Kosten gebitsprothesen",null,null,null,null,null,{"$f":"Kostenverzamelstaat!M32-Kostenverzamelstaat!N32","v":0},{"$f":"Kostenverzamelstaat!K32-Kostenverzamelstaat!L32","v":0},{"$f":"'Kostenverzamelstaat-2020'!I40-'Kostenverzamelstaat-2020'!J40","v":0}]
[null,null,null," 804 Meerkosten Corona type 2 tm 5 ",null,null,null,null,null,null,null,{"$f":"'Kostenverzamelstaat-2020'!I41-'Kostenverzamelstaat-2020'!J41","v":0}]
[null,null,null," 824 Netto continuïteitsbijdrage Corona (basisverzekering)",null,null,null,null,null,null,null,{"$f":"'Kostenverzamelstaat-2020'!I42-'Kostenverzamelstaat-2020'!J42","v":0}]
[null,null,null," 580 Kosten verloskundige zorg door verloskundigen",null,null,null,null,null,{"$f":"Kostenverzamelstaat!M35-Kostenverzamelstaat!N35","v":0},{"$f":"Kostenverzamelstaat!K35-Kostenverzamelstaat!L35","v":0},{"$f":"'Kostenverzamelstaat-2020'!I45-'Kostenverzamelstaat-2020'!J45","v":0}]
[null,null,null," 581 Kosten verloskundige zorg door huisartsen",null,null,null,null,null,{"$f":"Kostenverzamelstaat!M36-Kostenverzamelstaat!N36","v":0},{"$f":"Kostenverzamelstaat!K36-Kostenverzamelstaat!L36","v":0},{"$f":"Kostenverzamelstaat!I36-Kostenverzamelstaat!J36","v":0}]
[null,null,null," 582 Kosten Integrale geboortezorg ",null,null,null,null,null,{"$f":"Kostenverzamelstaat!M37-Kostenverzamelstaat!N37","v":0},{"$f":"Kostenverzamelstaat!K37-Kostenverzamelstaat!L37","v":0},{"$f":"'Kostenverzamelstaat-2020'!I46-'Kostenverzamelstaat-2020'!J46","v":0}]
[null,null,null," 805 Meerkosten Corona type 2 tm 5 ",null,null,null,null,null,null,null,{"$f":"'Kostenverzamelstaat-2020'!I47-'Kostenverzamelstaat-2020'!J47","v":0}]
[null,null,null," 825 Netto continuïteitsbijdrage Corona (basisverzekering)",null,null,null,null,null,null,null,{"$f":"'Kostenverzamelstaat-2020'!I48-'Kostenverzamelstaat-2020'!J48","v":0}]
[null,null,null," 610 Overige kosten ziekenhuiszorg en curatieve zorg",null,null,null,null,null,{"$f":"Kostenverzamelstaat!M52-Kostenverzamelstaat!N52","v":0},{"$f":"Kostenverzamelstaat!K52-Kostenverzamelstaat!L52","v":0},{"$f":"'Kostenverzamelstaat-2020'!I64-'Kostenverzamelstaat-2020'!J64","v":0}]
[null,null,null," 611 Overige zorgproducten",null,null,null,null,null,{"$f":"Kostenverzamelstaat!M53-Kostenverzamelstaat!N53","v":0},{"$f":"Kostenverzamelstaat!K53-Kostenverzamelstaat!L53","v":0},{"$f":"'Kostenverzamelstaat-2020'!I65-'Kostenverzamelstaat-2020'!J65","v":0}]
[null,null,null," 612 Kosten add-ons ",null,null,null,null,null,{"$f":"Kostenverzamelstaat!M54-Kostenverzamelstaat!N54","v":0}]
[null,null,null," 612.1 Kosten add-ons - Dure geneesmiddelen",null,null,null,null,null,{"$f":"Kostenverzamelstaat!M55-Kostenverzamelstaat!N55","v":0},{"$f":"Kostenverzamelstaat!K55-Kostenverzamelstaat!L55","v":0},{"$f":"'Kostenverzamelstaat-2020'!I66-'Kostenverzamelstaat-2020'!J66","v":0}]
[null,null,null," 612.2 Kosten add-ons - IC",null,null,null,null,null,{"$f":"Kostenverzamelstaat!M56-Kostenverzamelstaat!N56","v":0},{"$f":"Kostenverzamelstaat!K56-Kostenverzamelstaat!L56","v":0},{"$f":"'Kostenverzamelstaat-2020'!I67-'Kostenverzamelstaat-2020'!J67","v":0}]
[null,null,null," 613.1 Integrale kosten van DBC-zorgproduct gereguleerde segment ",null,null,null,null,null,{"$f":"Kostenverzamelstaat!M57-Kostenverzamelstaat!N57","v":0},{"$f":"Kostenverzamelstaat!K57-Kostenverzamelstaat!L57","v":0},{"$f":"'Kostenverzamelstaat-2020'!I68-'Kostenverzamelstaat-2020'!J68","v":0}]
[null,null,null," 615.1 Integrale kosten van DBC-zorgproduct vrije segment",null,null,null,null,null,{"$f":"Kostenverzamelstaat!M58-Kostenverzamelstaat!N58","v":0},{"$f":"Kostenverzamelstaat!K58-Kostenverzamelstaat!L58","v":0},{"$f":"'Kostenverzamelstaat-2020'!I69-'Kostenverzamelstaat-2020'!J69","v":0}]
[null,null,null," 619 Integrale kosten extramuraal werkende specialisten",null,null,null,null,null,{"$f":"Kostenverzamelstaat!M59-Kostenverzamelstaat!N59","v":0},{"$f":"Kostenverzamelstaat!K59-Kostenverzamelstaat!L59","v":0},{"$f":"'Kostenverzamelstaat-2020'!I70-'Kostenverzamelstaat-2020'!J70","v":0}]
[null,null,null," 806 Meerkosten Corona type 2 tm 5 ",null,null,null,null,null,null,null,{"$f":"'Kostenverzamelstaat-2020'!I71-'Kostenverzamelstaat-2020'!J71","v":0}]
[null,null,null," 826 Netto continuïteitsbijdrage Corona (basisverzekering)",null,null,null,null,null,null,null,{"$f":"'Kostenverzamelstaat-2020'!I72-'Kostenverzamelstaat-2020'!J72","v":0}]
[null,null,null," 620 Kosten fysiotherapie",null,null,null,null,null,{"$f":"Kostenverzamelstaat!M62-Kostenverzamelstaat!N62","v":0},{"$f":"Kostenverzamelstaat!K62-Kostenverzamelstaat!L62","v":0},{"$f":"'Kostenverzamelstaat-2020'!I75-'Kostenverzamelstaat-2020'!J75","v":0}]
[null,null,null," 621 Kosten oefentherapie Mensendieck/Cesar",null,null,null,null,null,{"$f":"Kostenverzamelstaat!M63-Kostenverzamelstaat!N63","v":0},{"$f":"Kostenverzamelstaat!K63-Kostenverzamelstaat!L63","v":0},{"$f":"'Kostenverzamelstaat-2020'!I76-'Kostenverzamelstaat-2020'!J76","v":0}]
[null,null,null," 623 Kosten logopedie",null,null,null,null,null,{"$f":"Kostenverzamelstaat!M64-Kostenverzamelstaat!N64","v":0},{"$f":"Kostenverzamelstaat!K64-Kostenverzamelstaat!L64","v":0},{"$f":"'Kostenverzamelstaat-2020'!I77-'Kostenverzamelstaat-2020'!J77","v":0}]
[]
[]
[]
[]
[null,null,null,{"$f":"NOW()","v":"2020-09-18T09:15:45.460"},null,null,null,null,null,null,null,{"$f":"CONCATENATE(\"Controleoverzicht \",LOWER(A6))","v":"Controleoverzicht pagina 1"}]
[]
["Pagina 2",null,null,{"$f":"CONCATENATE(\"KWARTAALSTAAT ZVW \", jaar_id,\" \",kwartaal_id,\"E KWARTAAL\")","v":"KWARTAALSTAAT ZVW 2020 3E KWARTAAL"}]
[null,null,null,"CONTROLEOVERZICHT"]
[null,null,null,{"$f":"IF(naw_uzovi_zorgverzekeraar<>\"0000\",CONCATENATE(UPPER(naw_naam_zorgverzekeraar),\", \",UPPER(naw_plaats_zorgverzekeraar)),\"\")","v":""},null,null,null,null,null,null,null,{"$f":"CONCATENATE(\"UZOVI: \",naw_uzovi_zorgverzekeraar)","v":"UZOVI: 0000"}]
[null,null,null,"SPECIFIEKE INFORMATIE A - vervolg"]
[null,null,null," KOSTENVERZAMELSTAAT",null,null,null,null,null,"Kosten balanspost 2018","Kosten balanspost 2019","Kosten balanspost 2020"]
[]
[null,null,null," 624 Kosten ergotherapie",null,null,null,null,null,{"$f":"Kostenverzamelstaat!M65-Kostenverzamelstaat!N65","v":0},{"$f":"Kostenverzamelstaat!K65-Kostenverzamelstaat!L65","v":0},{"$f":"'Kostenverzamelstaat-2020'!I78-'Kostenverzamelstaat-2020'!J78","v":0}]
[null,null,null," 625 Kosten dieetadvisering ",null,null,null,null,null,{"$f":"Kostenverzamelstaat!M66-Kostenverzamelstaat!N66","v":0},{"$f":"Kostenverzamelstaat!K66-Kostenverzamelstaat!L66","v":0},{"$f":"'Kostenverzamelstaat-2020'!I79-'Kostenverzamelstaat-2020'!J79","v":0}]
[null,null,null," 626 Gecombineerde Leefstijl Interventie (GLI)",null,null,null,null,null,{"$f":"Kostenverzamelstaat!M67-Kostenverzamelstaat!N67","v":0},{"$f":"Kostenverzamelstaat!K67-Kostenverzamelstaat!L67","v":0},{"$f":"'Kostenverzamelstaat-2020'!I80-'Kostenverzamelstaat-2020'!J80","v":0}]
[null,null,null," 807 Meerkosten Corona type 2 tm 5 ",null,null,null,null,null,null,null,{"$f":"'Kostenverzamelstaat-2020'!I81-'Kostenverzamelstaat-2020'!J81","v":0}]
[null,null,null," 827 Netto continuïteitsbijdrage Corona (basisverzekering)",null,null,null,null,null,null,null,{"$f":"'Kostenverzamelstaat-2020'!I82-'Kostenverzamelstaat-2020'!J82","v":0}]
[null,null,null," 640 Hulpmiddelenzorg",null,null,null,null,null,{"$f":"Kostenverzamelstaat!M70-Kostenverzamelstaat!N70","v":0},{"$f":"Kostenverzamelstaat!K70-Kostenverzamelstaat!L70","v":0},{"$f":"'Kostenverzamelstaat-2020'!I85-'Kostenverzamelstaat-2020'!J85","v":0}]
[null,null,null," 808 Meerkosten Corona type 2 tm 5 ",null,null,null,null,null,null,null,{"$f":"'Kostenverzamelstaat-2020'!I86-'Kostenverzamelstaat-2020'!J86","v":0}]
[null,null,null," 828 Netto continuïteitsbijdrage Corona (basisverzekering)",null,null,null,null,null,null,null,{"$f":"'Kostenverzamelstaat-2020'!I87-'Kostenverzamelstaat-2020'!J87","v":0}]
[null,null,null," 650 Kosten vervoer per ambulance/helikopter",null,null,null,null,null,{"$f":"Kostenverzamelstaat!M72-Kostenverzamelstaat!N72","v":0},{"$f":"Kostenverzamelstaat!K72-Kostenverzamelstaat!L72","v":0},{"$f":"'Kostenverzamelstaat-2020'!I90-'Kostenverzamelstaat-2020'!J90","v":0}]
[null,null,null," 650.1 Opbrengstenverrekeningen regionale ambulance-\n voorzieningen",null,null,null,null,null,{"$f":"Kostenverzamelstaat!M73-Kostenverzamelstaat!N73","v":0},{"$f":"Kostenverzamelstaat!K73-Kostenverzamelstaat!L73","v":0},{"$f":"'Kostenverzamelstaat-2020'!I91-'Kostenverzamelstaat-2020'!J91","v":0}]
[null,null,null," 651 Kosten vervoer per openbaar vervoer, taxi en eigen auto",null,null,null,null,null,{"$f":"Kostenverzamelstaat!M74-Kostenverzamelstaat!N74","v":0},{"$f":"Kostenverzamelstaat!K74-Kostenverzamelstaat!L74","v":0},{"$f":"'Kostenverzamelstaat-2020'!I92-'Kostenverzamelstaat-2020'!J92","v":0}]
[null,null,null," 809 Meerkosten Corona type 2 tm 5 ",null,null,null,null,null,null,null,{"$f":"'Kostenverzamelstaat-2020'!I93-'Kostenverzamelstaat-2020'!J93","v":0}]
[null,null,null," 829 Netto continuïteitsbijdrage Corona (basisverzekering)",null,null,null,null,null,null,null,{"$f":"'Kostenverzamelstaat-2020'!I94-'Kostenverzamelstaat-2020'!J94","v":0}]
[null,null,null," 661 Kosten specialistische GGZ met verblijf",null,null,null,null,null,{"$f":"Kostenverzamelstaat!M87-Kostenverzamelstaat!N87","v":0},{"$f":"Kostenverzamelstaat!K87-Kostenverzamelstaat!L87","v":0},{"$f":"'Kostenverzamelstaat-2020'!I108-'Kostenverzamelstaat-2020'!J108","v":0}]
[null,null,null," 661.1 Kosten LGGZ (langdurige GGZ, jaar 2 en 3)",null,null,null,null,null,{"$f":"Kostenverzamelstaat!M88-Kostenverzamelstaat!N88","v":0},{"$f":"Kostenverzamelstaat!K88-Kostenverzamelstaat!L88","v":0},{"$f":"'Kostenverzamelstaat-2020'!I109-'Kostenverzamelstaat-2020'!J109","v":0}]
[null,null,null," 662 Kosten specialistische GGZ zonder verblijf",null,null,null,null,null,{"$f":"Kostenverzamelstaat!M89-Kostenverzamelstaat!N89","v":0},{"$f":"Kostenverzamelstaat!K89-Kostenverzamelstaat!L89","v":0},{"$f":"'Kostenverzamelstaat-2020'!I110-'Kostenverzamelstaat-2020'!J110","v":0}]
[null,null,null," 665 Generalistische basis GGZ",null,null,null,null,null,{"$f":"Kostenverzamelstaat!M90-Kostenverzamelstaat!N90","v":0},{"$f":"Kostenverzamelstaat!K90-Kostenverzamelstaat!L90","v":0},{"$f":"'Kostenverzamelstaat-2020'!I111-'Kostenverzamelstaat-2020'!J111","v":0}]
[null,null,null," 810 Meerkosten Corona type 2 tm 5 ",null,null,null,null,null,null,null,{"$f":"'Kostenverzamelstaat-2020'!I112-'Kostenverzamelstaat-2020'!J112","v":0}]
[null,null,null," 830 Netto continuïteitsbijdrage Corona (basisverzekering)",null,null,null,null,null,null,{"$f":"Kostenverzamelstaat!K91-Kostenverzamelstaat!L91","v":0},{"$f":"'Kostenverzamelstaat-2020'!I113-'Kostenverzamelstaat-2020'!J113","v":0}]
[null,null,null," 670 Geriatrische revalidatiezorg",null,null,null,null,null,{"$f":"Kostenverzamelstaat!M94-Kostenverzamelstaat!N94","v":0},{"$f":"Kostenverzamelstaat!K94-Kostenverzamelstaat!L94","v":0},{"$f":"'Kostenverzamelstaat-2020'!I116-'Kostenverzamelstaat-2020'!J116","v":0}]
[null,null,null," 811.1 Meerkosten Corona type 2 tm 5 ",null,null,null,null,null,null,null,{"$f":"'Kostenverzamelstaat-2020'!I117-'Kostenverzamelstaat-2020'!J117","v":0}]
[null,null,null," 831.1 Netto continuïteitsbijdrage Corona (basisverzekering)",null,null,null,null,null,null,null,{"$f":"'Kostenverzamelstaat-2020'!I118-'Kostenverzamelstaat-2020'!J118","v":0}]
[null,null,null," 671 Eerstelijnsverblijf (ELV)",null,null,null,null,null,{"$f":"Kostenverzamelstaat!M95-Kostenverzamelstaat!N95","v":0},{"$f":"Kostenverzamelstaat!K95-Kostenverzamelstaat!L95","v":0},{"$f":"'Kostenverzamelstaat-2020'!I119-'Kostenverzamelstaat-2020'!J119","v":0}]
[null,null,null," 811.2 Meerkosten Corona type 2 tm 5 ",null,null,null,null,null,null,null,{"$f":"'Kostenverzamelstaat-2020'!I120-'Kostenverzamelstaat-2020'!J120","v":0}]
[null,null,null," 832.2 Netto continuïteitsbijdrage Corona (basisverzekering)",null,null,null,null,null,null,null,{"$f":"'Kostenverzamelstaat-2020'!I121-'Kostenverzamelstaat-2020'!J121","v":0}]
[null,null,null," 672 Geneeskundige  Zorg Specifieke Patiëntgroepen (GZSP)",null,null,null,null,null,null,null,{"$f":"'Kostenverzamelstaat-2020'!I122-'Kostenverzamelstaat-2020'!J122","v":0}]
[null,null,null," 811.3 Meerkosten Corona type 2 tm 5 ",null,null,null,null,null,null,null,{"$f":"'Kostenverzamelstaat-2020'!I123-'Kostenverzamelstaat-2020'!J123","v":0}]
[null,null,null," 831.3 Netto continuïteitsbijdrage Corona (basisverzekering)",null,null,null,null,null,null,null,{"$f":"'Kostenverzamelstaat-2020'!I124-'Kostenverzamelstaat-2020'!J124","v":0}]
[null,null,null," 680 Kraamzorg",null,null,null,null,null,{"$f":"Kostenverzamelstaat!M98-Kostenverzamelstaat!N98","v":0},{"$f":"Kostenverzamelstaat!K98-Kostenverzamelstaat!L98","v":0},{"$f":"'Kostenverzamelstaat-2020'!I127-'Kostenverzamelstaat-2020'!J127","v":0}]
[null,null,null," 812 Meerkosten Corona type 2 tm 5 ",null,null,null,null,null,null,null,{"$f":"'Kostenverzamelstaat-2020'!I128-'Kostenverzamelstaat-2020'!J128","v":0}]
[null,null,null," 832 Netto continuïteitsbijdrage Corona (basisverzekering)",null,null,null,null,null,null,null,{"$f":"'Kostenverzamelstaat-2020'!I129-'Kostenverzamelstaat-2020'!J129","v":0}]
[null,null,null," 700 Overige kosten",null,null,null,null,null,{"$f":"Kostenverzamelstaat!M100-Kostenverzamelstaat!N100","v":0},{"$f":"Kostenverzamelstaat!K100-Kostenverzamelstaat!L100","v":0},{"$f":"'Kostenverzamelstaat-2020'!I132-'Kostenverzamelstaat-2020'!J132","v":0}]
[null,null,null," 701 Overige geneeskundige zorg",null,null,null,null,null,{"$f":"Kostenverzamelstaat!M101-Kostenverzamelstaat!N101","v":0},{"$f":"Kostenverzamelstaat!K101-Kostenverzamelstaat!L101","v":0},{"$f":"'Kostenverzamelstaat-2020'!I133-'Kostenverzamelstaat-2020'!J133","v":0}]
[null,null,null," 702 Kosten van zorg zintuiglijk gehandicapten ",null,null,null,null,null,{"$f":"Kostenverzamelstaat!M102-Kostenverzamelstaat!N102","v":0},{"$f":"Kostenverzamelstaat!K102-Kostenverzamelstaat!L102","v":0},{"$f":"'Kostenverzamelstaat-2020'!I134-'Kostenverzamelstaat-2020'!J134","v":0}]
[null,null,null," 813 Meerkosten Corona type 2 tm 5 ",null,null,null,null,null,null,null,{"$f":"'Kostenverzamelstaat-2020'!I135-'Kostenverzamelstaat-2020'!J135","v":0}]
[null,null,null," 833 Netto continuïteitsbijdrage Corona (basisverzekering)",null,null,null,null,null,null,null,{"$f":"'Kostenverzamelstaat-2020'!I136-'Kostenverzamelstaat-2020'!J136","v":0}]
[null,null,null," 720 Kosten via verzekeraar",null,null,null,null,null,{"$f":"Kostenverzamelstaat!M105-Kostenverzamelstaat!N105","v":0},{"$f":"Kostenverzamelstaat!K105-Kostenverzamelstaat!L105","v":0},{"$f":"'Kostenverzamelstaat-2020'!I139-'Kostenverzamelstaat-2020'!J139","v":0}]
[null,null,null," 721 Kosten via verbindingsorgaan",null,null,null,null,null,{"$f":"Kostenverzamelstaat!M106-Kostenverzamelstaat!N106","v":0},{"$f":"Kostenverzamelstaat!K106-Kostenverzamelstaat!L106","v":0},{"$f":"'Kostenverzamelstaat-2020'!I140-'Kostenverzamelstaat-2020'!J140","v":0}]
[null,null,null," 730 Kwaliteitsgelden",null,null,null,null,null,{"$f":"Kostenverzamelstaat!M109-Kostenverzamelstaat!N109","v":0},{"$f":"Kostenverzamelstaat!K109-Kostenverzamelstaat!L109","v":0},{"$f":"'Kostenverzamelstaat-2020'!I143-'Kostenverzamelstaat-2020'!J143","v":0}]
[]
[null,null,null,"VERGELIJKING SPECIFIEKE INFORMATIE A EN C"]
[null,null,null,"KOSTEN PER CODENUMMER\n(ONTVANGEN EN GEACCEPTEERDE DECLARATIES \nT/M 2E KWARTAAL 2020)",null,null,null,null,null,"Spec. inform. A\nkostenver-\nzamelstaat","Spec. inform. C\ndetail-\ninformatie","VERSCHIL"]
[]
[null,null,null," 503 Bijzondere betalingen",null,null,null,null,null,0,0,0]
[null,null,null," 506 Consulttarieven",null,null,null,null,null,0,0,0]
[null,null,null," 507 Overige tarieven",null,null,null,null,null,0,0,0]
[null,null,null," 510 Multidisciplinaire zorg",null,null,null,null,null,0,0,0]
[null,null,null," 515 Resultaatbeloning en zorgvernieuwing huisartsen",null,null,null,null,null,0,0,0]
[null,null,null," 516 Resultaatbeloning en zorgvernieuwing MDZ",null,null,null,null,null,0,0,0]
[null,null,null," 610 Overige kosten ziekenhuiszorg en curatieve zorg",null,null,null,null,null,{"$f":"'Kostenverzamelstaat-2020'!J64","v":0},{"$f":"'Specifieke informatie C'!H103","v":0},{"$f":"J123-K123","v":0}]
[null,null,null," 611 Overige zorgproducten (naar instelling)",null,null,null,null,null,{"$f":"'Kostenverzamelstaat-2020'!J65","v":0},{"$f":"'Specifieke informatie C'!H113","v":0},0]
[null,null,null," 612.1 Kosten add-ons - Dure geneesmiddelen",null,null,null,null,null,{"$f":"'Kostenverzamelstaat-2020'!J66","v":0},{"$f":"'Specifieke informatie C'!H122","v":0},0]
[null,null,null," 612.2  Kosten add-ons - IC",null,null,null,null,null,{"$f":"'Kostenverzamelstaat-2020'!J67","v":0},{"$f":"'Specifieke informatie C'!H131","v":0},0]
[null,null,null," 613.1 Integrale kosten DBC-zorgproduct gereguleerd segment",null,null,null,null,null,{"$f":"'Kostenverzamelstaat-2020'!J68","v":0},{"$f":"'Specifieke informatie C'!H147","v":0},0]
[null,null,null," 615.1 Integrale kosten DBC-zorgproduct vrije segment",null,null,null,null,null,{"$f":"'Kostenverzamelstaat-2020'!J69","v":0},{"$f":"'Specifieke informatie C'!H156","v":0},0]
[]
[]
[null,null,null,{"$f":"NOW()","v":"2020-09-18T09:15:45.460"},null,null,null,null,null,null,null,{"$f":"CONCATENATE(\"Controleoverzicht \",LOWER(A68))","v":"Controleoverzicht pagina 2"}]
[]
["Pagina 3",null,null,{"$f":"CONCATENATE(\"KWARTAALSTAAT ZVW \", jaar_id,\" \",kwartaal_id,\"E KWARTAAL\")","v":"KWARTAALSTAAT ZVW 2020 3E KWARTAAL"}]
[null,null,null,"CONTROLEOVERZICHT"]
[null,null,null,{"$f":"IF(naw_uzovi_zorgverzekeraar<>\"0000\",CONCATENATE(UPPER(naw_naam_zorgverzekeraar),\", \",UPPER(naw_plaats_zorgverzekeraar)),\"\")","v":""},null,null,null,null,null,null,null,{"$f":"CONCATENATE(\"UZOVI: \",naw_uzovi_zorgverzekeraar)","v":"UZOVI: 0000"}]
[]
[null,null,null,"VERGELIJKING SPECIFIEKE INFORMATIE A EN C - vervolg"]
[null,null,null,"KOSTEN PER CODENUMMER \n(ONTVANGEN EN GEACCEPTEERDE DECLARATIES \n T/M 2E KWARTAAL 2020)",null,null,null,null,null,"Spec. inform. A\nkostenver-\nzamelstaat","Spec. inform. C\ndetail-\ninformatie","VERSCHIL"]
[]
[null,null,null," 700 Overige kosten",null,null,null,null,null,0,0,0]
[null,null,null," 701 Overige geneeskundige zorg",null,null,null,null,null,0,0,0]
[null,null,null," 702 Kosten van zorg zintuiglijk gehandicapten ",null,null,null,null,null,0,0,0]
[]
[null,null,null," KOSTEN PER CODENUMMER (KOSTEN INCLUSIEF BALANSPOST) 2020",null,null,null,null,null,"Spec. inform. A\nkostenver-\nzamelstaat","Spec. inform. C\ndetail-\ninformatie","VERSCHIL"]
[]
[null,null,null," 610 Overige kosten ziekenhuiszorg en curatieve zorg",null,null,null,null,null,{"$f":"'Kostenverzamelstaat-2020'!I64","v":0},{"$f":"'Specifieke informatie C'!G103","v":0},{"$f":"J146-K146","v":0}]
[null,null,null," 611 Overige zorgproducten (naar instelling)",null,null,null,null,null,{"$f":"'Kostenverzamelstaat-2020'!I65","v":0},{"$f":"'Specifieke informatie C'!G113","v":0},0]
[null,null,null," 612.1 Kosten add-ons - Dure geneesmiddelen",null,null,null,null,null,{"$f":"'Kostenverzamelstaat-2020'!I66","v":0},{"$f":"'Specifieke informatie C'!G122","v":0},0]
[null,null,null," 612.2  Kosten add-ons - IC",null,null,null,null,null,{"$f":"'Kostenverzamelstaat-2020'!I67","v":0},{"$f":"'Specifieke informatie C'!G131","v":0},0]
[null,null,null," 613.1 Integrale kosten DBC-zorgproduct gereguleerd segment",null,null,null,null,null,{"$f":"'Kostenverzamelstaat-2020'!I68","v":0},{"$f":"'Specifieke informatie C'!G147","v":0},0]
[null,null,null," 615.1 Integrale kosten DBC-zorgproduct vrije segment",null,null,null,null,null,{"$f":"'Kostenverzamelstaat-2020'!I69","v":0},{"$f":"'Specifieke informatie C'!G156","v":0},0]
[]
[null,null,null," KOSTEN PER CODENUMMER (KOSTEN INCLUSIEF BALANSPOST) 2019",null,null,null,null,null,"Spec. inform. A\nkostenver-\nzamelstaat","Spec. inform. C\ndetail-\ninformatie","VERSCHIL"]
[]
[null,null,null," 610 Overige kosten ziekenhuiszorg en curatieve zorg",null,null,null,null,null,{"$f":"Kostenverzamelstaat!K52","v":0},{"$f":"'Specifieke informatie C'!I103","v":0},{"$f":"J155-K155","v":0}]
[null,null,null," 611 Overige zorgproducten (naar instelling)",null,null,null,null,null,{"$f":"Kostenverzamelstaat!K53","v":0},{"$f":"'Specifieke informatie C'!I113","v":0},0]
[null,null,null," 612.1 Kosten add-ons - Dure geneesmiddelen",null,null,null,null,null,{"$f":"Kostenverzamelstaat!K55","v":0},{"$f":"'Specifieke informatie C'!I122","v":0},0]
[null,null,null," 612.2  Kosten add-ons - IC",null,null,null,null,null,{"$f":"Kostenverzamelstaat!K56","v":0},{"$f":"'Specifieke informatie C'!I131","v":0},0]
[null,null,null," 613.1 Integrale kosten DBC-zorgproduct gereguleerd segment",null,null,null,null,null,{"$f":"Kostenverzamelstaat!K57","v":0},{"$f":"'Specifieke informatie C'!I147","v":0},0]
[null,null,null," 615.1 Integrale kosten DBC-zorgproduct vrije segment",null,null,null,null,null,{"$f":"Kostenverzamelstaat!K58","v":0},{"$f":"'Specifieke informatie C'!I156","v":0},0]
[]
[null,null,null,{"$f":"NOW()","v":"2020-09-18T09:15:45.460"},null,null,null,null,null,null,null,{"$f":"CONCATENATE(\"Controleoverzicht \",LOWER(A133))","v":"Controleoverzicht pagina 3"}]
[]
["Pagina 4",null,null,{"$f":"CONCATENATE(\"KWARTAALSTAAT ZVW \", jaar_id,\" \",kwartaal_id,\"E KWARTAAL\")","v":"KWARTAALSTAAT ZVW 2020 3E KWARTAAL"}]
[null,null,null,"CONTROLEOVERZICHT"]
[null,null,null,{"$f":"IF(naw_uzovi_zorgverzekeraar<>\"0000\",CONCATENATE(UPPER(naw_naam_zorgverzekeraar),\", \",UPPER(naw_plaats_zorgverzekeraar)),\"\")","v":""},null,null,null,null,null,null,null,{"$f":"CONCATENATE(\"UZOVI: \",naw_uzovi_zorgverzekeraar)","v":"UZOVI: 0000"}]
[]
[]
[null,null,null,"VERGELIJKING SPECIFIEKE INFORMATIE A EN C - vervolg"]
[null,null,null," KOSTEN PER CODENUMMER \n (KOSTEN INCLUSIEF BALANSPOST) 2018 EN OUDER",null,null,null,null,null,"Spec. inform. A\nkostenver-\nzamelstaat","Spec. inform. C\ndetail-\ninformatie","VERSCHIL"]
[]
[null,null,null," 610 Overige kosten ziekenhuiszorg en curatieve zorg",null,null,null,null,null,{"$f":"Kostenverzamelstaat!M52","v":0},{"$f":"'Specifieke informatie C'!K103","v":0},{"$f":"J172-K172","v":0}]
[null,null,null," 611 Overige zorgproducten (naar instelling)",null,null,null,null,null,{"$f":"Kostenverzamelstaat!M53","v":0},{"$f":"'Specifieke informatie C'!K113","v":0},0]
[null,null,null," 612 Kosten add-on's ",null,null,null,null,null,{"$f":"Kostenverzamelstaat!M54","v":0},{"$f":"SUM('Specifieke informatie C'!K122+'Specifieke informatie C'!K131)","v":0},0]
[null,null,null," 613.1 Integrale kosten DBC-zorgproduct gereguleerd segment",null,null,null,null,null,{"$f":"Kostenverzamelstaat!M57","v":0},{"$f":"'Specifieke informatie C'!K147","v":0},0]
[null,null,null," 615.1 Integrale kosten DBC-zorgproduct vrije segment",null,null,null,null,null,{"$f":"Kostenverzamelstaat!M58","v":0},{"$f":"'Specifieke informatie C'!K156","v":0},0]
[]
[null,null,null,"KOSTEN PER CODENUMMER \n(ONTVANGEN EN GEACCEPTEERDE DECLARATIES \n M.B.T. 2018 EN OUDER)",null,null,null,null,null,"Spec. inform. A\nkostenver-\nzamelstaat","Spec. inform. C\ndetail-\ninformatie","VERSCHIL"]
[]
[null,null,null," 610 Overige kosten ziekenhuiszorg en curatieve zorg",null,null,null,null,null,{"$f":"Kostenverzamelstaat!N52","v":0},{"$f":"'Specifieke informatie C'!L103","v":0},{"$f":"J180-K180","v":0}]
[null,null,null," 611 Overige zorgproducten (naar instelling)",null,null,null,null,null,{"$f":"Kostenverzamelstaat!N53","v":0},{"$f":"'Specifieke informatie C'!L113","v":0},0]
[null,null,null," 612 Kosten add-on's ",null,null,null,null,null,{"$f":"Kostenverzamelstaat!N54","v":0},{"$f":"SUM('Specifieke informatie C'!L122+'Specifieke informatie C'!L131)","v":0},0]
[null,null,null," 613.1 Integrale kosten DBC-zorgproduct gereguleerd segment",null,null,null,null,null,{"$f":"Kostenverzamelstaat!N57","v":0},{"$f":"'Specifieke informatie C'!L147","v":0},0]
[null,null,null," 615.1 Integrale kosten DBC-zorgproduct vrije segment",null,null,null,null,null,{"$f":"Kostenverzamelstaat!N58","v":0},{"$f":"'Specifieke informatie C'!L156","v":0},0]
[]
[null,null,null," Controle code 505 kostenverzamelstaat",null,null,null,null,null,null,null,{"$f":"'Kostenverzamelstaat-2020'!I18","v":0}]
[null,null,null," Kosten per verzekerde o.b.v. laatst bekende verzekerdenstand (in hele euro's)",null,null,null,null,null,null,null,{"$f":"IF(L186<>0,(L186/L12),0)","v":0}]
[null,null,null,{"$f":"IF(OR(L187>kwartaal_id*112),\"Attentiebericht: Kosten per verzekerde liggen buiten het verwachte bereik. Controleer de kostenverzamelstaat!\",\"\")","v":""}]
[]
[null,null,null,"VERGELIJKING SPECIFIEKE INFORMATIE A EN C (Contractinformatie)"]
[null,null,null," KOSTEN PER RUBRIEK OF CODENUMMER \n (KOSTEN INCLUSIEF BALANSPOST) 2018",null,null,null,null,null,"Spec. inform. A\nkostenver-\nzamelstaat","Spec. inform. C\ncontract-\ninformatie","VERSCHIL"]
[]
[null,null,null," Huisartsenzorg en Multidisciplinaire zorg, rubriek 01",null,null,null,null,null,0,0,0]
[null,null,null," Verpleging en Verzorging, rubriek 03",null,null,null,null,null,0,0,0]
[null,null,null," Medisch Specialistische zorg, rubriek 06",null,null,null,null,null,0,0,0]
[null,null,null," Geneeskundige Geestelijke Gezondheidszorg, rubriek 10",null,null,null,null,null,0,0,0]
[null,null,null," Geriatrische Revalidatie, Eerstelijnsverblijf en Geneeskundige zorg specifieke patinetgroepen, rubriek 11",null,null,null,null,null,0,0,0]
[null,null,null," Zintuiglijk Gehandicapten, code 702",null,null,null,null,null,0,0,0]
[null,null,null,{"$f":"NOW()","v":"2020-09-18T09:15:45.460"},null,null,null,null,null,null,null,{"$f":"CONCATENATE(\"Controleoverzicht \",LOWER(A164))","v":"Controleoverzicht pagina 4"}]

{"sheet":"Blad1","index":12,"n_rows":876,"n_cols":17,"rows_kept":876,"cut":false,"hidden":true,"merged":[]}
[]
[]
[]
[]
[]
[]
[]
[]
[]
[]
[]
[null,null,null,null,"vcd_spec_idvar","vcd_waarde_flt","vcd_waarde_txt","vcd_toelichting_txt","vcd_spec1_idvar","vcd_spec2_idvar","vcd_spec3_idvar","vcd_attrib_idvar","vcd_eenheid_txt","vcd_dsnorder_flt","vcd_datatype_txt","vcd_format_txt","vcd_eenheid_flt"]
[null,null,null,null,"xstaat_kdrwet_id_","*=0","ZVQ3","Excel numeriek om te zetten sleutel kdrwet via waarden","xstaat","kdrwet","id","","",null,"C",""]
[null,null,null,null,"xstaat_kdrwet_idjmd_","*=0",20200930,"Excel numeriek om te zetten sleutel kdrwet periode","xstaat","kdrwet","idjmd","","",null,"C",""]
[null,null,null,null,"xstaat_uzovi_filename_","*=0","*=CEL(\"bestandsnaam\")","Excel numeriek filenaam bevat ook sleutels","xstaat","uzovi","filename","","",null,"C",""]
[null,null,null,null,"xstaat_uzovi_id_","*=0","*=NUMERIEKE.WAARDE(NAW_gegevens!$C$6)","Excel numeriek om te zetten sleutel uzovi","xstaat","uzovi","id","","",null,"C",""]
[null,null,null,null,"xstaat_uzovi_idvrs_","*=0","01","Excel numeriek om te zetten sleutel uzovi versie levering","xstaat","uzovi","idvrs","","",null,"C",""]
[null,null,null,null,"zvkx01_a503__TY0V01","*='Kostenverzamelstaat-2020'!$J$16","","Huisartsen- bijz betalingen- geaccepteerd","zvkx01","a503","","TY0V01","Euro's",null,"N","",1]
[null,null,null,null,"zvkx01_a503__TY1V01","*=Kostenverzamelstaat!$L$16","","Huisartsen- bijz betalingen- geaccepteerd","zvkx01","a503","","TY1V01","Euro's",null,"N","",1]
[null,null,null,null,"zvkx01_a503__TY2V01","*=Kostenverzamelstaat!$N$16","","Huisartsen- bijz betalingen- geaccepteerd","zvkx01","a503","","TY2V01","Euro's",null,"N","",1]
[null,null,null,null,"zvkx01_a504__TY0V01","*='Kostenverzamelstaat-2020'!$J$17","","Huisartsen- bijz diensttijden- geaccepteerd","zvkx01","a504","","TY0V01","Euro's",null,"N","",1]
[null,null,null,null,"zvkx01_a504__TY1V01","*=Kostenverzamelstaat!$L$17","","Huisartsen- bijz diensttijden- geaccepteerd","zvkx01","a504","","TY1V01","Euro's",null,"N","",1]
[null,null,null,null,"zvkx01_a504__TY2V01","*=Kostenverzamelstaat!$N$17","","Huisartsen- bijz diensttijden- geaccepteerd","zvkx01","a504","","TY2V01","Euro's",null,"N","",1]
[null,null,null,null,"zvkx01_a505__TY0V01","*='Kostenverzamelstaat-2020'!$J$18","","Huisartsen- Inschrijvingen- geaccepteerd","zvkx01","a505","","TY0V01","Euro's",null,"N","",1]
[null,null,null,null,"zvkx01_a505__TY1V01","*=Kostenverzamelstaat!$L$18","","Huisartsen- Inschrijvingen- geaccepteerd","zvkx01","a505","","TY1V01","Euro's",null,"N","",1]
[null,null,null,null,"zvkx01_a505__TY2V01","*=Kostenverzamelstaat!$N$18","","Huisartsen- Inschrijvingen- geaccepteerd","zvkx01","a505","","TY2V01","Euro's",null,"N","",1]
[null,null,null,null,"zvkx01_a506__TY0V01","*='Kostenverzamelstaat-2020'!$J$19","","Huisartsen- Consult- geaccepteerd","zvkx01","a506","","TY0V01","Euro's",null,"N","",1]
[null,null,null,null,"zvkx01_a506__TY1V01","*=Kostenverzamelstaat!$L$19","","Huisartsen- Consult- geaccepteerd","zvkx01","a506","","TY1V01","Euro's",null,"N","",1]
[null,null,null,null,"zvkx01_a506__TY2V01","*=Kostenverzamelstaat!$N$19","","Huisartsen- Consult- geaccepteerd","zvkx01","a506","","TY2V01","Euro's",null,"N","",1]
[null,null,null,null,"zvkx01_a507__TY0V01","*='Kostenverzamelstaat-2020'!$J$20","","Huisartsen- Overige- geaccepteerd","zvkx01","a507","","TY0V01","Euro's",null,"N","",1]
[null,null,null,null,"zvkx01_a507__TY1V01","*=Kostenverzamelstaat!$L$20","","Huisartsen- Overige- geaccepteerd","zvkx01","a507","","TY1V01","Euro's",null,"N","",1]
[null,null,null,null,"zvkx01_a507__TY2V01","*=Kostenverzamelstaat!$N$20","","Huisartsen- Overige- geaccepteerd","zvkx01","a507","","TY2V01","Euro's",null,"N","",1]
[null,null,null,null,"zvkx01_a510__TY0V01","*='Kostenverzamelstaat-2020'!$J$21","","Huisartsen- MDZ- geaccepteerd","zvkx01","a510","","TY0V01","Euro's",null,"N","",1]
[null,null,null,null,"zvkx01_a510__TY1V01","*=Kostenverzamelstaat!$L$21","","Huisartsen- MDZ- geaccepteerd","zvkx01","a510","","TY1V01","Euro's",null,"N","",1]
[null,null,null,null,"zvkx01_a510__TY2V01","*=Kostenverzamelstaat!$N$21","","Huisartsen- MDZ- geaccepteerd","zvkx01","a510","","TY2V01","Euro's",null,"N","",1]
[null,null,null,null,"zvkx01_a515__TY0V01","*='Kostenverzamelstaat-2020'!$J$22","","Huisartsen- Resultaatbel. huisartsen- geaccepteerd","zvkx01","a515","","TY0V01","Euro's",null,"N","",1]
[null,null,null,null,"zvkx01_a515__TY1V01","*=Kostenverzamelstaat!$L$22","","Huisartsen- Resultaatbel. huisartsen- geaccepteerd","zvkx01","a515","","TY1V01","Euro's",null,"N","",1]
[null,null,null,null,"zvkx01_a515__TY2V01","*=Kostenverzamelstaat!$N$22","","Huisartsen- Resultaatbel. huisartsen- geaccepteerd","zvkx01","a515","","TY2V01","Euro's",null,"N","",1]
[null,null,null,null,"zvkx01_a516__TY0V01","*='Kostenverzamelstaat-2020'!$J$23","","Huisartsen- Resultaatbel. MDZ- geaccepteerd","zvkx01","a516","","TY0V01","Euro's",null,"N","",1]
[null,null,null,null,"zvkx01_a516__TY1V01","*=Kostenverzamelstaat!$L$23","","Huisartsen- Resultaatbel. MDZ- geaccepteerd","zvkx01","a516","","TY1V01","Euro's",null,"N","",1]
[null,null,null,null,"zvkx01_a516__TY2V01","*=Kostenverzamelstaat!$N$23","","Huisartsen- Resultaatbel. MDZ- geaccepteerd","zvkx01","a516","","TY2V01","Euro's",null,"N","",1]
[null,null,null,null,"zvkx01_a801__TY0V01","*='Kostenverzamelstaat-2020'!$J$24",null,"Huisartsen- Meerkosten Corona type 2 tm 5 (incl. som opslagen HAZ)- geaccepteerd","zvkx01","a801",null,"TY0V01","Euro's",null,"N","",1]
[null,null,null,null,"zvkx01_a821__TY0V01","*='Kostenverzamelstaat-2020'!$J$25",null,"Huisartsen- Netto continuïteitsbijdrage Corona (basisverzekering)- geaccepteerd","zvkx01","a821",null,"TY0V01","Euro's",null,"N","",1]
[null,null,null,null,"zvkx01_ac503__TY0V01","*='Kostenverzamelstaat-2020'!$L$16","","Huisartsen- bijz betalingen-kst Corona- geaccepteerd","zvkx01","ac503","","TY0V01","Euro's",null,"N","",1]
[null,null,null,null,"zvkx01_ac504__TY0V01","*='Kostenverzamelstaat-2020'!$L$17","","Huisartsen- bijz diensttijden- kst Corona- geaccepteerd","zvkx01","ac504","","TY0V01","Euro's",null,"N","",1]
[null,null,null,null,"zvkx01_ac505__TY0V01","*='Kostenverzamelstaat-2020'!$L$18","","Huisartsen- Inschrijvingen- kst Corona- geaccepteerd","zvkx01","ac505","","TY0V01","Euro's",null,"N","",1]
[null,null,null,null,"zvkx01_ac506__TY0V01","*='Kostenverzamelstaat-2020'!$L$19","","Huisartsen- Consult- kst Corona- geaccepteerd","zvkx01","ac506","","TY0V01","Euro's",null,"N","",1]
[null,null,null,null,"zvkx01_ac507__TY0V01","*='Kostenverzamelstaat-2020'!$L$20","","Huisartsen- Overige- kst Corona- geaccepteerd","zvkx01","ac507","","TY0V01","Euro's",null,"N","",1]
[null,null,null,null,"zvkx01_ac510__TY0V01","*='Kostenverzamelstaat-2020'!$L$21","","Huisartsen- MDZ- kst Corona- geaccepteerd","zvkx01","ac510","","TY0V01","Euro's",null,"N","",1]
[null,null,null,null,"zvkx01_ac515__TY0V01","*='Kostenverzamelstaat-2020'!$L$22","","Huisartsen- Resultaatbel. huisartsen- kst Corona- geaccepteerd","zvkx01","ac515","","TY0V01","Euro's",null,"N","",1]
[null,null,null,null,"zvkx01_ac516__TY0V01","*='Kostenverzamelstaat-2020'!$L$23","","Huisartsen- Resultaatbel. MDZ- kst Corona- geaccepteerd","zvkx01","ac516","","TY0V01","Euro's",null,"N","",1]
[null,null,null,null,"zvkx01_ac801__TY0V01","*='Kostenverzamelstaat-2020'!$L$24",null,"Huisartsen- Meerkosten Corona type 2 tm 5 (incl. som opslagen HAZ)- kst Corona- geaccepteerd","zvkx01","ac801",null,"TY0V01","Euro's",null,"N","",1]
[null,null,null,null,"zvkx01_c503__TY0V01","*='Kostenverzamelstaat-2020'!$I$16","","Huisartsen- bijz betalingen- incl balans","zvkx01","c503","","TY0V01","Euro's",null,"N","",1]
[null,null,null,null,"zvkx01_c503__TY1V01","*=Kostenverzamelstaat!$K$16","","Huisartsen- bijz betalingen- incl balans","zvkx01","c503","","TY1V01","Euro's",null,"N","",1]
[null,null,null,null,"zvkx01_c503__TY2V01","*=Kostenverzamelstaat!$M$16","","Huisartsen- bijz betalingen- incl balans","zvkx01","c503","","TY2V01","Euro's",null,"N","",1]
[null,null,null,null,"zvkx01_c504__TY0V01","*='Kostenverzamelstaat-2020'!$I$17","","Huisartsen- bijz diensttijden- incl balans","zvkx01","c504","","TY0V01","Euro's",null,"N","",1]
[null,null,null,null,"zvkx01_c504__TY1V01","*=Kostenverzamelstaat!$K$17","","Huisartsen- bijz diensttijden- incl balans","zvkx01","c504","","TY1V01","Euro's",null,"N","",1]
[null,null,null,null,"zvkx01_c504__TY2V01","*=Kostenverzamelstaat!$M$17","","Huisartsen- bijz diensttijden- incl balans","zvkx01","c504","","TY2V01","Euro's",null,"N","",1]
[null,null,null,null,"zvkx01_c505__TY0V01","*='Kostenverzamelstaat-2020'!$I$18","","Huisartsen- Inschrijvingen- incl balans","zvkx01","c505","","TY0V01","Euro's",null,"N","",1]
[null,null,null,null,"zvkx01_c505__TY1V01","*=Kostenverzamelstaat!$K$18","","Huisartsen- Inschrijvingen- incl balans","zvkx01","c505","","TY1V01","Euro's",null,"N","",1]
[null,null,null,null,"zvkx01_c505__TY2V01","*=Kostenverzamelstaat!$M$18","","Huisartsen- Inschrijvingen- incl balans","zvkx01","c505","","TY2V01","Euro's",null,"N","",1]
[null,null,null,null,"zvkx01_c506__TY0V01","*='Kostenverzamelstaat-2020'!$I$19","","Huisartsen- Consult- incl balans","zvkx01","c506","","TY0V01","Euro's",null,"N","",1]
[null,null,null,null,"zvkx01_c506__TY1V01","*=Kostenverzamelstaat!$K$19","","Huisartsen- Consult- incl balans","zvkx01","c506","","TY1V01","Euro's",null,"N","",1]
[null,null,null,null,"zvkx01_c506__TY2V01","*=Kostenverzamelstaat!$M$19","","Huisartsen- Consult- incl balans","zvkx01","c506","","TY2V01","Euro's",null,"N","",1]
[null,null,null,null,"zvkx01_c507__TY0V01","*='Kostenverzamelstaat-2020'!$I$20","","Huisartsen- Overige- incl balans","zvkx01","c507","","TY0V01","Euro's",null,"N","",1]
[null,null,null,null,"zvkx01_c507__TY1V01","*=Kostenverzamelstaat!$K$20","","Huisartsen- Overige- incl balans","zvkx01","c507","","TY1V01","Euro's",null,"N","",1]
[null,null,null,null,"zvkx01_c507__TY2V01","*=Kostenverzamelstaat!$M$20","","Huisartsen- Overige- incl balans","zvkx01","c507","","TY2V01","Euro's",null,"N","",1]
[null,null,null,null,"zvkx01_c510__TY0V01","*='Kostenverzamelstaat-2020'!$I$21","","Huisartsen- MDZ- incl balans","zvkx01","c510","","TY0V01","Euro's",null,"N","",1]
[null,null,null,null,"zvkx01_c510__TY1V01","*=Kostenverzamelstaat!$K$21","","Huisartsen- MDZ- incl balans","zvkx01","c510","","TY1V01","Euro's",null,"N","",1]
[null,null,null,null,"zvkx01_c510__TY2V01","*=Kostenverzamelstaat!$M$21","","Huisartsen- MDZ- incl balans","zvkx01","c510","","TY2V01","Euro's",null,"N","",1]
[null,null,null,null,"zvkx01_c515__TY0V01","*='Kostenverzamelstaat-2020'!$I$22","","Huisartsen- Resultaatbel. huisartsen- incl balans","zvkx01","c515","","TY0V01","Euro's",null,"N","",1]
[null,null,null,null,"zvkx01_c515__TY1V01","*=Kostenverzamelstaat!$K$22","","Huisartsen- Resultaatbel. huisartsen- incl balans","zvkx01","c515","","TY1V01","Euro's",null,"N","",1]
[null,null,null,null,"zvkx01_c515__TY2V01","*=Kostenverzamelstaat!$M$22","","Huisartsen- Resultaatbel. huisartsen- incl balans","zvkx01","c515","","TY2V01","Euro's",null,"N","",1]
[null,null,null,null,"zvkx01_c516__TY0V01","*='Kostenverzamelstaat-2020'!$I$23","","Huisartsen- Resultaatbel. MDZ- incl balans","zvkx01","c516","","TY0V01","Euro's",null,"N","",1]
[null,null,null,null,"zvkx01_c516__TY1V01","*=Kostenverzamelstaat!$K$23","","Huisartsen- Resultaatbel. MDZ- incl balans","zvkx01","c516","","TY1V01","Euro's",null,"N","",1]
[null,null,null,null,"zvkx01_c516__TY2V01","*=Kostenverzamelstaat!$M$23","","Huisartsen- Resultaatbel. MDZ- incl balans","zvkx01","c516","","TY2V01","Euro's",null,"N","",1]
[null,null,null,null,"zvkx01_c801__TY0V01","*='Kostenverzamelstaat-2020'!$I$24",null,"Huisartsen- Meerkosten Corona type 2 tm 5 (incl. som opslagen HAZ)- incl balans","zvkx01","c801",null,"TY0V01","Euro's",null,"N","",1]
[null,null,null,null,"zvkx01_c821__TY0V01","*='Kostenverzamelstaat-2020'!$I$25",null,"Huisartsen- Netto continuïteitsbijdrage Corona (basisverzekering)-  incl balans","zvkx01","c821",null,"TY0V01","Euro's",null,"N","",1]
[null,null,null,null,"zvkx01_cc503__TY0V01","*='Kostenverzamelstaat-2020'!$K$16","","Huisartsen- bijz betalingen- kst Corona- incl balans","zvkx01","cc503","","TY0V01","Euro's",null,"N","",1]
[null,null,null,null,"zvkx01_cc504__TY0V01","*='Kostenverzamelstaat-2020'!$K$17","","Huisartsen- bijz diensttijden- kst Corona- incl balans","zvkx01","cc504","","TY0V01","Euro's",null,"N","",1]
[null,null,null,null,"zvkx01_cc505__TY0V01","*='Kostenverzamelstaat-2020'!$K$18","","Huisartsen- Inschrijvingen- kst Corona- incl balans","zvkx01","cc505","","TY0V01","Euro's",null,"N","",1]
[null,null,null,null,"zvkx01_cc506__TY0V01","*='Kostenverzamelstaat-2020'!$K$19","","Huisartsen- Consult- kst Corona- incl balans","zvkx01","cc506","","TY0V01","Euro's",null,"N","",1]
[null,null,null,null,"zvkx01_cc507__TY0V01","*='Kostenverzamelstaat-2020'!$K$20","","Huisartsen- Overige- kst Corona- incl balans","zvkx01","cc507","","TY0V01","Euro's",null,"N","",1]
[null,null,null,null,"zvkx01_cc510__TY0V01","*='Kostenverzamelstaat-2020'!$K$21","","Huisartsen- MDZ- kst Corona- incl balans","zvkx01","cc510","","TY0V01","Euro's",null,"N","",1]
[null,null,null,null,"zvkx01_cc515__TY0V01","*='Kostenverzamelstaat-2020'!$K$22","","Huisartsen- Resultaatbel. huisartsen- kst Corona- incl balans","zvkx01","cc515","","TY0V01","Euro's",null,"N","",1]
[null,null,null,null,"zvkx01_cc516__TY0V01","*='Kostenverzamelstaat-2020'!$K$23","","Huisartsen- Resultaatbel. MDZ- kst Corona- incl balans","zvkx01","cc516","","TY0V01","Euro's",null,"N","",1]
[null,null,null,null,"zvkx01_cc801__TY0V01","*='Kostenverzamelstaat-2020'!$K$24",null,"Huisartsen- Meerkosten Corona type 2 tm 5 (incl. som opslagen HAZ)- kst Corona- incl balans","zvkx01","cc801",null,"TY0V01","Euro's",null,"N","",1]
[null,null,null,null,"zvkx02_a520__TY0V01","*='Kostenverzamelstaat-2020'!$J$28","","Farmaceutische hulp- geaccepteerd","zvkx02","a520","","TY0V01","Euro's",null,"N","",1]
[null,null,null,null,"zvkx02_a520__TY1V01","*=Kostenverzamelstaat!$L$26","","Farmaceutische hulp- geaccepteerd","zvkx02","a520","","TY1V01","Euro's",null,"N","",1]
[null,null,null,null,"zvkx02_a520__TY2V01","*=Kostenverzamelstaat!$N$26","","Farmaceutische hulp- geaccepteerd","zvkx02","a520","","TY2V01","Euro's",null,"N","",1]
[null,null,null,null,"zvkx02_a802__TY0V01","*='Kostenverzamelstaat-2020'!$J$29",null,"Farmaceutische hulp- Meerkosten Corona type 2 tm 5- geaccepteerd","zvkx02","a802","","TY0V01","Euro's",null,"N","",1]
[null,null,null,null,"zvkx02_a822__TY0V01","*='Kostenverzamelstaat-2020'!$J$30",null,"Farmaceutische hulp-  Netto continuïteitsbijdrage Corona (basisverzekering)- geaccepteerd","zvkx02","a822","","TY0V01","Euro's",null,"N","",1]
[null,null,null,null,"zvkx02_ac520__TY0V01","*='Kostenverzamelstaat-2020'!$L$28","","Farmaceutische hulp- kst Corona- geaccepteerd","zvkx02","ac520","","TY0V01","Euro's",null,"N","",1]
[null,null,null,null,"zvkx02_ac802__TY0V01","*='Kostenverzamelstaat-2020'!$L$29",null,"Farmaceutische hulp- Meerkosten Corona type 2 tm 5- kst Corona- geaccepteerd","zvkx02","ac802","","TY0V01","Euro's",null,"N","",1]
[null,null,null,null,"zvkx02_c520__TY0V01","*='Kostenverzamelstaat-2020'!$I$28","","Farmaceutische hulp- incl balans","zvkx02","c520","","TY0V01","Euro's",null,"N","",1]
[null,null,null,null,"zvkx02_c520__TY1V01","*=Kostenverzamelstaat!$K$26","","Farmaceutische hulp- incl balans","zvkx02","c520","","TY1V01","Euro's",null,"N","",1]
[null,null,null,null,"zvkx02_c520__TY2V01","*=Kostenverzamelstaat!$M$26","","Farmaceutische hulp- incl balans","zvkx02","c520","","TY2V01","Euro's",null,"N","",1]
[null,null,null,null,"zvkx02_c802__TY0V01","*='Kostenverzamelstaat-2020'!$I$29",null,"Farmaceutische hulp- Meerkosten Corona type 2 tm 5- incl balans","zvkx02","c802","","TY0V01","Euro's",null,"N","",1]
[null,null,null,null,"zvkx02_c822__TY0V01","*='Kostenverzamelstaat-2020'!$I$30",null,"Farmaceutische hulp-  Netto continuïteitsbijdrage Corona (basisverzekering)- incl balans","zvkx02","c822","","TY0V01","Euro's",null,"N","",1]
[null,null,null,null,"zvkx02_cc520__TY0V01","*='Kostenverzamelstaat-2020'!$K$28","","Farmaceutische hulp- kst Corona- incl balans","zvkx02","cc520","","TY0V01","Euro's",null,"N","",1]
[null,null,null,null,"zvkx02_cc802__TY0V01","*='Kostenverzamelstaat-2020'!$K$29",null,"Farmaceutische hulp- Meerkosten Corona type 2 tm 5- kst Corona- incl balans","zvkx02","cc802","","TY0V01","Euro's",null,"N","",1]
[null,null,null,null,"zvkx03_a530__TY0V01","*='Kostenverzamelstaat-2020'!$J$33","","Verpleging en verzorging- geaccepteerd","zvkx03","a530","","TY0V01","Euro's",null,"N","",1]
[null,null,null,null,"zvkx03_a530__TY1V01","*=Kostenverzamelstaat!$L$28","","Verpleging en verzorging- geaccepteerd","zvkx03","a530","","TY1V01","Euro's",null,"N","",1]
[null,null,null,null,"zvkx03_a530__TY2V01","*=Kostenverzamelstaat!$N$28","","Verpleging en verzorging- geaccepteerd","zvkx03","a530","","TY2V01","Euro's",null,"N","",1]
[null,null,null,null,"zvkx03_a803__TY0V01","*='Kostenverzamelstaat-2020'!$J$34",null,"Verpleging en verzorging- Meerkosten Corona type 2 tm 5- geaccepteerd","zvkx03","a803","","TY0V01","Euro's",null,"N","",1]
[null,null,null,null,"zvkx03_a823__TY0V01","*='Kostenverzamelstaat-2020'!$J$35",null,"Verpleging en verzorging- Netto continuïteitsbijdrage Corona (basisverzekering)- geaccepteerd","zvkx03","a823","","TY0V01","Euro's",null,"N","",1]
[null,null,null,null,"zvkx03_ac530__TY0V01","*='Kostenverzamelstaat-2020'!$L$33","","Verpleging en verzorging- kst Corona- geaccepteerd","zvkx03","ac530","","TY0V01","Euro's",null,"N","",1]
[null,null,null,null,"zvkx03_ac803__TY0V01","*='Kostenverzamelstaat-2020'!$L$34",null,"Verpleging en verzorging- Meerkosten Corona type 2 tm 5- kst Corona- geaccepteerd","zvkx03","ac803","","TY0V01","Euro's",null,"N","",1]
[null,null,null,null,"zvkx03_c530__TY0V01","*='Kostenverzamelstaat-2020'!$I$33","","Verpleging en verzorging- incl balans","zvkx03","c530","","TY0V01","Euro's",null,"N","",1]
[null,null,null,null,"zvkx03_c530__TY1V01","*=Kostenverzamelstaat!$K$28","","Verpleging en verzorging- incl balans","zvkx03","c530","","TY1V01","Euro's",null,"N","",1]
[null,null,null,null,"zvkx03_c530__TY2V01","*=Kostenverzamelstaat!$M$28","","Verpleging en verzorging- incl balans","zvkx03","c530","","TY2V01","Euro's",null,"N","",1]
[null,null,null,null,"zvkx03_c803__TY0V01","*='Kostenverzamelstaat-2020'!$I$34",null,"Verpleging en verzorging- Meerkosten Corona type 2 tm 5- incl balans","zvkx03","c803","","TY0V01","Euro's",null,"N","",1]
[null,null,null,null,"zvkx03_c823__TY0V01","*='Kostenverzamelstaat-2020'!$I$35",null,"Verpleging en verzorging- Netto continuïteitsbijdrage Corona (basisverzekering)- incl balans","zvkx03","c823","","TY0V01","Euro's",null,"N","",1]
[null,null,null,null,"zvkx03_cc530__TY0V01","*='Kostenverzamelstaat-2020'!$K$33","","Verpleging en verzorging- kst Corona- incl balans","zvkx03","cc530","","TY0V01","Euro's",null,"N","",1]
[null,null,null,null,"zvkx03_cc803__TY0V01","*='Kostenverzamelstaat-2020'!$K$34",null,"Verpleging en verzorging- Meerkosten Corona type 2 tm 5- kst Corona- incl balans","zvkx03","cc803","","TY0V01","Euro's",null,"N","",1]
[null,null,null,null,"zvkx04_a5601__TY0V01","*='Kostenverzamelstaat-2020'!$J$38","","Mondzorg- volwassen verzekerden- geaccepteerd","zvkx04","a5601","","TY0V01","Euro's",null,"N","",1]
[null,null,null,null,"zvkx04_a5601__TY1V01","*=Kostenverzamelstaat!$L$30","","Mondzorg- volwassen verzekerden- geaccepteerd","zvkx04","a5601","","TY1V01","Euro's",null,"N","",1]
[null,null,null,null,"zvkx04_a5601__TY2V01","*=Kostenverzamelstaat!$N$30","","Mondzorg- volwassen verzekerden- geaccepteerd","zvkx04","a5601","","TY2V01","Euro's",null,"N","",1]
[null,null,null,null,"zvkx04_a5602__TY0V01","*='Kostenverzamelstaat-2020'!$J$39","","Mondzorg- jeugdige verzekerden- geaccepteerd","zvkx04","a5602","","TY0V01","Euro's",null,"N","",1]
[null,null,null,null,"zvkx04_a5602__TY1V01","*=Kostenverzamelstaat!$L$31","","Mondzorg- jeugdige verzekerden- geaccepteerd","zvkx04","a5602","","TY1V01","Euro's",null,"N","",1]
[null,null,null,null,"zvkx04_a5602__TY2V01","*=Kostenverzamelstaat!$N$31","","Mondzorg- jeugdige verzekerden- geaccepteerd","zvkx04","a5602","","TY2V01","Euro's",null,"N","",1]
[null,null,null,null,"zvkx04_a561__TY0V01","*='Kostenverzamelstaat-2020'!$J$40","","Mondzorg- gebitsprothesen- geaccepteerd","zvkx04","a561","","TY0V01","Euro's",null,"N","",1]
[null,null,null,null,"zvkx04_a561__TY1V01","*=Kostenverzamelstaat!$L$32","","Mondzorg- gebitsprothesen- geaccepteerd","zvkx04","a561","","TY1V01","Euro's",null,"N","",1]
[null,null,null,null,"zvkx04_a561__TY2V01","*=Kostenverzamelstaat!$N$32","","Mondzorg- gebitsprothesen- geaccepteerd","zvkx04","a561","","TY2V01","Euro's",null,"N","",1]
[null,null,null,null,"zvkx04_a804__TY0V01","*='Kostenverzamelstaat-2020'!$J$41",null,"Mondzorg- Meerkosten Corona type 2 tm 5- geaccepteerd","zvkx04","a804",null,"TY0V01","Euro's",null,"N","",1]
[null,null,null,null,"zvkx04_a824__TY0V01","*='Kostenverzamelstaat-2020'!$J$42",null,"Mondzorg- Netto continuïteitsbijdrage Corona (basisverzekering)- geaccepteerd","zvkx04","a824",null,"TY0V01","Euro's",null,"N","",1]
[null,null,null,null,"zvkx04_ac5601__TY0V01","*='Kostenverzamelstaat-2020'!$L$38","","Mondzorg- volwassen verzekerden- kst Corona- geaccepteerd","zvkx04","ac5601","","TY0V01","Euro's",null,"N","",1]
[null,null,null,null,"zvkx04_ac5602__TY0V01","*='Kostenverzamelstaat-2020'!$L$39","","Mondzorg- jeugdige verzekerden- kst Corona- geaccepteerd","zvkx04","ac5602","","TY0V01","Euro's",null,"N","",1]
[null,null,null,null,"zvkx04_ac561__TY0V01","*='Kostenverzamelstaat-2020'!$L$40","","Mondzorg- gebitsprothesen- kst Corona- geaccepteerd","zvkx04","ac561","","TY0V01","Euro's",null,"N","",1]
[null,null,null,null,"zvkx04_ac804__TY0V01","*='Kostenverzamelstaat-2020'!$L$41",null,"Mondzorg- Meerkosten Corona type 2 tm 5- kst Corona- geaccepteerd","zvkx04","ac804",null,"TY0V01","Euro's",null,"N","",1]
[null,null,null,null,"zvkx04_c5601__TY0V01","*='Kostenverzamelstaat-2020'!$I$38","","Mondzorg- volwassen verzekerden- incl balans","zvkx04","c5601","","TY0V01","Euro's",null,"N","",1]
[null,null,null,null,"zvkx04_c5601__TY1V01","*=Kostenverzamelstaat!$K$30","","Mondzorg- volwassen verzekerden- incl balans","zvkx04","c5601","","TY1V01","Euro's",null,"N","",1]
[null,null,null,null,"zvkx04_c5601__TY2V01","*=Kostenverzamelstaat!$M$30","","Mondzorg- volwassen verzekerden- incl balans","zvkx04","c5601","","TY2V01","Euro's",null,"N","",1]
[null,null,null,null,"zvkx04_c5602__TY0V01","*='Kostenverzamelstaat-2020'!$I$39","","Mondzorg- jeugdige verzekerden- incl balans","zvkx04","c5602","","TY0V01","Euro's",null,"N","",1]
[null,null,null,null,"zvkx04_c5602__TY1V01","*=Kostenverzamelstaat!$K$31","","Mondzorg- jeugdige verzekerden- incl balans","zvkx04","c5602","","TY1V01","Euro's",null,"N","",1]
[null,null,null,null,"zvkx04_c5602__TY2V01","*=Kostenverzamelstaat!$M$31","","Mondzorg- jeugdige verzekerden- incl balans","zvkx04","c5602","","TY2V01","Euro's",null,"N","",1]
[null,null,null,null,"zvkx04_c561__TY0V01","*='Kostenverzamelstaat-2020'!$I$40","","Mondzorg- gebitsprothesen- incl balans","zvkx04","c561","","TY0V01","Euro's",null,"N","",1]
[null,null,null,null,"zvkx04_c561__TY1V01","*=Kostenverzamelstaat!$K$32","","Mondzorg- gebitsprothesen- incl balans","zvkx04","c561","","TY1V01","Euro's",null,"N","",1]
[null,null,null,null,"zvkx04_c561__TY2V01","*=Kostenverzamelstaat!$M$32","","Mondzorg- gebitsprothesen- incl balans","zvkx04","c561","","TY2V01","Euro's",null,"N","",1]
[null,null,null,null,"zvkx04_c804__TY0V01","*='Kostenverzamelstaat-2020'!$I$41",null,"Mondzorg- Meerkosten Corona type 2 tm 5- incl balans","zvkx04","c804",null,"TY0V01","Euro's",null,"N","",1]
[null,null,null,null,"zvkx04_c824__TY0V01","*='Kostenverzamelstaat-2020'!$I$42",null,"Mondzorg- Netto continuïteitsbijdrage Corona (basisverzekering)- incl balans","zvkx04","c824",null,"TY0V01","Euro's",null,"N","",1]
[null,null,null,null,"zvkx04_cc5601__TY0V01","*='Kostenverzamelstaat-2020'!$K$38","","Mondzorg- volwassen verzekerden- kst Corona- incl balans","zvkx04","cc5601","","TY0V01","Euro's",null,"N","",1]
[null,null,null,null,"zvkx04_cc5602__TY0V01","*='Kostenverzamelstaat-2020'!$K$39","","Mondzorg- jeugdige verzekerden- kst Corona- incl balans","zvkx04","cc5602","","TY0V01","Euro's",null,"N","",1]
[null,null,null,null,"zvkx04_cc561__TY0V01","*='Kostenverzamelstaat-2020'!$K$40","","Mondzorg- gebitsprothesen- kst Corona- incl balans","zvkx04","cc561","","TY0V01","Euro's",null,"N","",1]
[null,null,null,null,"zvkx04_cc804__TY0V01","*='Kostenverzamelstaat-2020'!$K$41",null,"Mondzorg- Meerkosten Corona type 2 tm 5- kst Corona- incl balans","zvkx04","cc804",null,"TY0V01","Euro's",null,"N","",1]
[null,null,null,null,"zvkx05_a580__TY0V01","*='Kostenverzamelstaat-2020'!$J$45","","Verloskundige hulp- door verloskundigen- geaccepteerd","zvkx05","a580","","TY0V01","Euro's",null,"N","",1]
[null,null,null,null,"zvkx05_a580__TY1V01","*=Kostenverzamelstaat!$L$35","","Verloskundige hulp- door verloskundigen- geaccepteerd","zvkx05","a580","","TY1V01","Euro's",null,"N","",1]
[null,null,null,null,"zvkx05_a580__TY2V01","*=Kostenverzamelstaat!$N$35","","Verloskundige hulp- door verloskundigen- geaccepteerd","zvkx05","a580","","TY2V01","Euro's",null,"N","",1]
[null,null,null,null,"zvkx05_a581__TY1V01","*=Kostenverzamelstaat!$L$36","","Verloskundige hulp- door huisartsen- geaccepteerd","zvkx05","a581","","TY1V01","Euro's",null,"N","",1]
[null,null,null,null,"zvkx05_a581__TY2V01","*=Kostenverzamelstaat!$N$36","","Verloskundige hulp- door huisartsen- geaccepteerd","zvkx05","a581","","TY2V01","Euro's",null,"N","",1]
[null,null,null,null,"zvkx05_a582__TY0V01","*='Kostenverzamelstaat-2020'!$J$46","","Verloskundige hulp- Integrale geboortezorg- geaccepteerd","zvkx05","a582","","TY0V01","Euro's",null,"N","",1]
[null,null,null,null,"zvkx05_a582__TY1V01","*=Kostenverzamelstaat!$L$37","","Verloskundige hulp- Integrale geboortezorg- geaccepteerd","zvkx05","a582","","TY1V01","Euro's",null,"N","",1]
[null,null,null,null,"zvkx05_a582__TY2V01","*=Kostenverzamelstaat!$N$37","","Verloskundige hulp- Integrale geboortezorg- geaccepteerd","zvkx05","a582","","TY2V01","Euro's",null,"N","",1]
[null,null,null,null,"zvkx05_a805__TY0V01","*='Kostenverzamelstaat-2020'!$J$47",null,"Verloskundige hulp- Meerkosten Corona type 2 tm 5- geaccepteerd","zvkx05","a805",null,"TY0V01","Euro's",null,"N","",1]
[null,null,null,null,"zvkx05_a825__TY0V01","*='Kostenverzamelstaat-2020'!$J$48",null,"Verloskundige hulp- Netto continuïteitsbijdrage Corona (basisverzekering)- geaccepteerd","zvkx05","a825",null,"TY0V01","Euro's",null,"N","",1]
[null,null,null,null,"zvkx05_ac580__TY0V01","*='Kostenverzamelstaat-2020'!$L$45","","Verloskundige hulp- door verloskundigen- kst Corona- geaccepteerd","zvkx05","ac580","","TY0V01","Euro's",null,"N","",1]
[null,null,null,null,"zvkx05_ac582__TY0V01","*='Kostenverzamelstaat-2020'!$L$46","","Verloskundige hulp- Integrale geboortezorg- kst Corona- geaccepteerd","zvkx05","ac582","","TY0V01","Euro's",null,"N","",1]
[null,null,null,null,"zvkx05_ac805__TY0V01","*='Kostenverzamelstaat-2020'!$L$47",null,"Verloskundige hulp- Meerkosten Corona type 2 tm 5- kst Corona- geaccepteerd","zvkx05","ac805",null,"TY0V01","Euro's",null,"N","",1]
[null,null,null,null,"zvkx05_c580__TY0V01","*='Kostenverzamelstaat-2020'!$I$45","","Verloskundige hulp- door verloskundigen- incl balans","zvkx05","c580","","TY0V01","Euro's",null,"N","",1]
[null,null,null,null,"zvkx05_c580__TY1V01","*=Kostenverzamelstaat!$K$35","","Verloskundige hulp- door verloskundigen- incl balans","zvkx05","c580","","TY1V01","Euro's",null,"N","",1]
[null,null,null,null,"zvkx05_c580__TY2V01","*=Kostenverzamelstaat!$M$35","","Verloskundige hulp- door verloskundigen- incl balans","zvkx05","c580","","TY2V01","Euro's",null,"N","",1]
[null,null,null,null,"zvkx05_c581__TY1V01","*=Kostenverzamelstaat!$K$36","","Verloskundige hulp- door huisartsen- incl balans","zvkx05","c581","","TY1V01","Euro's",null,"N","",1]
[null,null,null,null,"zvkx05_c581__TY2V01","*=Kostenverzamelstaat!$M$36","","Verloskundige hulp- door huisartsen- incl balans","zvkx05","c581","","TY2V01","Euro's",null,"N","",1]
[null,null,null,null,"zvkx05_c582__TY0V01","*='Kostenverzamelstaat-2020'!$I$46","","Verloskundige hulp- Integrale geboortezorg-  incl balans","zvkx05","a582","","TY0V01","Euro's",null,"N","",1]
[null,null,null,null,"zvkx05_c582__TY1V01","*=Kostenverzamelstaat!$K$37","","Verloskundige hulp- Integrale geboortezorg-  incl balans","zvkx05","a582","","TY1V01","Euro's",null,"N","",1]
[null,null,null,null,"zvkx05_c582__TY2V01","*=Kostenverzamelstaat!$M$37","","Verloskundige hulp- Integrale geboortezorg-  incl balans","zvkx05","a582","","TY2V01","Euro's",null,"N","",1]
[null,null,null,null,"zvkx05_c805__TY0V01","*='Kostenverzamelstaat-2020'!$I$47",null,"Verloskundige hulp- Meerkosten Corona type 2 tm 5- incl balans","zvkx05","c805",null,"TY0V01","Euro's",null,"N","",1]
[null,null,null,null,"zvkx05_c825__TY0V01","*='Kostenverzamelstaat-2020'!$I$48",null,"Verloskundige hulp- Netto continuïteitsbijdrage Corona (basisverzekering)- incl balans","zvkx05","c825",null,"TY0V01","Euro's",null,"N","",1]
[null,null,null,null,"zvkx05_cc580__TY0V01","*='Kostenverzamelstaat-2020'!$K$45","","Verloskundige hulp- door verloskundigen- kst Corona- incl balans","zvkx05","cc580","","TY0V01","Euro's",null,"N","",1]
[null,null,null,null,"zvkx05_cc582__TY0V01","*='Kostenverzamelstaat-2020'!$K$46","","Verloskundige hulp- Integrale geboortezorg- kst Corona-  incl balans","zvkx05","cc582","","TY0V01","Euro's",null,"N","",1]
[null,null,null,null,"zvkx05_cc805__TY0V01","*='Kostenverzamelstaat-2020'!$K$47",null,"Verloskundige hulp- Meerkosten Corona type 2 tm 5- kst Corona- incl balans","zvkx05","cc805",null,"TY0V01","Euro's",null,"N","",1]
[null,null,null,null,"zvkx06_a545__TY0V01","*='Kostenverzamelstaat-2020'!$J$63","","Medisch specialistische hulp- mondziekten en kaakchirurgie- geaccepteerd","zvkx06","a545","","TY0V01","Euro's",null,"N","",1]
[null,null,null,null,"zvkx06_a545__TY1V01","*=Kostenverzamelstaat!$L$51","","Medisch specialistische hulp- mondziekten en kaakchirurgie- geaccepteerd","zvkx06","a545","","TY1V01","Euro's",null,"N","",1]
[null,null,null,null,"zvkx06_a545__TY2V01","*=Kostenverzamelstaat!$N$51","","Medisch specialistische hulp- mondziekten en kaakchirurgie- geaccepteerd","zvkx06","a545","","TY2V01","Euro's",null,"N","",1]
[null,null,null,null,"zvkx06_a610__TY0V01","*='Kostenverzamelstaat-2020'!$J$64","","Medisch specialistische hulp- Overige ziekenhuiszorg,curatief- geaccepteerd","zvkx06","a610","","TY0V01","Euro's",null,"N","",1]
[null,null,null,null,"zvkx06_a610__TY1V01","*=Kostenverzamelstaat!$L$52","","Medisch specialistische hulp- Overige ziekenhuiszorg,curatief- geaccepteerd","zvkx06","a610","","TY1V01","Euro's",null,"N","",1]
[null,null,null,null,"zvkx06_a610__TY2V01","*=Kostenverzamelstaat!$N$52","","Medisch specialistische hulp- Overige ziekenhuiszorg,curatief- geaccepteerd","zvkx06","a610","","TY2V01","Euro's",null,"N","",1]
[null,null,null,null,"zvkx06_a611__TY0V01","*='Kostenverzamelstaat-2020'!$J$65","","Medisch specialistische hulp- Overige zorg- geaccepteerd","zvkx06","a611","","TY0V01","Euro's",null,"N","",1]
[null,null,null,null,"zvkx06_a611__TY1V01","*=Kostenverzamelstaat!$L$53","","Medisch specialistische hulp- Overige zorg- geaccepteerd","zvkx06","a611","","TY1V01","Euro's",null,"N","",1]
[null,null,null,null,"zvkx06_a611__TY2V01","*=Kostenverzamelstaat!$N$53","","Medisch specialistische hulp- Overige zorg- geaccepteerd","zvkx06","a611","","TY2V01","Euro's",null,"N","",1]
[null,null,null,null,"zvkx06_a612__TY1V01","*=Kostenverzamelstaat!$L$54","","Medisch specialistische hulp- add-on's- geaccepteerd","zvkx06","a612","","TY1V01","Euro's",null,"N","",1]
[null,null,null,null,"zvkx06_a612__TY2V01","*=Kostenverzamelstaat!$N$54","","Medisch specialistische hulp- add-on's- geaccepteerd","zvkx06","a612","","TY2V01","Euro's",null,"N","",1]
[null,null,null,null,"zvkx06_a6121__TY0V01","*='Kostenverzamelstaat-2020'!$J$66","","Medisch specialistische hulp- add-on's Dure geneesmiddelen- geaccepteerd","zvkx06","a6121","","TY0V01","Euro's",null,"N","",1]
[null,null,null,null,"zvkx06_a6121__TY1V01","*='Kostenverzamelstaat'!$L55","","Medisch specialistische hulp- add-on's Dure geneesmiddelen- geaccepteerd","zvkx06","a6121","","TY1V01","Euro's",null,"N","",1]
[null,null,null,null,"zvkx06_a6121__TY1V01","*='Kostenverzamelstaat'!$N$55","","Medisch specialistische hulp- add-on's Dure geneesmiddelen- geaccepteerd","zvkx06","a6121","","TY1V01","Euro's",null,"N","",1]
[null,null,null,null,"zvkx06_a6122__TY0V01","*='Kostenverzamelstaat-2020'!$J$67","","Medisch specialistische hulp- IC- geaccepteerd","zvkx06","a6122","","TY0V01","Euro's",null,"N","",1]
[null,null,null,null,"zvkx06_a6122__TY1V01","*='Kostenverzamelstaat'!$L$56","","Medisch specialistische hulp- IC- geaccepteerd","zvkx06","a6122","","TY1V01","Euro's",null,"N","",1]
[null,null,null,null,"zvkx06_a6122__TY2V01","*='Kostenverzamelstaat'!$N$56","","Medisch specialistische hulp- IC- geaccepteerd","zvkx06","a6122","","TY2V01","Euro's",null,"N","",1]
[null,null,null,null,"zvkx06_a6131__TY0V01","*='Kostenverzamelstaat-2020'!$J$68","","Medisch specialistische hulp- Integraal DBC-zorgproduct gereguleerd- geaccepteerd","zvkx06","a6131","","TY0V01","Euro's",null,"N","",1]
[null,null,null,null,"zvkx06_a6131__TY1V01","*=Kostenverzamelstaat!$L$57","","Medisch specialistische hulp- Integraal DBC-zorgproduct gereguleerd- geaccepteerd","zvkx06","a6131","","TY1V01","Euro's",null,"N","",1]
[null,null,null,null,"zvkx06_a6131__TY2V01","*=Kostenverzamelstaat!$N$57","","Medisch specialistische hulp- Integraal DBC-zorgproduct gereguleerd- geaccepteerd","zvkx06","a6131","","TY2V01","Euro's",null,"N","",1]
[null,null,null,null,"zvkx06_a6151__TY0V01","*='Kostenverzamelstaat-2020'!$J$69","","Medisch specialistische hulp- Integraal DBC-zorgproduct vrije segment- geaccepteerd","zvkx06","a6151","","TY0V01","Euro's",null,"N","",1]
[null,null,null,null,"zvkx06_a6151__TY1V01","*=Kostenverzamelstaat!$L$58","","Medisch specialistische hulp- Integraal DBC-zorgproduct vrije segment- geaccepteerd","zvkx06","a6151","","TY1V01","Euro's",null,"N","",1]
[null,null,null,null,"zvkx06_a6151__TY2V01","*=Kostenverzamelstaat!$N$58","","Medisch specialistische hulp- Integraal DBC-zorgproduct vrije segment- geaccepteerd","zvkx06","a6151","","TY2V01","Euro's",null,"N","",1]
[null,null,null,null,"zvkx06_a619__TY0V01","*='Kostenverzamelstaat-2020'!$J$70","","Medisch specialistische hulp- honoraria extramuraal- geaccepteerd","zvkx06","a619","","TY0V01","Euro's",null,"N","",1]
[null,null,null,null,"zvkx06_a619__TY1V01","*=Kostenverzamelstaat!$L$59","","Medisch specialistische hulp- honoraria extramuraal- geaccepteerd","zvkx06","a619","","TY1V01","Euro's",null,"N","",1]
[null,null,null,null,"zvkx06_a619__TY2V01","*=Kostenverzamelstaat!$N$59","","Medisch specialistische hulp- honoraria extramuraal- geaccepteerd","zvkx06","a619","","TY2V01","Euro's",null,"N","",1]
[null,null,null,null,"zvkx06_a806__TY0V01","*='Kostenverzamelstaat-2020'!$J$71",null,"Medisch specialistische hulp- Meerkosten Corona type 2 tm 5- geaccepteerd","zvkx06","a086",null,"TY0V01","Euro's",null,"N","",1]
[null,null,null,null,"zvkx06_a826__TY0V01","*='Kostenverzamelstaat-2020'!$J$72",null,"Medisch specialistische hulp- Netto continuïteitsbijdrage Corona (basisverzekering)- geaccepteerd","zvkx06","a826",null,"TY0V01","Euro's",null,"N","",1]
[null,null,null,null,"zvkx06_ac545__TY0V01","*='Kostenverzamelstaat-2020'!$L$63","","Medisch specialistische hulp- mondziekten en kaakchirurgie- kst Corona- geaccepteerd","zvkx06","ac545","","TY0V01","Euro's",null,"N","",1]
[null,null,null,null,"zvkx06_ac610__TY0V01","*='Kostenverzamelstaat-2020'!$L$64","","Medisch specialistische hulp- Overige ziekenhuiszorg,curatief- kst Corona- geaccepteerd","zvkx06","ac610","","TY0V01","Euro's",null,"N","",1]
[null,null,null,null,"zvkx06_ac611__TY0V01","*='Kostenverzamelstaat-2020'!$L$65","","Medisch specialistische hulp- Overige zorg- kst Corona-geaccepteerd","zvkx06","ac611","","TY0V01","Euro's",null,"N","",1]
[null,null,null,null,"zvkx06_ac6121__TY0V01","*='Kostenverzamelstaat-2020'!$L$66","","Medisch specialistische hulp- add-on's Dure geneesmiddelen- kst Corona- geaccepteerd","zvkx06","ac6121","","TY0V01","Euro's",null,"N","",1]
[null,null,null,null,"zvkx06_ac6122__TY0V01","*='Kostenverzamelstaat-2020'!$L$67","","Medisch specialistische hulp-IC- kst Corona- geaccepteerd","zvkx06","ac6122","","TY0V01","Euro's",null,"N","",1]
[null,null,null,null,"zvkx06_ac6131__TY0V01","*='Kostenverzamelstaat-2020'!$L$68","","Medisch specialistische hulp- Integraal DBC-zorgproduct gereguleerd- kst Corona- geaccepteerd","zvkx06","ac6131","","TY0V01","Euro's",null,"N","",1]
[null,null,null,null,"zvkx06_ac6151__TY0V01","*='Kostenverzamelstaat-2020'!$L$69","","Medisch specialistische hulp- Integraal DBC-zorgproduct vrije segment- kst Corona- geaccepteerd","zvkx06","ac6151","","TY0V01","Euro's",null,"N","",1]
[null,null,null,null,"zvkx06_ac619__TY0V01","*='Kostenverzamelstaat-2020'!$L$70","","Medisch specialistische hulp- honoraria extramuraal- kst Corona- geaccepteerd","zvkx06","ac619","","TY0V01","Euro's",null,"N","",1]
[null,null,null,null,"zvkx06_ac806__TY0V01","*='Kostenverzamelstaat-2020'!$L$71",null,"Medisch specialistische hulp- Meerkosten Corona type 2 tm 5- kst Corona- geaccepteerd","zvkx06","ac086",null,"TY0V01","Euro's",null,"N","",1]
[null,null,null,null,"zvkx06_c545__TY0V01","*='Kostenverzamelstaat-2020'!$I$63","","Medisch specialistische hulp- mondziekten en kaakchirurgie- incl balans","zvkx06","c545","","TY0V01","Euro's",null,"N","",1]
[null,null,null,null,"zvkx06_c545__TY1V01","*=Kostenverzamelstaat!$K$51","","Medisch specialistische hulp- mondziekten en kaakchirurgie- incl balans","zvkx06","c545","","TY1V01","Euro's",null,"N","",1]
[null,null,null,null,"zvkx06_c545__TY2V01","*=Kostenverzamelstaat!$M$51","","Medisch specialistische hulp- mondziekten en kaakchirurgie- incl balans","zvkx06","c545","","TY2V01","Euro's",null,"N","",1]
[null,null,null,null,"zvkx06_c610__TY0V01","*='Kostenverzamelstaat-2020'!$I$64","","Medisch specialistische hulp- Overige ziekenhuiszorg,curatief- incl balans","zvkx06","c610","","TY0V01","Euro's",null,"N","",1]
[null,null,null,null,"zvkx06_c610__TY1V01","*=Kostenverzamelstaat!$K$52","","Medisch specialistische hulp- Overige ziekenhuiszorg,curatief- incl balans","zvkx06","c610","","TY1V01","Euro's",null,"N","",1]
[null,null,null,null,"zvkx06_c610__TY2V01","*=Kostenverzamelstaat!$M$52","","Medisch specialistische hulp- Overige ziekenhuiszorg,curatief- incl balans","zvkx06","c610","","TY2V01","Euro's",null,"N","",1]
[null,null,null,null,"zvkx06_c611__TY0V01","*='Kostenverzamelstaat-2020'!$I$65","","Medisch specialistische hulp- Overige zorg- incl balans","zvkx06","c611","","TY0V01","Euro's",null,"N","",1]
[null,null,null,null,"zvkx06_c611__TY1V01","*=Kostenverzamelstaat!$K$53","","Medisch specialistische hulp- Overige zorg- incl balans","zvkx06","c611","","TY1V01","Euro's",null,"N","",1]
[null,null,null,null,"zvkx06_c611__TY2V01","*=Kostenverzamelstaat!$M$53","","Medisch specialistische hulp- Overige zorg- incl balans","zvkx06","c611","","TY2V01","Euro's",null,"N","",1]
[null,null,null,null,"zvkx06_c612__TY1V01","*=Kostenverzamelstaat!$K$54","","Medisch specialistische hulp- add-on's- incl balans","zvkx06","c612","","TY1V01","Euro's",null,"N","",1]
[null,null,null,null,"zvkx06_c612__TY2V01","*=Kostenverzamelstaat!$M$54","","Medisch specialistische hulp- add-on's- incl balans","zvkx06","c612","","TY2V01","Euro's",null,"N","",1]
[null,null,null,null,"zvkx06_c6121__TY0V01","*='Kostenverzamelstaat-2020'!$I$66","","Medisch specialistische hulp- add-on's Dure geneesmiddelen- incl balans","zvkx06","c6121","","TY0V01","Euro's",null,"N","",1]
[null,null,null,null,"zvkx06_c6121__TY1V01","*='Kostenverzamelstaat'!$K$55","","Medisch specialistische hulp- add-on's Dure geneesmiddelen- incl balans","zvkx06","c6121","","TY1V01","Euro's",null,"N","",1]
[null,null,null,null,"zvkx06_c6121__TY2V01","*='Kostenverzamelstaat'!$M$55","","Medisch specialistische hulp- add-on's Dure geneesmiddelen- incl balans","zvkx06","c6121","","TY2V01","Euro's",null,"N","",1]
[null,null,null,null,"zvkx06_c6122__TY0V01","*='Kostenverzamelstaat-2020'!$I$67","","Medisch specialistische hulp- IC- incl balans","zvkx06","c6122","","TY0V01","Euro's",null,"N","",1]
[null,null,null,null,"zvkx06_c6122__TY1V01","*='Kostenverzamelstaat'!$K$56","","Medisch specialistische hulp- IC- incl balans","zvkx06","c6122","","TY1V01","Euro's",null,"N","",1]
[null,null,null,null,"zvkx06_c6122__TY2V01","*='Kostenverzamelstaat'!$M$56","","Medisch specialistische hulp- IC- incl balans","zvkx06","c6122","","TY2V01","Euro's",null,"N","",1]
[null,null,null,null,"zvkx06_c6131__TY0V01","*='Kostenverzamelstaat-2020'!$I$68","","Medisch specialistische hulp- Integraal DBC-zorgproduct gereguleerd- incl balans","zvkx06","c6131","","TY0V01","Euro's",null,"N","",1]
[null,null,null,null,"zvkx06_c6131__TY1V01","*=Kostenverzamelstaat!$K$57","","Medisch specialistische hulp- Integraal DBC-zorgproduct gereguleerd- incl balans","zvkx06","c6131","","TY1V01","Euro's",null,"N","",1]
[null,null,null,null,"zvkx06_c6131__TY2V01","*=Kostenverzamelstaat!$M$57","","Medisch specialistische hulp- Integraal DBC-zorgproduct gereguleerd- incl balans","zvkx06","c6131","","TY2V01","Euro's",null,"N","",1]
[null,null,null,null,"zvkx06_c6151__TY0V01","*='Kostenverzamelstaat-2020'!$I$69","","Medisch specialistische hulp- Integraal DBC-zorgproduct vrije segment- incl balans","zvkx06","c6151","","TY0V01","Euro's",null,"N","",1]
[null,null,null,null,"zvkx06_c6151__TY1V01","*=Kostenverzamelstaat!$K$58","","Medisch specialistische hulp- Integraal DBC-zorgproduct vrije segment- incl balans","zvkx06","c6151","","TY1V01","Euro's",null,"N","",1]
[null,null,null,null,"zvkx06_c6151__TY2V01","*=Kostenverzamelstaat!$M$58","","Medisch specialistische hulp- Integraal DBC-zorgproduct vrije segment- incl balans","zvkx06","c6151","","TY2V01","Euro's",null,"N","",1]
[null,null,null,null,"zvkx06_c619__TY0V01","*='Kostenverzamelstaat-2020'!$I$70","","Medisch specialistische hulp- honoraria extramuraal- incl balans","zvkx06","c619","","TY0V01","Euro's",null,"N","",1]
[null,null,null,null,"zvkx06_c619__TY1V01","*=Kostenverzamelstaat!$K$59","","Medisch specialistische hulp- honoraria extramuraal- incl balans","zvkx06","c619","","TY1V01","Euro's",null,"N","",1]
[null,null,null,null,"zvkx06_c619__TY2V01","*=Kostenverzamelstaat!$M$59","","Medisch specialistische hulp- honoraria extramuraal- incl balans","zvkx06","c619","","TY2V01","Euro's",null,"N","",1]
[null,null,null,null,"zvkx06_c806__TY0V01","*='Kostenverzamelstaat-2020'!$I$71",null,"Medisch specialistische hulp- Meerkosten Corona type 2 tm 5- incl balans","zvkx06","c806",null,"TY0V01","Euro's",null,"N","",1]
[null,null,null,null,"zvkx06_c826__TY0V01","*='Kostenverzamelstaat-2020'!$I$72",null,"Medisch specialistische hulp- Netto continuïteitsbijdrage Corona (basisverzekering)- incl balans","zvkx06","c826",null,"TY0V01","Euro's",null,"N","",1]
[null,null,null,null,"zvkx06_cc545__TY0V01","*='Kostenverzamelstaat-2020'!$K$63","","Medisch specialistische hulp- mondziekten en kaakchirurgie- kst Corona- incl balans","zvkx06","cc545","","TY0V01","Euro's",null,"N","",1]
[null,null,null,null,"zvkx06_cc610__TY0V01","*='Kostenverzamelstaat-2020'!$K$64","","Medisch specialistische hulp- Overige ziekenhuiszorg,curatief- kst Corona- incl balans","zvkx06","cc610","","TY0V01","Euro's",null,"N","",1]
[null,null,null,null,"zvkx06_cc611__TY0V01","*='Kostenverzamelstaat-2020'!$K$65","","Medisch specialistische hulp- Overige zorg- kst Corona- incl balans","zvkx06","cc611","","TY0V01","Euro's",null,"N","",1]
[null,null,null,null,"zvkx06_cc6121__TY0V01","*='Kostenverzamelstaat-2020'!$K$66","","Medisch specialistische hulp- add-on's Dure geneesmiddelen- kst Corona- incl balans","zvkx06","cc6121","","TY0V01","Euro's",null,"N","",1]
[null,null,null,null,"zvkx06_cc6122__TY0V01","*='Kostenverzamelstaat-2020'!$K$67","","Medisch specialistische hulp-IC- kst Corona- incl balans","zvkx06","cc6122","","TY0V01","Euro's",null,"N","",1]
[null,null,null,null,"zvkx06_cc6131__TY0V01","*='Kostenverzamelstaat-2020'!$K$68","","Medisch specialistische hulp- Integraal DBC-zorgproduct gereguleerd- kst Corona- incl balans","zvkx06","cc6131","","TY0V01","Euro's",null,"N","",1]
[null,null,null,null,"zvkx06_cc6151__TY0V01","*='Kostenverzamelstaat-2020'!$K$69","","Medisch specialistische hulp- Integraal DBC-zorgproduct vrije segment- kst Corona- incl balans","zvkx06","cc6151","","TY0V01","Euro's",null,"N","",1]
[null,null,null,null,"zvkx06_cc619__TY0V01","*='Kostenverzamelstaat-2020'!$K$70","","Medisch specialistische hulp- honoraria extramuraal- kst Corona- incl balans","zvkx06","cc619","","TY0V01","Euro's",null,"N","",1]
[null,null,null,null,"zvkx06_cc806__TY0V01","*='Kostenverzamelstaat-2020'!$K$71",null,"Medisch specialistische hulp- Meerkosten Corona type 2 tm 5- kst Corona- incl balans","zvkx06","cc806",null,"TY0V01","Euro's",null,"N","",1]
[null,null,null,null,"zvkx07_a620__TY0V01","*='Kostenverzamelstaat-2020'!$J$75","","Paramedische hulp- fysiotherapie- geaccepteerd","zvkx07","a620","","TY0V01","Euro's",null,"N","",1]
[null,null,null,null,"zvkx07_a620__TY1V01","*=Kostenverzamelstaat!$L$62","","Paramedische hulp- fysiotherapie- geaccepteerd","zvkx07","a620","","TY1V01","Euro's",null,"N","",1]
[null,null,null,null,"zvkx07_a620__TY2V01","*=Kostenverzamelstaat!$N$62","","Paramedische hulp- fysiotherapie- geaccepteerd","zvkx07","a620","","TY2V01","Euro's",null,"N","",1]
[null,null,null,null,"zvkx07_a621__TY0V01","*='Kostenverzamelstaat-2020'!$J$76","","Paramedische hulp- Mensendieck/Cesar- geaccepteerd","zvkx07","a621","","TY0V01","Euro's",null,"N","",1]
[null,null,null,null,"zvkx07_a621__TY1V01","*=Kostenverzamelstaat!$L$63","","Paramedische hulp- Mensendieck/Cesar- geaccepteerd","zvkx07","a621","","TY1V01","Euro's",null,"N","",1]
[null,null,null,null,"zvkx07_a621__TY2V01","*=Kostenverzamelstaat!$N$63","","Paramedische hulp- Mensendieck/Cesar- geaccepteerd","zvkx07","a621","","TY2V01","Euro's",null,"N","",1]
[null,null,null,null,"zvkx07_a623__TY0V01","*='Kostenverzamelstaat-2020'!$J$77","","Paramedische hulp- logopedie- geaccepteerd","zvkx07","a623","","TY0V01","Euro's",null,"N","",1]
[null,null,null,null,"zvkx07_a623__TY1V01","*=Kostenverzamelstaat!$L$64","","Paramedische hulp- logopedie- geaccepteerd","zvkx07","a623","","TY1V01","Euro's",null,"N","",1]
[null,null,null,null,"zvkx07_a623__TY2V01","*=Kostenverzamelstaat!$N$64","","Paramedische hulp- logopedie- geaccepteerd","zvkx07","a623","","TY2V01","Euro's",null,"N","",1]
[null,null,null,null,"zvkx07_a624__TY0V01","*='Kostenverzamelstaat-2020'!$J$78","","Paramedische hulp- ergotherapie- geaccepteerd","zvkx07","a624","","TY0V01","Euro's",null,"N","",1]
[null,null,null,null,"zvkx07_a624__TY1V01","*=Kostenverzamelstaat!$L$65","","Paramedische hulp- ergotherapie- geaccepteerd","zvkx07","a624","","TY1V01","Euro's",null,"N","",1]
[null,null,null,null,"zvkx07_a624__TY2V01","*=Kostenverzamelstaat!$N$65","","Paramedische hulp- ergotherapie- geaccepteerd","zvkx07","a624","","TY2V01","Euro's",null,"N","",1]
[null,null,null,null,"zvkx07_a625__TY0V01","*='Kostenverzamelstaat-2020'!$J$79","","Paramedische hulp- dieetadvisering- geaccepteerd","zvkx07","a625","","TY0V01","Euro's",null,"N","",1]
[null,null,null,null,"zvkx07_a625__TY1V01","*=Kostenverzamelstaat!$L$66","","Paramedische hulp- dieetadvisering- geaccepteerd","zvkx07","a625","","TY1V01","Euro's",null,"N","",1]
[null,null,null,null,"zvkx07_a625__TY2V01","*=Kostenverzamelstaat!$N$66","","Paramedische hulp- dieetadvisering- geaccepteerd","zvkx07","a625","","TY2V01","Euro's",null,"N","",1]
[null,null,null,null,"zvkx07_a626__TY0V01","*='Kostenverzamelstaat-2020'!$J$80","","Paramedische hulp- GLI- geaccepteerd","zvkx07","a625","","TY0V01","Euro's",null,"N","",1]
[null,null,null,null,"zvkx07_a626__TY1V01","*=Kostenverzamelstaat!$L$67","","Paramedische hulp- GLI- geaccepteerd","zvkx07","a625","","TY1V01","Euro's",null,"N","",1]
[null,null,null,null,"zvkx07_a626__TY2V01","*=Kostenverzamelstaat!$N$67","","Paramedische hulp- GLI- geaccepteerd","zvkx07","a625","","TY2V01","Euro's",null,"N","",1]
[null,null,null,null,"zvkx07_a807__TY0V01","*='Kostenverzamelstaat-2020'!$J$81",null,"Paramedische hulp-  Meerkosten Corona type 2 tm 5- geaccepteerd","zvkx07","a807",null,"TY0V01","Euro's",null,"N","",1]
[null,null,null,null,"zvkx07_a827__TY0V01","*='Kostenverzamelstaat-2020'!$J$82",null,"Paramedische hulp-Netto continuïteitsbijdrage Corona (basisverzekering)- geaccepteerd","zvkx07","a827",null,"TY0V01","Euro's",null,"N","",1]
[null,null,null,null,"zvkx07_ac620__TY0V01","*='Kostenverzamelstaat-2020'!$L$75","","Paramedische hulp- fysiotherapie- kst Corona- geaccepteerd","zvkx07","acc620","","TY0V01","Euro's",null,"N","",1]
[null,null,null,null,"zvkx07_ac621__TY0V01","*='Kostenverzamelstaat-2020'!$L$76","","Paramedische hulp- Mensendieck/Cesar- kst Corona- geaccepteerd","zvkx07","acc621","","TY0V01","Euro's",null,"N","",1]
[null,null,null,null,"zvkx07_ac623__TY0V01","*='Kostenverzamelstaat-2020'!$L$77","","Paramedische hulp- logopedie- kst Corona- geaccepteerd","zvkx07","acc623","","TY0V01","Euro's",null,"N","",1]
[null,null,null,null,"zvkx07_ac624__TY0V01","*='Kostenverzamelstaat-2020'!$L$78","","Paramedische hulp- ergotherapie- kst Corona- geaccepteerd","zvkx07","acc624","","TY0V01","Euro's",null,"N","",1]
[null,null,null,null,"zvkx07_ac625__TY0V01","*='Kostenverzamelstaat-2020'!$L$79","","Paramedische hulp- dieetadvisering- kst Corona- geaccepteerd","zvkx07","acc625","","TY0V01","Euro's",null,"N","",1]
[null,null,null,null,"zvkx07_ac626__TY0V01","*='Kostenverzamelstaat-2020'!$L$80","","Paramedische hulp- GLI- kst Corona- geaccepteerd","zvkx07","acc625","","TY0V01","Euro's",null,"N","",1]
[null,null,null,null,"zvkx07_ac807__TY0V01","*='Kostenverzamelstaat-2020'!$L$81",null,"Paramedische hulp-  Meerkosten Corona type 2 tm 5- kst Corona- geaccepteerd","zvkx07","acc807",null,"TY0V01","Euro's",null,"N","",1]
[null,null,null,null,"zvkx07_c620__TY0V01","*='Kostenverzamelstaat-2020'!$I$75","","Paramedische hulp- fysiotherapie- incl balans","zvkx07","c620","","TY0V01","Euro's",null,"N","",1]
[null,null,null,null,"zvkx07_c620__TY1V01","*=Kostenverzamelstaat!$K$62","","Paramedische hulp- fysiotherapie- incl balans","zvkx07","c620","","TY1V01","Euro's",null,"N","",1]
[null,null,null,null,"zvkx07_c620__TY2V01","*=Kostenverzamelstaat!$M$62","","Paramedische hulp- fysiotherapie- incl balans","zvkx07","c620","","TY2V01","Euro's",null,"N","",1]
[null,null,null,null,"zvkx07_c621__TY0V01","*='Kostenverzamelstaat-2020'!$I$76","","Paramedische hulp- Mensendieck/Cesar- incl balans","zvkx07","c621","","TY0V01","Euro's",null,"N","",1]
[null,null,null,null,"zvkx07_c621__TY1V01","*=Kostenverzamelstaat!$K$63","","Paramedische hulp- Mensendieck/Cesar- incl balans","zvkx07","c621","","TY1V01","Euro's",null,"N","",1]
[null,null,null,null,"zvkx07_c621__TY2V01","*=Kostenverzamelstaat!$M$63","","Paramedische hulp- Mensendieck/Cesar- incl balans","zvkx07","c621","","TY2V01","Euro's",null,"N","",1]
[null,null,null,null,"zvkx07_c623__TY0V01","*='Kostenverzamelstaat-2020'!$I$77","","Paramedische hulp- logopedie- incl balans","zvkx07","c623","","TY0V01","Euro's",null,"N","",1]
[null,null,null,null,"zvkx07_c623__TY1V01","*=Kostenverzamelstaat!$K$64","","Paramedische hulp- logopedie- incl balans","zvkx07","c623","","TY1V01","Euro's",null,"N","",1]
[null,null,null,null,"zvkx07_c623__TY2V01","*=Kostenverzamelstaat!$M$64","","Paramedische hulp- logopedie- incl balans","zvkx07","c623","","TY2V01","Euro's",null,"N","",1]
[null,null,null,null,"zvkx07_c624__TY0V01","*='Kostenverzamelstaat-2020'!$I$78","","Paramedische hulp- ergotherapie- incl balans","zvkx07","c624","","TY0V01","Euro's",null,"N","",1]
[null,null,null,null,"zvkx07_c624__TY1V01","*=Kostenverzamelstaat!$K$65","","Paramedische hulp- ergotherapie- incl balans","zvkx07","c624","","TY1V01","Euro's",null,"N","",1]
[null,null,null,null,"zvkx07_c624__TY2V01","*=Kostenverzamelstaat!$M$65","","Paramedische hulp- ergotherapie- incl balans","zvkx07","c624","","TY2V01","Euro's",null,"N","",1]
[null,null,null,null,"zvkx07_c625__TY0V01","*='Kostenverzamelstaat-2020'!$I$79","","Paramedische hulp- dieetadvisering- incl balans","zvkx07","c625","","TY0V01","Euro's",null,"N","",1]
[null,null,null,null,"zvkx07_c625__TY1V01","*=Kostenverzamelstaat!$K$66","","Paramedische hulp- dieetadvisering- incl balans","zvkx07","c625","","TY1V01","Euro's",null,"N","",1]
[null,null,null,null,"zvkx07_c625__TY2V01","*=Kostenverzamelstaat!$M$66","","Paramedische hulp- dieetadvisering- incl balans","zvkx07","c625","","TY2V01","Euro's",null,"N","",1]
[null,null,null,null,"zvkx07_c626__TY0V01","*='Kostenverzamelstaat-2020'!$I$80","","Paramedische hulp- GLI-  incl balans","zvkx07","c626","","TY0V01","Euro's",null,"N","",1]
[null,null,null,null,"zvkx07_c626__TY1V01","*=Kostenverzamelstaat!$K$67","","Paramedische hulp- GLI-  incl balans","zvkx07","a625","","TY1V01","Euro's",null,"N","",1]
[null,null,null,null,"zvkx07_c626__TY2V01","*=Kostenverzamelstaat!$M$67","","Paramedische hulp- GLI-  incl balans","zvkx07","a625","","TY2V01","Euro's",null,"N","",1]
[null,null,null,null,"zvkx07_c807__TY0V01","*='Kostenverzamelstaat-2020'!$I$81",null,"Paramedische hulp-  Meerkosten Corona type 2 tm 5- incl balans","zvkx07","c807",null,"TY0V01","Euro's",null,"N","",1]
[null,null,null,null,"zvkx07_c827__TY0V01","*='Kostenverzamelstaat-2020'!$I$82",null,"Paramedische hulp-Netto continuïteitsbijdrage Corona (basisverzekering)- incl balans","zvkx07","c827",null,"TY0V01","Euro's",null,"N","",1]
[null,null,null,null,"zvkx07_cc620__TY0V01","*='Kostenverzamelstaat-2020'!$K$75","","Paramedische hulp- fysiotherapie- kst Corona- incl balans","zvkx07","cc620","","TY0V01","Euro's",null,"N","",1]
[null,null,null,null,"zvkx07_cc621__TY0V01","*='Kostenverzamelstaat-2020'!$K$76","","Paramedische hulp- Mensendieck/Cesar- kst Corona- incl balans","zvkx07","cc621","","TY0V01","Euro's",null,"N","",1]
[null,null,null,null,"zvkx07_cc623__TY0V01","*='Kostenverzamelstaat-2020'!$K$77","","Paramedische hulp- logopedie- kst Corona- incl balans","zvkx07","cc623","","TY0V01","Euro's",null,"N","",1]
[null,null,null,null,"zvkx07_cc624__TY0V01","*='Kostenverzamelstaat-2020'!$K$78","","Paramedische hulp- ergotherapie- kst Corona- incl balans","zvkx07","cc624","","TY0V01","Euro's",null,"N","",1]
[null,null,null,null,"zvkx07_cc625__TY0V01","*='Kostenverzamelstaat-2020'!$K$79","","Paramedische hulp- dieetadvisering- kst Corona- incl balans","zvkx07","cc625","","TY0V01","Euro's",null,"N","",1]
[null,null,null,null,"zvkx07_cc626__TY0V01","*='Kostenverzamelstaat-2020'!$K$80","","Paramedische hulp- GLI- kst Corona-  incl balans","zvkx07","cc626","","TY0V01","Euro's",null,"N","",1]
[null,null,null,null,"zvkx07_cc807__TY0V01","*='Kostenverzamelstaat-2020'!$K$81",null,"Paramedische hulp-  Meerkosten Corona type 2 tm 5- kst Corona- incl balans","zvkx07","cc807",null,"TY0V01","Euro's",null,"N","",1]
[null,null,null,null,"zvkx08_a640__TY0V01","*='Kostenverzamelstaat-2020'!$J$85","","Hulpmiddelen-- geaccepteerd","zvkx08","a640","","TY0V01","Euro's",null,"N","",1]
[null,null,null,null,"zvkx08_a640__TY1V01","*=Kostenverzamelstaat!$L$70","","Hulpmiddelen-- geaccepteerd","zvkx08","a640","","TY1V01","Euro's",null,"N","",1]
[null,null,null,null,"zvkx08_a640__TY2V01","*=Kostenverzamelstaat!$N$70","","Hulpmiddelen-- geaccepteerd","zvkx08","a640","","TY2V01","Euro's",null,"N","",1]
[null,null,null,null,"zvkx08_a808__TY0V01","*='Kostenverzamelstaat-2020'!$J$86",null,"Hulpmiddelen- Meerkosten Corona type 2 tm 5- geaccepteerd","zvkx08","a808",null,"TY0V01","Euro's",null,"N","",1]
[null,null,null,null,"zvkx08_a828__TY0V01","*='Kostenverzamelstaat-2020'!$J$87",null,"Hulpmiddelen- Netto continuïteitsbijdrage Corona (basisverzekering)- geaccepteerd","zvkx08","a828",null,"TY0V01","Euro's",null,"N","",1]
[null,null,null,null,"zvkx08_ac640__TY0V01","*='Kostenverzamelstaat-2020'!$L$85","","Hulpmiddelen- kst Corona- geaccepteerd","zvkx08","ac640","","TY0V01","Euro's",null,"N","",1]
[null,null,null,null,"zvkx08_ac808__TY0V01","*='Kostenverzamelstaat-2020'!$L$86",null,"Hulpmiddelen- Meerkosten Corona type 2 tm 5- kst Corona geaccepteerd","zvkx08","ac808",null,"TY0V01","Euro's",null,"N","",1]
[null,null,null,null,"zvkx08_c640__TY0V01","*='Kostenverzamelstaat-2020'!$I$85","","Hulpmiddelen-- incl balans","zvkx08","c640","","TY0V01","Euro's",null,"N","",1]
[null,null,null,null,"zvkx08_c640__TY1V01","*=Kostenverzamelstaat!$K$70","","Hulpmiddelen-- incl balans","zvkx08","c640","","TY1V01","Euro's",null,"N","",1]
[null,null,null,null,"zvkx08_c640__TY2V01","*=Kostenverzamelstaat!$M$70","","Hulpmiddelen-- incl balans","zvkx08","c640","","TY2V01","Euro's",null,"N","",1]
[null,null,null,null,"zvkx08_c808__TY0V01","*='Kostenverzamelstaat-2020'!$I$86",null,"Hulpmiddelen- Meerkosten Corona type 2 tm 5- incl balans","zvkx08","c808",null,"TY0V01","Euro's",null,"N","",1]
[null,null,null,null,"zvkx08_c828__TY0V01","*='Kostenverzamelstaat-2020'!$I$87",null,"Hulpmiddelen- Netto continuïteitsbijdrage Corona (basisverzekering)- incl balans","zvkx08","c828",null,"TY0V01","Euro's",null,"N","",1]
[null,null,null,null,"zvkx08_cc640__TY0V01","*='Kostenverzamelstaat-2020'!$K$85","","Hulpmiddelen- kst Corona- incl balans","zvkx08","cc640","","TY0V01","Euro's",null,"N","",1]
[null,null,null,null,"zvkx08_cc808__TY0V01","*='Kostenverzamelstaat-2020'!$K$86",null,"Hulpmiddelen- Meerkosten Corona type 2 tm 5- kst Corona incl balans","zvkx08","cc808",null,"TY0V01","Euro's",null,"N","",1]
[null,null,null,null,"zvkx09_a650__TY0V01","*='Kostenverzamelstaat-2020'!$J$90","","Ziekenvervoer- ambulance/helicopter- geaccepteerd","zvkx09","a650","","TY0V01","Euro's",null,"N","",1]
[null,null,null,null,"zvkx09_a650__TY1V01","*=Kostenverzamelstaat!$L$72","","Ziekenvervoer- ambulance/helicopter- geaccepteerd","zvkx09","a650","","TY1V01","Euro's",null,"N","",1]
[null,null,null,null,"zvkx09_a650__TY2V01","*=Kostenverzamelstaat!$N$72","","Ziekenvervoer- ambulance/helicopter- geaccepteerd","zvkx09","a650","","TY2V01","Euro's",null,"N","",1]
[null,null,null,null,"zvkx09_a6501__TY0V01","*='Kostenverzamelstaat-2020'!$J$91","","Ziekenvervoer- regionale ambulance- geaccepteerd","zvkx09","a6501","","TY0V01","Euro's",null,"N","",1]
[null,null,null,null,"zvkx09_a6501__TY1V01","*=Kostenverzamelstaat!$L$73","","Ziekenvervoer- regionale ambulance- geaccepteerd","zvkx09","a6501","","TY1V01","Euro's",null,"N","",1]
[null,null,null,null,"zvkx09_a6501__TY2V01","*=Kostenverzamelstaat!$N$73","","Ziekenvervoer- regionale ambulance- geaccepteerd","zvkx09","a6501","","TY2V01","Euro's",null,"N","",1]
[null,null,null,null,"zvkx09_a651__TY0V01","*='Kostenverzamelstaat-2020'!$J$92","","Ziekenvervoer- ov, taxi en eigen auto- geaccepteerd","zvkx09","a651","","TY0V01","Euro's",null,"N","",1]
[null,null,null,null,"zvkx09_a651__TY1V01","*=Kostenverzamelstaat!$L$74","","Ziekenvervoer- ov, taxi en eigen auto- geaccepteerd","zvkx09","a651","","TY1V01","Euro's",null,"N","",1]
[null,null,null,null,"zvkx09_a651__TY2V01","*=Kostenverzamelstaat!$N$74","","Ziekenvervoer- ov, taxi en eigen auto- geaccepteerd","zvkx09","a651","","TY2V01","Euro's",null,"N","",1]
[null,null,null,null,"zvkx09_a809__TY0V01","*='Kostenverzamelstaat-2020'!$J$93",null,"Ziekenvervoer- Meerkosten Corona type 2 tm 5- geaccepteerd","zvkx09","a0809",null,"TY0V01","Euro's",null,"N","",1]
[null,null,null,null,"zvkx09_a829__TY0V01","*='Kostenverzamelstaat-2020'!$J$94",null,"Ziekenvervoer- Netto continuïteitsbijdrage Corona (basisverzekering)- geaccepteerd","zvkx09","a829",null,"TY0V01","Euro's",null,"N","",1]
[null,null,null,null,"zvkx09_ac650__TY0V01","*='Kostenverzamelstaat-2020'!$L$90","","Ziekenvervoer- ambulance/helicopter- kst Corona- geaccepteerd","zvkx09","ac650","","TY0V01","Euro's",null,"N","",1]
[null,null,null,null,"zvkx09_ac6501__TY0V01","*='Kostenverzamelstaat-2020'!$L$91","","Ziekenvervoer- regionale ambulance- kst Corona- geaccepteerd","zvkx09","ac6501","","TY0V01","Euro's",null,"N","",1]
[null,null,null,null,"zvkx09_ac651__TY0V01","*='Kostenverzamelstaat-2020'!$L$92","","Ziekenvervoer- ov, taxi en eigen auto- kst Corona- geaccepteerd","zvkx09","ac651","","TY0V01","Euro's",null,"N","",1]
[null,null,null,null,"zvkx09_ac809__TY0V01","*='Kostenverzamelstaat-2020'!$L$93",null,"Ziekenvervoer- Meerkosten Corona type 2 tm 5- kst Corona- geaccepteerd","zvkx09","ac0809",null,"TY0V01","Euro's",null,"N","",1]
[null,null,null,null,"zvkx09_c650__TY0V01","*='Kostenverzamelstaat-2020'!$I$90","","Ziekenvervoer- ambulance/helicopter- incl balans","zvkx09","c650","","TY0V01","Euro's",null,"N","",1]
[null,null,null,null,"zvkx09_c650__TY1V01","*=Kostenverzamelstaat!$K$72","","Ziekenvervoer- ambulance/helicopter- incl balans","zvkx09","c650","","TY1V01","Euro's",null,"N","",1]
[null,null,null,null,"zvkx09_c650__TY2V01","*=Kostenverzamelstaat!$M$72","","Ziekenvervoer- ambulance/helicopter- incl balans","zvkx09","c650","","TY2V01","Euro's",null,"N","",1]
[null,null,null,null,"zvkx09_c6501__TY0V01","*='Kostenverzamelstaat-2020'!$I$91","","Ziekenvervoer- regionale ambulance- incl balans","zvkx09","c6501","","TY0V01","Euro's",null,"N","",1]
[null,null,null,null,"zvkx09_c6501__TY1V01","*=Kostenverzamelstaat!$K$73","","Ziekenvervoer- regionale ambulance- incl balans","zvkx09","c6501","","TY1V01","Euro's",null,"N","",1]
[null,null,null,null,"zvkx09_c6501__TY2V01","*=Kostenverzamelstaat!$M$73","","Ziekenvervoer- regionale ambulance- incl balans","zvkx09","c6501","","TY2V01","Euro's",null,"N","",1]
[null,null,null,null,"zvkx09_c651__TY0V01","*='Kostenverzamelstaat-2020'!$I$92","","Ziekenvervoer- ov, taxi en eigen auto- incl balans","zvkx09","c651","","TY0V01","Euro's",null,"N","",1]
[null,null,null,null,"zvkx09_c651__TY1V01","*=Kostenverzamelstaat!$K$74","","Ziekenvervoer- ov, taxi en eigen auto- incl balans","zvkx09","c651","","TY1V01","Euro's",null,"N","",1]
[null,null,null,null,"zvkx09_c651__TY2V01","*=Kostenverzamelstaat!$M$74","","Ziekenvervoer- ov, taxi en eigen auto- incl balans","zvkx09","c651","","TY2V01","Euro's",null,"N","",1]
[null,null,null,null,"zvkx09_c809__TY0V01","*='Kostenverzamelstaat-2020'!$I$93",null,"Ziekenvervoer- Meerkosten Corona type 2 tm 5-  incl balans","zvkx09","c809",null,"TY0V01","Euro's",null,"N","",1]
[null,null,null,null,"zvkx09_c829__TY0V01","*='Kostenverzamelstaat-2020'!$I$94",null,"Ziekenvervoer- Netto continuïteitsbijdrage Corona (basisverzekering)-  incl balans","zvkx09","c829",null,"TY0V01","Euro's",null,"N","",1]
[null,null,null,null,"zvkx09_cc650__TY0V01","*='Kostenverzamelstaat-2020'!$K$90","","Ziekenvervoer- ambulance/helicopter- kst Corona- incl balans","zvkx09","cc650","","TY0V01","Euro's",null,"N","",1]
[null,null,null,null,"zvkx09_cc6501__TY0V01","*='Kostenverzamelstaat-2020'!$K$91","","Ziekenvervoer- regionale ambulance-  kst Corona- incl balans","zvkx09","cc6501","","TY0V01","Euro's",null,"N","",1]
[null,null,null,null,"zvkx09_cc651__TY0V01","*='Kostenverzamelstaat-2020'!$K$92","","Ziekenvervoer- ov, taxi en eigen auto- kst Corona- incl balans","zvkx09","cc651","","TY0V01","Euro's",null,"N","",1]
[null,null,null,null,"zvkx09_cc809__TY0V01","*='Kostenverzamelstaat-2020'!$K$93",null,"Ziekenvervoer- Meerkosten Corona type 2 tm 5-  kst Corona- incl balans","zvkx09","cc809",null,"TY0V01","Euro's",null,"N","",1]
[null,null,null,null,"zvkx10_a661__TY0V01","*='Kostenverzamelstaat-2020'!$J$108","","Geneeskundige GGZ- GGZ met verblijf- geaccepteerd","zvkx10","a661","","TY0V01","Euro's",null,"N","",1]
[null,null,null,null,"zvkx10_a661__TY1V01","*=Kostenverzamelstaat!$L$87","","Geneeskundige GGZ- GGZ met verblijf- geaccepteerd","zvkx10","a661","","TY1V01","Euro's",null,"N","",1]
[null,null,null,null,"zvkx10_a661__TY2V01","*=Kostenverzamelstaat!$N$87","","Geneeskundige GGZ- GGZ met verblijf- geaccepteerd","zvkx10","a661","","TY2V01","Euro's",null,"N","",1]
[null,null,null,null,"zvkx10_a6611__TY0V01","*='Kostenverzamelstaat-2020'!$J$109","","Geneeskundige GGZ- GGZ jaar 2 en 3- geaccepteerd","zvkx10","a6611","","TY0V01","Euro's",null,"N","",1]
[null,null,null,null,"zvkx10_a6611__TY1V01","*=Kostenverzamelstaat!$L$88","","Geneeskundige GGZ- GGZ jaar 2 en 3- geaccepteerd","zvkx10","a6611","","TY1V01","Euro's",null,"N","",1]
[null,null,null,null,"zvkx10_a6611__TY2V01","*=Kostenverzamelstaat!$N$88","","Geneeskundige GGZ- GGZ jaar 2 en 3- geaccepteerd","zvkx10","a6611","","TY2V01","Euro's",null,"N","",1]
[null,null,null,null,"zvkx10_a662__TY0V01","*='Kostenverzamelstaat-2020'!$J$110","","Geneeskundige GGZ- GGZ zonder verblijf- geaccepteerd","zvkx10","a662","","TY0V01","Euro's",null,"N","",1]
[null,null,null,null,"zvkx10_a662__TY1V01","*=Kostenverzamelstaat!$L$89","","Geneeskundige GGZ- GGZ zonder verblijf- geaccepteerd","zvkx10","a662","","TY1V01","Euro's",null,"N","",1]
[null,null,null,null,"zvkx10_a662__TY2V01","*=Kostenverzamelstaat!$N$89","","Geneeskundige GGZ- GGZ zonder verblijf- geaccepteerd","zvkx10","a662","","TY2V01","Euro's",null,"N","",1]
[null,null,null,null,"zvkx10_a665__TY0V01","*='Kostenverzamelstaat-2020'!$J$111","","Geneeskundige GGZ- basis GGZ- geaccepteerd","zvkx10","a665","","TY0V01","Euro's",null,"N","",1]
[null,null,null,null,"zvkx10_a665__TY1V01","*=Kostenverzamelstaat!$L$90","","Geneeskundige GGZ- basis GGZ- geaccepteerd","zvkx10","a665","","TY1V01","Euro's",null,"N","",1]
[null,null,null,null,"zvkx10_a665__TY2V01","*=Kostenverzamelstaat!$N$90","","Geneeskundige GGZ- basis GGZ- geaccepteerd","zvkx10","a665","","TY2V01","Euro's",null,"N","",1]
[null,null,null,null,"zvkx10_a810__TY0V01","*='Kostenverzamelstaat-2020'!$J$112",null,"Geneeskundige GGZ- Meerkosten Corona type 2 tm 5- geaccepteerd","zvkx10","a810",null,"TY0V01","Euro's",null,"N","",1]
[null,null,null,null,"zvkx10_a830__TY0V01","*='Kostenverzamelstaat-2020'!$J$113",null,"Geneeskundige GGZ- Netto continuïteitsbijdrage Corona (basisverzekering)- geaccepteerd","zvkx10","a830",null,"TY0V01","Euro's",null,"N","",1]
[null,null,null,null,"zvkx10_a830__TY1V01","*=Kostenverzamelstaat!$N$91",null,"Geneeskundige GGZ- Netto continuïteitsbijdrage Corona (basisverzekering)- geaccepteerd","zvkx10","a830",null,"TY1V01","Euro's",null,"N","",1]
[null,null,null,null,"zvkx10_ac661__TY0V01","*='Kostenverzamelstaat-2020'!$L$108","","Geneeskundige GGZ- GGZ met verblijf- kst Corona- geaccepteerd","zvkx10","ac661","","TY0V01","Euro's",null,"N","",1]
[null,null,null,null,"zvkx10_ac6611__TY0V01","*='Kostenverzamelstaat-2020'!$L$109","","Geneeskundige GGZ- GGZ jaar 2 en 3- kst Corona- geaccepteerd","zvkx10","ac6611","","TY0V01","Euro's",null,"N","",1]
[null,null,null,null,"zvkx10_ac662__TY0V01","*='Kostenverzamelstaat-2020'!$L$110","","Geneeskundige GGZ- GGZ zonder verblijf- kst Corona- geaccepteerd","zvkx10","ac662","","TY0V01","Euro's",null,"N","",1]
[null,null,null,null,"zvkx10_ac665__TY0V01","*='Kostenverzamelstaat-2020'!$L$111","","Geneeskundige GGZ- basis GGZ- kst Corona- geaccepteerd","zvkx10","ac665","","TY0V01","Euro's",null,"N","",1]
[null,null,null,null,"zvkx10_ac810__TY0V01","*='Kostenverzamelstaat-2020'!$L$112",null,"Geneeskundige GGZ- Meerkosten Corona type 2 tm 5- kst Corona- geaccepteerd","zvkx10","ac810",null,"TY0V01","Euro's",null,"N","",1]
[null,null,null,null,"zvkx10_c661__TY0V01","*='Kostenverzamelstaat-2020'!$I$108","","Geneeskundige GGZ- GGZ met verblijf- incl balans","zvkx10","c661","","TY0V01","Euro's",null,"N","",1]
[null,null,null,null,"zvkx10_c661__TY1V01","*=Kostenverzamelstaat!$K$87","","Geneeskundige GGZ- GGZ met verblijf- incl balans","zvkx10","c661","","TY1V01","Euro's",null,"N","",1]
[null,null,null,null,"zvkx10_c661__TY2V01","*=Kostenverzamelstaat!$M$87","","Geneeskundige GGZ- GGZ met verblijf- incl balans","zvkx10","c661","","TY2V01","Euro's",null,"N","",1]
[null,null,null,null,"zvkx10_c6611__TY0V01","*='Kostenverzamelstaat-2020'!$I$109","","Geneeskundige GGZ- GGZ jaar 2 en 3- incl balans","zvkx10","c6611","","TY0V01","Euro's",null,"N","",1]
[null,null,null,null,"zvkx10_c6611__TY1V01","*=Kostenverzamelstaat!$K$88","","Geneeskundige GGZ- GGZ jaar 2 en 3- incl balans","zvkx10","c6611","","TY1V01","Euro's",null,"N","",1]
[null,null,null,null,"zvkx10_c6611__TY2V01","*=Kostenverzamelstaat!$M$88","","Geneeskundige GGZ- GGZ jaar 2 en 3- incl balans","zvkx10","c6611","","TY2V01","Euro's",null,"N","",1]
[null,null,null,null,"zvkx10_c662__TY0V01","*='Kostenverzamelstaat-2020'!$I$110","","Geneeskundige GGZ- GGZ zonder verblijf- incl balans","zvkx10","c662","","TY0V01","Euro's",null,"N","",1]
[null,null,null,null,"zvkx10_c662__TY1V01","*=Kostenverzamelstaat!$K$89","","Geneeskundige GGZ- GGZ zonder verblijf- incl balans","zvkx10","c662","","TY1V01","Euro's",null,"N","",1]
[null,null,null,null,"zvkx10_c662__TY2V01","*=Kostenverzamelstaat!$M$89","","Geneeskundige GGZ- GGZ zonder verblijf- incl balans","zvkx10","c662","","TY2V01","Euro's",null,"N","",1]
[null,null,null,null,"zvkx10_c665__TY0V01","*='Kostenverzamelstaat-2020'!$I$111","","Geneeskundige GGZ- basis GGZ- incl balans","zvkx10","c665","","TY0V01","Euro's",null,"N","",1]
[null,null,null,null,"zvkx10_c665__TY1V01","*=Kostenverzamelstaat!$K$90","","Geneeskundige GGZ- basis GGZ- incl balans","zvkx10","c665","","TY1V01","Euro's",null,"N","",1]
[null,null,null,null,"zvkx10_c665__TY2V01","*=Kostenverzamelstaat!$M$90","","Geneeskundige GGZ- basis GGZ- incl balans","zvkx10","c665","","TY2V01","Euro's",null,"N","",1]
[null,null,null,null,"zvkx10_c810__TY0V01","*='Kostenverzamelstaat-2020'!$I$112",null,"Geneeskundige GGZ- Meerkosten Corona type 2 tm 5- incl balans","zvkx10","c810",null,"TY0V01","Euro's",null,"N","",1]
[null,null,null,null,"zvkx10_c830__TY0V01","*='Kostenverzamelstaat-2020'!$I$113",null,"Geneeskundige GGZ- Netto continuïteitsbijdrage Corona (basisverzekering)- incl balans","zvkx10","c830",null,"TY0V01","Euro's",null,"N","",1]
[null,null,null,null,"zvkx10_c830__TY1V01","*=Kostenverzamelstaat!$M$91",null,"Geneeskundige GGZ- Netto continuïteitsbijdrage Corona (basisverzekering)- incl balans","zvkx10","c830",null,"TY1V01","Euro's",null,"N","",1]
[null,null,null,null,"zvkx10_cc661__TY0V01","*='Kostenverzamelstaat-2020'!$I$113","","Geneeskundige GGZ- GGZ met verblijf- kst Corona- incl balans","zvkx10","cc661","","TY0V01","Euro's",null,"N","",1]
[null,null,null,null,"zvkx10_cc6611__TY0V01","*='Kostenverzamelstaat-2020'!$I$113","","Geneeskundige GGZ- GGZ jaar 2 en 3- kst Corona- incl balans","zvkx10","cc6611","","TY0V01","Euro's",null,"N","",1]
[null,null,null,null,"zvkx10_cc662__TY0V01","*='Kostenverzamelstaat-2020'!$I$113","","Geneeskundige GGZ- GGZ zonder verblijf- kst Corona- incl balans","zvkx10","cc662","","TY0V01","Euro's",null,"N","",1]
[null,null,null,null,"zvkx10_cc665__TY0V01","*='Kostenverzamelstaat-2020'!$I$113","","Geneeskundige GGZ- basis GGZ- kst Corona- incl balans","zvkx10","cc665","","TY0V01","Euro's",null,"N","",1]
[null,null,null,null,"zvkx10_cc810__TY0V01","*='Kostenverzamelstaat-2020'!$I$113",null,"Geneeskundige GGZ- Meerkosten Corona type 2 tm 5- kst Corona- incl balans","zvkx10","cc810",null,"TY0V01","Euro's",null,"N","",1]
[null,null,null,null,"zvkx11_a670__TY0V01","*='Kostenverzamelstaat-2020'!$J$116","","Geriatische revalidatiezorg-- geaccepteerd","zvkx11","a670","","TY0V01","Euro's",null,"N","",1]
[null,null,null,null,"zvkx11_a670__TY1V01","*=Kostenverzamelstaat!$L$94","","Geriatische revalidatiezorg-- geaccepteerd","zvkx11","a670","","TY1V01","Euro's",null,"N","",1]
[null,null,null,null,"zvkx11_a670__TY2V01","*=Kostenverzamelstaat!$N$94","","Geriatische revalidatiezorg-- geaccepteerd","zvkx11","a670","","TY2V01","Euro's",null,"N","",1]
[null,null,null,null,"zvkx11_a671__TY0V01","*='Kostenverzamelstaat-2020'!$J$119","","Geriatische revalidatiezorg- Eerstelijnsverblijf- geaccepteerd","zvkx11","a671","","TY0V01","Euro's",null,"N","",1]
[null,null,null,null,"zvkx11_a671__TY1V01","*=Kostenverzamelstaat!$L$95","","Geriatische revalidatiezorg- Eerstelijnsverblijf- geaccepteerd","zvkx11","a671","","TY1V01","Euro's",null,"N","",1]
[null,null,null,null,"zvkx11_a671__TY2V01","*=Kostenverzamelstaat!$N$95","","Geriatische revalidatiezorg- Eerstelijnsverblijf- geaccepteerd","zvkx11","a671","","TY2V01","Euro's",null,"N","",1]
[null,null,null,null,"zvkx11_a672__TY0V01","*='Kostenverzamelstaat-2020'!$J$122",null,"Geriatische revalidatiezorg- GZSP- geaccepteerd","zvkx11","a672","","TY0V01","Euro's",null,"N","",1]
[null,null,null,null,"zvkx11_a672__TY1V01","*=Kostenverzamelstaat!$L$96",null,"Geriatische revalidatiezorg- GZSP- geaccepteerd","zvkx11","a672","","TY1V01","Euro's",null,"N","",1]
[null,null,null,null,"zvkx11_a672__TY2V01","*=Kostenverzamelstaat!$N$96",null,"Geriatische revalidatiezorg- GZSP- geaccepteerd","zvkx11","a672","","TY2V01","Euro's",null,"N","",1]
[null,null,null,null,"zvkx11_a8111__TY0V01","*='Kostenverzamelstaat-2020'!$J$117",null,"Geriatische revalidatiezorg- Meerkosten Corona type 2 tm 5- geaccepteerd","zvkx11","a8111",null,"TY0V01","Euro's",null,"N","",1]
[null,null,null,null,"zvkx11_a8112__TY0V01","*='Kostenverzamelstaat-2020'!$J$120",null,"Geriatische revalidatiezorg- Eerstelijnsverblijf- Meerkosten Corona type 2 tm 5-geaccepteerd","zvkx11","a8112",null,"TY0V01","Euro's",null,"N","",1]
[null,null,null,null,"zvkx11_a8113__TY0V01","*='Kostenverzamelstaat-2020'!$J$123",null,"Geriatische revalidatiezorg- GZSP-  Meerkosten Corona type 2 tm 5- geaccepteerd","zvkx11","a8113",null,"TY0V01","Euro's",null,"N","",1]
[null,null,null,null,"zvkx11_a8311__TY0V01","*='Kostenverzamelstaat-2020'!$J$118",null,"Geriatische revalidatiezorg- Netto continuïteitsbijdrage Corona (basisverzekering)- geaccepteerd","zvkx11","a8311",null,"TY0V01","Euro's",null,"N","",1]
[null,null,null,null,"zvkx11_a8312__TY0V01","*='Kostenverzamelstaat-2020'!$J$121",null,"Geriatische revalidatiezorg- Eerstelijnsverblijf- Netto continuïteitsbijdrage Corona (basisverzekering)-  geaccepteerd","zvkx11","a8312",null,"TY0V01","Euro's",null,"N","",1]
[null,null,null,null,"zvkx11_a8313__TY0V01","*='Kostenverzamelstaat-2020'!$J$124",null,"Geriatische revalidatiezorg- GZSP- Netto continuïteitsbijdrage Corona (basisverzekering)- geaccepteerd","zvkx11","a8313",null,"TY0V01","Euro's",null,"N","",1]
[null,null,null,null,"zvkx11_ac670__TY0V01","*='Kostenverzamelstaat-2020'!$L$116","","Geriatische revalidatiezorg- kst Corona- geaccepteerd","zvkx11","ac670","","TY0V01","Euro's",null,"N","",1]
[null,null,null,null,"zvkx11_ac671__TY0V01","*='Kostenverzamelstaat-2020'!$L$119","","Geriatische revalidatiezorg- Eerstelijnsverblijf- kst Corona- geaccepteerd","zvkx11","ac671","","TY0V01","Euro's",null,"N","",1]
[null,null,null,null,"zvkx11_ac672__TY0V01","*='Kostenverzamelstaat-2020'!$L$122",null,"Geriatische revalidatiezorg- GZSP- kst Corona- geaccepteerd","zvkx11","ac672","","TY0V01","Euro's",null,"N","",1]
[null,null,null,null,"zvkx11_ac8111__TY0V01","*='Kostenverzamelstaat-2020'!$L$117",null,"Geriatische revalidatiezorg- Meerkosten Corona type 2 tm 5- kst Corona geaccepteerd","zvkx11","ac8111",null,"TY0V01","Euro's",null,"N","",1]
[null,null,null,null,"zvkx11_ac8112__TY0V01","*='Kostenverzamelstaat-2020'!$L$120",null,"Geriatische revalidatiezorg- Eerstelijnsverblijf- Meerkosten Corona type 2 tm 5- kst Corona- geaccepteerd","zvkx11","ac8112",null,"TY0V01","Euro's",null,"N","",1]
[null,null,null,null,"zvkx11_ac8113__TY0V01","*='Kostenverzamelstaat-2020'!$L$123",null,"Geriatische revalidatiezorg- GZSP-  Meerkosten Corona type 2 tm 5- kst Corona- geaccepteerd","zvkx11","ac8113",null,"TY0V01","Euro's",null,"N","",1]
[null,null,null,null,"zvkx11_c670__TY0V01","*='Kostenverzamelstaat-2020'!$I$116","","Geriatische revalidatiezorg- incl balans","zvkx11","c670","","TY0V01","Euro's",null,"N","",1]
[null,null,null,null,"zvkx11_c670__TY1V01","*=Kostenverzamelstaat!$K$94","","Geriatische revalidatiezorg- incl balans","zvkx11","c670","","TY1V01","Euro's",null,"N","",1]
[null,null,null,null,"zvkx11_c670__TY2V01","*=Kostenverzamelstaat!$M$94","","Geriatische revalidatiezorg- incl balans","zvkx11","c670","","TY2V01","Euro's",null,"N","",1]
[null,null,null,null,"zvkx11_c671__TY0V01","*='Kostenverzamelstaat-2020'!$I$119","","Geriatische revalidatiezorg- Eerstelijnsverblijf- incl balans","zvkx11","c671","","TY0V01","Euro's",null,"N","",1]
[null,null,null,null,"zvkx11_c671__TY1V01","*=Kostenverzamelstaat!$K$95","","Geriatische revalidatiezorg- Eerstelijnsverblijf- incl balans","zvkx11","c671","","TY1V01","Euro's",null,"N","",1]
[null,null,null,null,"zvkx11_c671__TY2V01","*=Kostenverzamelstaat!$M$95","","Geriatische revalidatiezorg- Eerstelijnsverblijf- incl balans","zvkx11","c671","","TY2V01","Euro's",null,"N","",1]
[null,null,null,null,"zvkx11_c672__TY0V01","*='Kostenverzamelstaat-2020'!$I$122",null,"Geriatische revalidatiezorg- GZSP- incl balans","zvkx11","c672","","TY0V01","Euro's",null,"N","",1]
[null,null,null,null,"zvkx11_c672__TY1V01","*=Kostenverzamelstaat!$K$96",null,"Geriatische revalidatiezorg- GZSP- incl balans","zvkx11","a672","","TY1V01","Euro's",null,"N","",1]
[null,null,null,null,"zvkx11_c672__TY2V01","*=Kostenverzamelstaat!$M$96",null,"Geriatische revalidatiezorg- GZSP- incl balans","zvkx11","a672","","TY2V01","Euro's",null,"N","",1]
[null,null,null,null,"zvkx11_c8111__TY0V01","*='Kostenverzamelstaat-2020'!$I$117",null,"Geriatische revalidatiezorg- GZSP-  Meerkosten Corona type 2 tm 5- geaccepteerd","zvkx11","c8111",null,"TY0V01","Euro's",null,"N","",1]
[null,null,null,null,"zvkx11_c8112__TY0V01","*='Kostenverzamelstaat-2020'!$I$120",null,"Geriatische revalidatiezorg- Eerstelijnsverblijf-  Meerkosten Corona type 2 tm 5- incl balans","zvkx11","c8112",null,"TY0V01","Euro's",null,"N","",1]
[null,null,null,null,"zvkx11_c8113__TY0V01","*='Kostenverzamelstaat-2020'!$I$123",null,"Geriatische revalidatiezorg- GZSP- Meerkosten Corona type 2 tm 5- incl balans","zvkx11","c8113",null,"TY0V01","Euro's",null,"N","",1]
[null,null,null,null,"zvkx11_c8311__TY0V01","*='Kostenverzamelstaat-2020'!$I$118",null,"Geriatische revalidatiezorg- GZSP- Netto continuïteitsbijdrage Corona (basisverzekering)- geaccepteerd","zvkx11","c8311",null,"TY0V01","Euro's",null,"N","",1]
[null,null,null,null,"zvkx11_c8312__TY0V01","*='Kostenverzamelstaat-2020'!$I$121",null,"Geriatische revalidatiezorg- Eerstelijnsverblijf- Netto continuïteitsbijdrage Corona (basisverzekering)- incl balans","zvkx11","c8312",null,"TY0V01","Euro's",null,"N","",1]
[null,null,null,null,"zvkx11_c8313__TY0V01","*='Kostenverzamelstaat-2020'!$I$124",null,"Geriatische revalidatiezorg- GZSP- Netto continuïteitsbijdrage Corona (basisverzekering)- incl balans","zvkx11","c8313",null,"TY0V01","Euro's",null,"N","",1]
[null,null,null,null,"zvkx11_cc670__TY0V01","*='Kostenverzamelstaat-2020'!$K$116","","Geriatische revalidatiezorg- kst Corona- incl balans","zvkx11","cc670","","TY0V01","Euro's",null,"N","",1]
[null,null,null,null,"zvkx11_cc671__TY0V01","*='Kostenverzamelstaat-2020'!$K$119","","Geriatische revalidatiezorg- Eerstelijnsverblijf- kst Corona- incl balans","zvkx11","cc671","","TY0V01","Euro's",null,"N","",1]
[null,null,null,null,"zvkx11_cc672__TY0V01","*='Kostenverzamelstaat-2020'!$K$122",null,"Geriatische revalidatiezorg- GZSP- kst Corona- incl balans","zvkx11","cc672","","TY0V01","Euro's",null,"N","",1]
[null,null,null,null,"zvkx11_cc8111__TY0V01","*='Kostenverzamelstaat-2020'!$K$117",null,"Geriatische revalidatiezorg- GZSP-  Meerkosten Corona type 2 tm 5- kst Corona- geaccepteerd","zvkx11","cc8111",null,"TY0V01","Euro's",null,"N","",1]
[null,null,null,null,"zvkx11_cc8112__TY0V01","*='Kostenverzamelstaat-2020'!$K$120",null,"Geriatische revalidatiezorg- Eerstelijnsverblijf-  Meerkosten Corona type 2 tm 5- kst Corona- incl balans","zvkx11","cc8112",null,"TY0V01","Euro's",null,"N","",1]
[null,null,null,null,"zvkx11_cc8113__TY0V01","*='Kostenverzamelstaat-2020'!$K$123",null,"Geriatische revalidatiezorg- GZSP- Meerkosten Corona type 2 tm 5- kst Corona- incl balans","zvkx11","cc8113",null,"TY0V01","Euro's",null,"N","",1]
[null,null,null,null,"zvkx12_a680__TY0V01","*='Kostenverzamelstaat-2020'!$J$127","","Kraamzorg-- geaccepteerd","zvkx12","a680","","TY0V01","Euro's",null,"N","",1]
[null,null,null,null,"zvkx12_a680__TY1V01","*=Kostenverzamelstaat!$L$98","","Kraamzorg-- geaccepteerd","zvkx12","a680","","TY1V01","Euro's",null,"N","",1]
[null,null,null,null,"zvkx12_a680__TY2V01","*=Kostenverzamelstaat!$N$98","","Kraamzorg-- geaccepteerd","zvkx12","a680","","TY2V01","Euro's",null,"N","",1]
[null,null,null,null,"zvkx12_a812__TY0V01","*='Kostenverzamelstaat-2020'!$J$128",null,"Kraamzorg- Meerkosten Corona type 2 tm 5- geaccepteerd","zvkx12","a812",null,"TY0V01","Euro's",null,"N","",1]
[null,null,null,null,"zvkx12_a832__TY0V01","*='Kostenverzamelstaat-2020'!$J$129",null,"Kraamzorg- Netto continuïteitsbijdrage Corona (basisverzekering)- geaccepteerd","zvkx12","a832",null,"TY0V01","Euro's",null,"N","",1]
[null,null,null,null,"zvkx12_acc680__TY0V01","*='Kostenverzamelstaat-2020'!$L$127","","Kraamzorg- kst Corona- geaccepteerd","zvkx12","ac680","","TY0V01","Euro's",null,"N","",1]
[null,null,null,null,"zvkx12_acc812__TY0V01","*='Kostenverzamelstaat-2020'!$L$128",null,"Kraamzorg- Meerkosten Corona type 2 tm 5- kst Corona- geaccepteerd","zvkx12","ac812",null,"TY0V01","Euro's",null,"N","",1]
[null,null,null,null,"zvkx12_c680__TY0V01","*='Kostenverzamelstaat-2020'!$I$127","","Kraamzorg-- incl balans","zvkx12","c680","","TY0V01","Euro's",null,"N","",1]
[null,null,null,null,"zvkx12_c680__TY1V01","*=Kostenverzamelstaat!$K$98","","Kraamzorg-- incl balans","zvkx12","c680","","TY1V01","Euro's",null,"N","",1]
[null,null,null,null,"zvkx12_c680__TY2V01","*=Kostenverzamelstaat!$M$98","","Kraamzorg-- incl balans","zvkx12","c680","","TY2V01","Euro's",null,"N","",1]
[null,null,null,null,"zvkx12_c812__TY0V01","*='Kostenverzamelstaat-2020'!$I$128",null,"Kraamzorg- Meerkosten Corona type 2 tm 5- incl balans","zvkx12","c812",null,"TY0V01","Euro's",null,"N","",1]
[null,null,null,null,"zvkx12_c832__TY0V01","*='Kostenverzamelstaat-2020'!$I$129",null,"Kraamzorg- Netto continuïteitsbijdrage Corona (basisverzekering)- incl balans","zvkx12","c832",null,"TY0V01","Euro's",null,"N","",1]
[null,null,null,null,"zvkx12_cc680__TY0V01","*='Kostenverzamelstaat-2020'!$K$127","","Kraamzorg- kst Corona- incl balans","zvkx12","cc680","","TY0V01","Euro's",null,"N","",1]
[null,null,null,null,"zvkx12_cc812__TY0V01","*='Kostenverzamelstaat-2020'!$K$128",null,"Kraamzorg- Meerkosten Corona type 2 tm 5- kst Corona- incl balans","zvkx12","cc812",null,"TY0V01","Euro's",null,"N","",1]
[null,null,null,null,"zvkx13_a700__TY0V01","*='Kostenverzamelstaat-2020'!$J$132","","Overige kosten- geaccepteerd","zvkx13","a700","","TY0V01","Euro's",null,"N","",1]
[null,null,null,null,"zvkx13_a700__TY1V01","*=Kostenverzamelstaat!$L$100","","Overige kosten-- geaccepteerd","zvkx13","a700","","TY1V01","Euro's",null,"N","",1]
[null,null,null,null,"zvkx13_a700__TY2V01","*=Kostenverzamelstaat!$N$100","","Overige kosten-- geaccepteerd","zvkx13","a700","","TY2V01","Euro's",null,"N","",1]
[null,null,null,null,"zvkx13_a701__TY0V01","*='Kostenverzamelstaat-2020'!$J$133","","Overige kosten- geneeskundige zorg-geaccepteerd","zvkx13","a701","","TY0V01","Euro's",null,"N","",1]
[null,null,null,null,"zvkx13_a701__TY1V01","*=Kostenverzamelstaat!$L$101","","Overige kosten- geneeskundige zorg- geaccepteerd","zvkx13","a701","","TY1V01","Euro's",null,"N","",1]
[null,null,null,null,"zvkx13_a701__TY2V01","*=Kostenverzamelstaat!$N$101","","Overige kosten- geneeskundige zorg- geaccepteerd","zvkx13","a701","","TY2V01","Euro's",null,"N","",1]
[null,null,null,null,"zvkx13_a702__TY0V01","*='Kostenverzamelstaat-2020'!$J$134","","Overige kosten- zintuiglijk gehandicapten- geaccepteerd","zvkx13","a702","","TY0V01","Euro's",null,"N","",1]
[null,null,null,null,"zvkx13_a702__TY1V01","*=Kostenverzamelstaat!$L$102","","Overige kosten- zintuiglijk gehandicapten- geaccepteerd","zvkx13","a702","","TY1V01","Euro's",null,"N","",1]
[null,null,null,null,"zvkx13_a702__TY2V01","*=Kostenverzamelstaat!$N$102","","Overige kosten- zintuiglijk gehandicapten- geaccepteerd","zvkx13","a702","","TY2V01","Euro's",null,"N","",1]
[null,null,null,null,"zvkx13_a813__TY0V01","*='Kostenverzamelstaat-2020'!$J$135",null,"Overige kosten-Meerkosten Corona type 2 tm 5- geaccepteerd","zvkx13","a813",null,"TY0V01","Euro's",null,"N","",1]
[null,null,null,null,"zvkx13_a833__TY0V01","*='Kostenverzamelstaat-2020'!$J$136",null,"Overige kosten-Netto continuïteitsbijdrage Corona (basisverzekering)- geaccepteerd","zvkx13","a833",null,"TY0V01","Euro's",null,"N","",1]
[null,null,null,null,"zvkx13_ac700__TY0V01","*='Kostenverzamelstaat-2020'!$L$132","","Overige kosten- kst Corona- geaccepteerd","zvkx13","ac700","","TY0V01","Euro's",null,"N","",1]
[null,null,null,null,"zvkx13_ac701__TY0V01","*='Kostenverzamelstaat-2020'!$L$133","","Overige kosten- geneeskundige zorg- kst Corona- geaccepteerd","zvkx13","ac701","","TY0V01","Euro's",null,"N","",1]
[null,null,null,null,"zvkx13_ac702__TY0V01","*='Kostenverzamelstaat-2020'!$L$134","","Overige kosten- zintuiglijk gehandicapten- kst Corona- geaccepteerd","zvkx13","ac702","","TY0V01","Euro's",null,"N","",1]
[null,null,null,null,"zvkx13_ac813__TY0V01","*='Kostenverzamelstaat-2020'!$L$135",null,"Overige kosten-Meerkosten Corona type 2 tm 5- kst Corona- geaccepteerd","zvkx13","ac813",null,"TY0V01","Euro's",null,"N","",1]
[null,null,null,null,"zvkx13_c700__TY0V01","*='Kostenverzamelstaat-2020'!$I$132","","Overige kosten-- incl balans","zvkx13","c700","","TY0V01","Euro's",null,"N","",1]
[null,null,null,null,"zvkx13_c700__TY1V01","*=Kostenverzamelstaat!$K$100","","Overige kosten-- incl balans","zvkx13","c700","","TY1V01","Euro's",null,"N","",1]
[null,null,null,null,"zvkx13_c700__TY2V01","*=Kostenverzamelstaat!$M$100","","Overige kosten-- incl balans","zvkx13","c700","","TY2V01","Euro's",null,"N","",1]
[null,null,null,null,"zvkx13_c701__TY0V01","*='Kostenverzamelstaat-2020'!$I$133","","Overige kosten- geneeskundige zorg- incl balans","zvkx13","c701","","TY0V01","Euro's",null,"N","",1]
[null,null,null,null,"zvkx13_c701__TY1V01","*=Kostenverzamelstaat!$K$101","","Overige kosten- geneeskundige zorg- incl balans","zvkx13","c701","","TY1V01","Euro's",null,"N","",1]
[null,null,null,null,"zvkx13_c701__TY2V01","*=Kostenverzamelstaat!$M$101","","Overige kosten- geneeskundige zorg- incl balans","zvkx13","c701","","TY2V01","Euro's",null,"N","",1]
[null,null,null,null,"zvkx13_c702__TY0V01","*='Kostenverzamelstaat-2020'!$I$134","","Overige kosten- zintuiglijk gehandicapten- incl balans","zvkx13","c702","","TY0V01","Euro's",null,"N","",1]
[null,null,null,null,"zvkx13_c702__TY1V01","*=Kostenverzamelstaat!$K$102","","Overige kosten- zintuiglijk gehandicapten- incl balans","zvkx13","c702","","TY1V01","Euro's",null,"N","",1]
[null,null,null,null,"zvkx13_c702__TY2V01","*=Kostenverzamelstaat!$M$102","","Overige kosten- zintuiglijk gehandicapten- incl balans","zvkx13","c702","","TY2V01","Euro's",null,"N","",1]
[null,null,null,null,"zvkx13_c813__TY0V01","*='Kostenverzamelstaat-2020'!$I$135",null,"Overige kosten- Meerkosten Corona type 2 tm 5- incl balans","zvkx13","c813",null,"TY0V01","Euro's",null,"N","",1]
[null,null,null,null,"zvkx13_c833__TY0V01","*='Kostenverzamelstaat-2020'!$I$136",null,"Overige kosten- Netto continuïteitsbijdrage Corona (basisverzekering)- incl balans","zvkx13","c833",null,"TY0V01","Euro's",null,"N","",1]
[null,null,null,null,"zvkx13_cc700__TY0V01","*='Kostenverzamelstaat-2020'!$K$132","","Overige kosten- kst Corona- incl balans","zvkx13","cc700","","TY0V01","Euro's",null,"N","",1]
[null,null,null,null,"zvkx13_cc701__TY0V01","*='Kostenverzamelstaat-2020'!$K$133","","Overige kosten- geneeskundige zorg- kst Corona- incl balans","zvkx13","cc701","","TY0V01","Euro's",null,"N","",1]
[null,null,null,null,"zvkx13_cc702__TY0V01","*='Kostenverzamelstaat-2020'!$K$134","","Overige kosten- zintuiglijk gehandicapten- kst Corona- incl balans","zvkx13","cc702","","TY0V01","Euro's",null,"N","",1]
[null,null,null,null,"zvkx13_cc813__TY0V01","*='Kostenverzamelstaat-2020'!$K$135",null,"Overige kosten- Meerkosten Corona type 2 tm 5-  kst Corona- incl balans","zvkx13","cc813",null,"TY0V01","Euro's",null,"N","",1]
[null,null,null,null,"zvkx15_a720__TY0V01","*='Kostenverzamelstaat-2020'!$J$139","","Grensoverschrijdende zorg- via verzekeraar- geaccepteerd","zvkx15","ac720","","TY0V01","Euro's",null,"N","",1]
[null,null,null,null,"zvkx15_a720__TY1V01","*=Kostenverzamelstaat!$L$105","","Grensoverschrijdende zorg- via verzekeraar- geaccepteerd","zvkx15","a722","","TY1V01","Euro's",null,"N","",1]
[null,null,null,null,"zvkx15_a720__TY2V01","*=Kostenverzamelstaat!$N$105","","Grensoverschrijdende zorg- via verzekeraar- geaccepteerd","zvkx15","a722","","TY2V01","Euro's",null,"N","",1]
[null,null,null,null,"zvkx15_a721__TY0V01","*='Kostenverzamelstaat-2020'!$J$140","","Grensoverschrijdende zorg- via verbindingsorgaan- geaccepteerd","zvkx15","ac721","","TY0V01","Euro's",null,"N","",1]
[null,null,null,null,"zvkx15_a721__TY1V01","*=Kostenverzamelstaat!$L$106","","Grensoverschrijdende zorg- via verbindingsorgaan- geaccepteerd","zvkx15","a721","","TY1V01","Euro's",null,"N","",1]
[null,null,null,null,"zvkx15_a721__TY2V01","*=Kostenverzamelstaat!$N$106","","Grensoverschrijdende zorg- via verbindingsorgaan- geaccepteerd","zvkx15","a721","","TY2V01","Euro's",null,"N","",1]
[null,null,null,null,"zvkx15_ac720__TY0V01","*='Kostenverzamelstaat-2020'!$L$139","","Grensoverschrijdende zorg- via verzekeraar-  kst Corona- geaccepteerd","zvkx15","a722","","TY0V01","Euro's",null,"N","",1]
[null,null,null,null,"zvkx15_ac721__TY0V01","*='Kostenverzamelstaat-2020'!$L$140","","Grensoverschrijdende zorg- via verbindingsorgaan-  kst Corona- geaccepteerd","zvkx15","a721","","TY0V01","Euro's",null,"N","",1]
[null,null,null,null,"zvkx15_c720__TY0V01","*='Kostenverzamelstaat-2020'!$I$139","","Grensoverschrijdende zorg- via verzekeraar- incl balans","zvkx15","cc720","","TY0V01","Euro's",null,"N","",1]
[null,null,null,null,"zvkx15_c720__TY1V01","*=Kostenverzamelstaat!$K$105","","Grensoverschrijdende zorg- via verzekeraar- incl balans","zvkx15","c722","","TY1V01","Euro's",null,"N","",1]
[null,null,null,null,"zvkx15_c720__TY2V01","*=Kostenverzamelstaat!$M$105","","Grensoverschrijdende zorg- via verzekeraar- incl balans","zvkx15","c722","","TY2V01","Euro's",null,"N","",1]
[null,null,null,null,"zvkx15_c721__TY0V01","*='Kostenverzamelstaat-2020'!$I$140","","Grensoverschrijdende zorg- via verbindingsorgaan- incl balans","zvkx15","cc721","","TY0V01","Euro's",null,"N","",1]
[null,null,null,null,"zvkx15_c721__TY1V01","*=Kostenverzamelstaat!$K$106","","Grensoverschrijdende zorg- via verbindingsorgaan- incl balans","zvkx15","c721","","TY1V01","Euro's",null,"N","",1]
[null,null,null,null,"zvkx15_c721__TY2V01","*=Kostenverzamelstaat!$M$106","","Grensoverschrijdende zorg- via verbindingsorgaan- incl balans","zvkx15","c721","","TY2V01","Euro's",null,"N","",1]
[null,null,null,null,"zvkx15_cc720__TY0V01","*='Kostenverzamelstaat-2020'!$K$139","","Grensoverschrijdende zorg- via verzekeraar-  kst Corona- incl balans","zvkx15","c722","","TY0V01","Euro's",null,"N","",1]
[null,null,null,null,"zvkx15_cc721__TY0V01","*='Kostenverzamelstaat-2020'!$K$140","","Grensoverschrijdende zorg- via verbindingsorgaan-  kst Corona- incl balans","zvkx15","c721","","TY0V01","Euro's",null,"N","",1]
[null,null,null,null,"zvkx16_a730__TY0V01","*='Kostenverzamelstaat-2020'!$J$143","","Kwaliteitsgelden-- geaccepteerd","zvkx16","a730","","TY0V01","Euro's",null,"N","",1]
[null,null,null,null,"zvkx16_a730__TY1V01","*=Kostenverzamelstaat!$L$109","","Kwaliteitsgelden-- geaccepteerd","zvkx16","a730","","TY1V01","Euro's",null,"N","",1]
[null,null,null,null,"zvkx16_a730__TY2V01","*=Kostenverzamelstaat!$N$109","","Kwaliteitsgelden-- geaccepteerd","zvkx16","a730","","TY2V01","Euro's",null,"N","",1]
[null,null,null,null,"zvkx16_ac730__TY0V01","*='Kostenverzamelstaat-2020'!$K$143","","Kwaliteitsgelden-  kst Corona- geaccepteerd","zvkx16","ac730","","TY0V01","Euro's",null,"N","",1]
[null,null,null,null,"zvkx16_c730__TY0V01","*='Kostenverzamelstaat-2020'!$I$143","","Kwaliteitsgelden-- incl balans","zvkx16","c730","","TY0V01","Euro's",null,"N","",1]
[null,null,null,null,"zvkx16_c730__TY1V01","*=Kostenverzamelstaat!$K$109","","Kwaliteitsgelden-- incl balans","zvkx16","c730","","TY1V01","Euro's",null,"N","",1]
[null,null,null,null,"zvkx16_c730__TY2V01","*=Kostenverzamelstaat!$M$109","","Kwaliteitsgelden-- incl balans","zvkx16","c730","","TY2V01","Euro's",null,"N","",1]
[null,null,null,null,"zvkx16_cc730__TY0V01","*='Kostenverzamelstaat-2020'!$L$143","","Kwaliteitsgelden-  kst Corona- incl balans","zvkx16","cc730","","TY0V01","Euro's",null,"N","",1]
[null,null,null,null,"zvkxdnb_a8901__TY0V01","*='Kostenverzamelstaat-2020'!$J$155","","Verschilposten DNB- Opbrengsten verhaal- geaccepteerd","zvkxdnb","a8901","","TY0V01","Euro's",null,"N","",1]
[null,null,null,null,"zvkxdnb_a8901__TY1V01","*=Kostenverzamelstaat!$L$120","","Verschilposten DNB- Opbrengsten verhaal- geaccepteerd","zvkxdnb","a8901","","TY1V01","Euro's",null,"N","",1]
[null,null,null,null,"zvkxdnb_a8901__TY2V01","*=Kostenverzamelstaat!$N$120","","Verschilposten DNB- Opbrengsten verhaal- geaccepteerd","zvkxdnb","a8901","","TY2V01","Euro's",null,"N","",1]
[null,null,null,null,"zvkxdnb_a910__TY0V01","*='Kostenverzamelstaat-2020'!$J$156","","Verschilposten DNB- Schade tlv het vrijwillig eigen risico- geaccepteerd","zvkxdnb","a910","","TY0V01","Euro's",null,"N","",1]
[null,null,null,null,"zvkxdnb_a910__TY1V01","*=Kostenverzamelstaat!$L$121","","Verschilposten DNB- Schade tlv het vrijwillig eigen risico- geaccepteerd","zvkxdnb","a910","","TY1V01","Euro's",null,"N","",1]
[null,null,null,null,"zvkxdnb_a910__TY2V01","*=Kostenverzamelstaat!$N$121","","Verschilposten DNB- Schade tlv het vrijwillig eigen risico- geaccepteerd","zvkxdnb","a910","","TY2V01","Euro's",null,"N","",1]
[null,null,null,null,"zvkxdnb_a915__TY0V01","*='Kostenverzamelstaat-2020'!$J$157","","Verschilposten DNB- Schade tlv het verplicht eigen risico- geaccepteerd","zvkxdnb","a915","","TY0V01","Euro's",null,"N","",1]
[null,null,null,null,"zvkxdnb_a915__TY1V01","*=Kostenverzamelstaat!$L$122","","Verschilposten DNB- Schade tlv het verplicht eigen risico- geaccepteerd","zvkxdnb","a915","","TY1V01","Euro's",null,"N","",1]
[null,null,null,null,"zvkxdnb_a915__TY2V01","*=Kostenverzamelstaat!$N$122","","Verschilposten DNB- Schade tlv het verplicht eigen risico- geaccepteerd","zvkxdnb","a915","","TY2V01","Euro's",null,"N","",1]
[null,null,null,null,"zvkxdnb_a940__TY0V01","*='Kostenverzamelstaat-2020'!$J$158","","Verschilposten DNB- Netto Premieopbrengsten- geaccepteerd","zvkxdnb","a940","","TY0V01","Euro's",null,"N","",1]
[null,null,null,null,"zvkxdnb_a940__TY1V01","*=Kostenverzamelstaat!$L$123","","Verschilposten DNB- Netto Premieopbrengsten- geaccepteerd","zvkxdnb","a940","","TY1V01","Euro's",null,"N","",1]
[null,null,null,null,"zvkxdnb_a940__TY2V01","*=Kostenverzamelstaat!$N$123","","Verschilposten DNB- Netto Premieopbrengsten- geaccepteerd","zvkxdnb","a940","","TY2V01","Euro's",null,"N","",1]
[null,null,null,null,"zvkxdnb_ac915__TY0V01","*='Kostenverzamelstaat-2020'!$L$157","","Verschilposten DNB- Schade tlv het verplicht eigen risico- kst Corona- geaccepteerd","zvkxdnb","ac915","","TY0V01","Euro's",null,"N","",1]
[null,null,null,null,"zvkxdnb_c8901__TY0V01","*='Kostenverzamelstaat-2020'!$I$155","","Verschilposten DNB- Opbrengsten verhaal- incl balans","zvkxdnb","c8901","","TY0V01","Euro's",null,"N","",1]
[null,null,null,null,"zvkxdnb_c8901__TY1V01","*=Kostenverzamelstaat!$K$120","","Verschilposten DNB- Opbrengsten verhaal- incl balans","zvkxdnb","c8901","","TY1V01","Euro's",null,"N","",1]
[null,null,null,null,"zvkxdnb_c8901__TY2V01","*=Kostenverzamelstaat!$M$120","","Verschilposten DNB- Opbrengsten verhaal- incl balans","zvkxdnb","c8901","","TY2V01","Euro's",null,"N","",1]
[null,null,null,null,"zvkxdnb_c910__TY0V01","*='Kostenverzamelstaat-2020'!$I$156","","Verschilposten DNB- Schade tlv het vrijwillig eigen risico- incl balans","zvkxdnb","c910","","TY0V01","Euro's",null,"N","",1]
[null,null,null,null,"zvkxdnb_c910__TY1V01","*=Kostenverzamelstaat!$K$121","","Verschilposten DNB- Schade tlv het vrijwillig eigen risico- incl balans","zvkxdnb","c910","","TY1V01","Euro's",null,"N","",1]
[null,null,null,null,"zvkxdnb_c910__TY2V01","*=Kostenverzamelstaat!$M$121","","Verschilposten DNB- Schade tlv het vrijwillig eigen risico- incl balans","zvkxdnb","c910","","TY2V01","Euro's",null,"N","",1]
[null,null,null,null,"zvkxdnb_c915__TY0V01","*='Kostenverzamelstaat-2020'!$I$157","","Verschilposten DNB- Schade tlv het verplicht eigen risico- incl balans","zvkxdnb","c915","","TY0V01","Euro's",null,"N","",1]
[null,null,null,null,"zvkxdnb_c915__TY1V01","*=Kostenverzamelstaat!$K$122","","Verschilposten DNB- Schade tlv het verplicht eigen risico- incl balans","zvkxdnb","c915","","TY1V01","Euro's",null,"N","",1]
[null,null,null,null,"zvkxdnb_c915__TY2V01","*=Kostenverzamelstaat!$M$122","","Verschilposten DNB- Schade tlv het verplicht eigen risico- incl balans","zvkxdnb","c915","","TY2V01","Euro's",null,"N","",1]
[null,null,null,null,"zvkxdnb_c940__TY0V01","*='Kostenverzamelstaat-2020'!$I$158","","Verschilposten DNB- Netto Premieopbrengsten- incl balans","zvkxdnb","c940","","TY0V01","Euro's",null,"N","",1]
[null,null,null,null,"zvkxdnb_c940__TY1V01","*=Kostenverzamelstaat!$K$123","","Verschilposten DNB- Netto Premieopbrengsten- incl balans","zvkxdnb","c940","","TY1V01","Euro's",null,"N","",1]
[null,null,null,null,"zvkxdnb_c940__TY2V01","*=Kostenverzamelstaat!$M$123","","Verschilposten DNB- Netto Premieopbrengsten- incl balans","zvkxdnb","c940","","TY2V01","Euro's",null,"N","",1]
[null,null,null,null,"zvkxdnb_cc915__TY0V01","*='Kostenverzamelstaat-2020'!$K$157","","Verschilposten DNB- Schade tlv het verplicht eigen risico- kst Corona- incl balans","zvkxdnb","cc915","","TY0V01","Euro's",null,"N","",1]
[null,null,null,null,"zvpxlft_m981_lft01a_m08V01","*='Specifieke informatie A'!$I$59","","Verzekerden risicoklasse- 00 t/m 01- man","zvpxlft","m981","lft01a","m05V01","Verzekerden",null,"N",""]
[null,null,null,null,"zvpxlft_m981_lft01a_m09V01","*='Specifieke informatie A'!$I$104","","Verzekerden risicoklasse- 00 t/m 01- man","zvpxlft","m981","lft01a","m06V01","Verzekerden",null,"N",""]
[null,null,null,null,"zvpxlft_m981_lft01a_m10V01","*='Specifieke informatie A'!$I$149","","Verzekerden risicoklasse- 00 t/m 01- man","zvpxlft","m981","lft01a","m07V01","Verzekerden",null,"N",""]
[null,null,null,null,"zvpxlft_m981_lft01b_m08V01","*='Specifieke informatie A'!$I$60","","Verzekerden risicoklasse- 02 t/m 04- man","zvpxlft","m981","lft01b","m05V01","Verzekerden",null,"N",""]
[null,null,null,null,"zvpxlft_m981_lft01b_m09V01","*='Specifieke informatie A'!$I$105","","Verzekerden risicoklasse- 02 t/m 04- man","zvpxlft","m981","lft01b","m06V01","Verzekerden",null,"N",""]
[null,null,null,null,"zvpxlft_m981_lft01b_m10V01","*='Specifieke informatie A'!$I$150","","Verzekerden risicoklasse- 02 t/m 04- man","zvpxlft","m981","lft01b","m07V01","Verzekerden",null,"N",""]
[null,null,null,null,"zvpxlft_m981_lft02_m08V01","*='Specifieke informatie A'!$I$61","","Verzekerden risicoklasse- 05 t/m 09- man","zvpxlft","m981","lft02","m05V01","Verzekerden",null,"N",""]
[null,null,null,null,"zvpxlft_m981_lft02_m09V01","*='Specifieke informatie A'!$I$106","","Verzekerden risicoklasse- 05 t/m 09- man","zvpxlft","m981","lft02","m06V01","Verzekerden",null,"N",""]
[null,null,null,null,"zvpxlft_m981_lft02_m10V01","*='Specifieke informatie A'!$I$151","","Verzekerden risicoklasse- 05 t/m 09- man","zvpxlft","m981","lft02","m07V01","Verzekerden",null,"N",""]
[null,null,null,null,"zvpxlft_m981_lft03_m08V01","*='Specifieke informatie A'!$I$62","","Verzekerden risicoklasse- 10 t/m 14- man","zvpxlft","m981","lft03","m05V01","Verzekerden",null,"N",""]
[null,null,null,null,"zvpxlft_m981_lft03_m09V01","*='Specifieke informatie A'!$I$107","","Verzekerden risicoklasse- 10 t/m 14- man","zvpxlft","m981","lft03","m06V01","Verzekerden",null,"N",""]
[null,null,null,null,"zvpxlft_m981_lft03_m10V01","*='Specifieke informatie A'!$I$152","","Verzekerden risicoklasse- 10 t/m 14- man","zvpxlft","m981","lft03","m07V01","Verzekerden",null,"N",""]
[null,null,null,null,"zvpxlft_m981_lft04_m08V01","*='Specifieke informatie A'!$I$63","","Verzekerden risicoklasse- 15 t/m 19- man","zvpxlft","m981","lft04","m05V01","Verzekerden",null,"N",""]
[null,null,null,null,"zvpxlft_m981_lft04_m09V01","*='Specifieke informatie A'!$I$108","","Verzekerden risicoklasse- 15 t/m 19- man","zvpxlft","m981","lft04","m06V01","Verzekerden",null,"N",""]
[null,null,null,null,"zvpxlft_m981_lft04_m10V01","*='Specifieke informatie A'!$I$153","","Verzekerden risicoklasse- 15 t/m 19- man","zvpxlft","m981","lft04","m07V01","Verzekerden",null,"N",""]
[null,null,null,null,"zvpxlft_m981_lft05_m08V01","*='Specifieke informatie A'!$I$64","","Verzekerden risicoklasse- 20 t/m 24- man","zvpxlft","m981","lft05","m05V01","Verzekerden",null,"N",""]
[null,null,null,null,"zvpxlft_m981_lft05_m09V01","*='Specifieke informatie A'!$I$109","","Verzekerden risicoklasse- 20 t/m 24- man","zvpxlft","m981","lft05","m06V01","Verzekerden",null,"N",""]
[null,null,null,null,"zvpxlft_m981_lft05_m10V01","*='Specifieke informatie A'!$I$154","","Verzekerden risicoklasse- 20 t/m 24- man","zvpxlft","m981","lft05","m07V01","Verzekerden",null,"N",""]
[null,null,null,null,"zvpxlft_m981_lft06_m08V01","*='Specifieke informatie A'!$I$65","","Verzekerden risicoklasse- 25 t/m 29- man","zvpxlft","m981","lft06","m05V01","Verzekerden",null,"N",""]
[null,null,null,null,"zvpxlft_m981_lft06_m09V01","*='Specifieke informatie A'!$I$110","","Verzekerden risicoklasse- 25 t/m 29- man","zvpxlft","m981","lft06","m06V01","Verzekerden",null,"N",""]
[null,null,null,null,"zvpxlft_m981_lft06_m10V01","*='Specifieke informatie A'!$I$155","","Verzekerden risicoklasse- 25 t/m 29- man","zvpxlft","m981","lft06","m07V01","Verzekerden",null,"N",""]
[null,null,null,null,"zvpxlft_m981_lft07_m08V01","*='Specifieke informatie A'!$I$66","","Verzekerden risicoklasse- 30 t/m 34- man","zvpxlft","m981","lft07","m05V01","Verzekerden",null,"N",""]
[null,null,null,null,"zvpxlft_m981_lft07_m09V01","*='Specifieke informatie A'!$I$111","","Verzekerden risicoklasse- 30 t/m 34- man","zvpxlft","m981","lft07","m06V01","Verzekerden",null,"N",""]
[null,null,null,null,"zvpxlft_m981_lft07_m10V01","*='Specifieke informatie A'!$I$156","","Verzekerden risicoklasse- 30 t/m 34- man","zvpxlft","m981","lft07","m07V01","Verzekerden",null,"N",""]
[null,null,null,null,"zvpxlft_m981_lft08_m08V01","*='Specifieke informatie A'!$I$67","","Verzekerden risicoklasse- 35 t/m 39- man","zvpxlft","m981","lft08","m05V01","Verzekerden",null,"N",""]
[null,null,null,null,"zvpxlft_m981_lft08_m09V01","*='Specifieke informatie A'!$I$112","","Verzekerden risicoklasse- 35 t/m 39- man","zvpxlft","m981","lft08","m06V01","Verzekerden",null,"N",""]
[null,null,null,null,"zvpxlft_m981_lft08_m10V01","*='Specifieke informatie A'!$I$157","","Verzekerden risicoklasse- 35 t/m 39- man","zvpxlft","m981","lft08","m07V01","Verzekerden",null,"N",""]
[null,null,null,null,"zvpxlft_m981_lft09_m08V01","*='Specifieke informatie A'!$I$68","","Verzekerden risicoklasse- 40 t/m 44- man","zvpxlft","m981","lft09","m05V01","Verzekerden",null,"N",""]
[null,null,null,null,"zvpxlft_m981_lft09_m09V01","*='Specifieke informatie A'!$I$113","","Verzekerden risicoklasse- 40 t/m 44- man","zvpxlft","m981","lft09","m06V01","Verzekerden",null,"N",""]
[null,null,null,null,"zvpxlft_m981_lft09_m10V01","*='Specifieke informatie A'!$I$158","","Verzekerden risicoklasse- 40 t/m 44- man","zvpxlft","m981","lft09","m07V01","Verzekerden",null,"N",""]
[null,null,null,null,"zvpxlft_m981_lft10_m08V01","*='Specifieke informatie A'!$I$69","","Verzekerden risicoklasse- 45 t/m 49- man","zvpxlft","m981","lft10","m05V01","Verzekerden",null,"N",""]
[null,null,null,null,"zvpxlft_m981_lft10_m09V01","*='Specifieke informatie A'!$I$114","","Verzekerden risicoklasse- 45 t/m 49- man","zvpxlft","m981","lft10","m06V01","Verzekerden",null,"N",""]
[null,null,null,null,"zvpxlft_m981_lft10_m10V01","*='Specifieke informatie A'!$I$159","","Verzekerden risicoklasse- 45 t/m 49- man","zvpxlft","m981","lft10","m07V01","Verzekerden",null,"N",""]
[null,null,null,null,"zvpxlft_m981_lft11_m08V01","*='Specifieke informatie A'!$I$70","","Verzekerden risicoklasse- 50 t/m 54- man","zvpxlft","m981","lft11","m05V01","Verzekerden",null,"N",""]
[null,null,null,null,"zvpxlft_m981_lft11_m09V01","*='Specifieke informatie A'!$I$115","","Verzekerden risicoklasse- 50 t/m 54- man","zvpxlft","m981","lft11","m06V01","Verzekerden",null,"N",""]
[null,null,null,null,"zvpxlft_m981_lft11_m10V01","*='Specifieke informatie A'!$I$160","","Verzekerden risicoklasse- 50 t/m 54- man","zvpxlft","m981","lft11","m07V01","Verzekerden",null,"N",""]
[null,null,null,null,"zvpxlft_m981_lft12_m08V01","*='Specifieke informatie A'!$I$71","","Verzekerden risicoklasse- 55 t/m 59- man","zvpxlft","m981","lft12","m05V01","Verzekerden",null,"N",""]
[null,null,null,null,"zvpxlft_m981_lft12_m09V01","*='Specifieke informatie A'!$I$116","","Verzekerden risicoklasse- 55 t/m 59- man","zvpxlft","m981","lft12","m06V01","Verzekerden",null,"N",""]
[null,null,null,null,"zvpxlft_m981_lft12_m10V01","*='Specifieke informatie A'!$I$161","","Verzekerden risicoklasse- 55 t/m 59- man","zvpxlft","m981","lft12","m07V01","Verzekerden",null,"N",""]
[null,null,null,null,"zvpxlft_m981_lft13_m08V01","*='Specifieke informatie A'!$I$72","","Verzekerden risicoklasse- 60 t/m 64- man","zvpxlft","m981","lft13","m05V01","Verzekerden",null,"N",""]
[null,null,null,null,"zvpxlft_m981_lft13_m09V01","*='Specifieke informatie A'!$I$117","","Verzekerden risicoklasse- 60 t/m 64- man","zvpxlft","m981","lft13","m06V01","Verzekerden",null,"N",""]
[null,null,null,null,"zvpxlft_m981_lft13_m10V01","*='Specifieke informatie A'!$I$162","","Verzekerden risicoklasse- 60 t/m 64- man","zvpxlft","m981","lft13","m07V01","Verzekerden",null,"N",""]
[null,null,null,null,"zvpxlft_m981_lft14_m08V01","*='Specifieke informatie A'!$I$73","","Verzekerden risicoklasse- 65 t/m 69- man","zvpxlft","m981","lft14","m05V01","Verzekerden",null,"N",""]
[null,null,null,null,"zvpxlft_m981_lft14_m09V01","*='Specifieke informatie A'!$I$118","","Verzekerden risicoklasse- 65 t/m 69- man","zvpxlft","m981","lft14","m06V01","Verzekerden",null,"N",""]
[null,null,null,null,"zvpxlft_m981_lft14_m10V01","*='Specifieke informatie A'!$I$163","","Verzekerden risicoklasse- 65 t/m 69- man","zvpxlft","m981","lft14","m07V01","Verzekerden",null,"N",""]
[null,null,null,null,"zvpxlft_m981_lft15_m08V01","*='Specifieke informatie A'!$I$74","","Verzekerden risicoklasse- 70 t/m 74- man","zvpxlft","m981","lft15","m05V01","Verzekerden",null,"N",""]
[null,null,null,null,"zvpxlft_m981_lft15_m09V01","*='Specifieke informatie A'!$I$119","","Verzekerden risicoklasse- 70 t/m 74- man","zvpxlft","m981","lft15","m06V01","Verzekerden",null,"N",""]
[null,null,null,null,"zvpxlft_m981_lft15_m10V01","*='Specifieke informatie A'!$I$164","","Verzekerden risicoklasse- 70 t/m 74- man","zvpxlft","m981","lft15","m07V01","Verzekerden",null,"N",""]
[null,null,null,null,"zvpxlft_m981_lft16_m08V01","*='Specifieke informatie A'!$I$75","","Verzekerden risicoklasse- 75 t/m 79- man","zvpxlft","m981","lft16","m05V01","Verzekerden",null,"N",""]
[null,null,null,null,"zvpxlft_m981_lft16_m09V01","*='Specifieke informatie A'!$I$120","","Verzekerden risicoklasse- 75 t/m 79- man","zvpxlft","m981","lft16","m06V01","Verzekerden",null,"N",""]
[null,null,null,null,"zvpxlft_m981_lft16_m10V01","*='Specifieke informatie A'!$I$165","","Verzekerden risicoklasse- 75 t/m 79- man","zvpxlft","m981","lft16","m07V01","Verzekerden",null,"N",""]
[null,null,null,null,"zvpxlft_m981_lft17_m08V01","*='Specifieke informatie A'!$I$76","","Verzekerden risicoklasse- 80 t/m 84- man","zvpxlft","m981","lft17","m05V01","Verzekerden",null,"N",""]
[null,null,null,null,"zvpxlft_m981_lft17_m09V01","*='Specifieke informatie A'!$I$121","","Verzekerden risicoklasse- 80 t/m 84- man","zvpxlft","m981","lft17","m06V01","Verzekerden",null,"N",""]
[null,null,null,null,"zvpxlft_m981_lft17_m10V01","*='Specifieke informatie A'!$I$166","","Verzekerden risicoklasse- 80 t/m 84- man","zvpxlft","m981","lft17","m07V01","Verzekerden",null,"N",""]
[null,null,null,null,"zvpxlft_m981_lft18_m08V01","*='Specifieke informatie A'!$I$77","","Verzekerden risicoklasse- 85 t/m 89- man","zvpxlft","m981","lft18","m05V01","Verzekerden",null,"N",""]
[null,null,null,null,"zvpxlft_m981_lft18_m09V01","*='Specifieke informatie A'!$I$122","","Verzekerden risicoklasse- 85 t/m 89- man","zvpxlft","m981","lft18","m06V01","Verzekerden",null,"N",""]
[null,null,null,null,"zvpxlft_m981_lft18_m10V01","*='Specifieke informatie A'!$I$167","","Verzekerden risicoklasse- 85 t/m 89- man","zvpxlft","m981","lft18","m07V01","Verzekerden",null,"N",""]
[null,null,null,null,"zvpxlft_m981_lft19_m08V01","*='Specifieke informatie A'!$I$78","","Verzekerden risicoklasse- 90 en ouder- man","zvpxlft","m981","lft19","m05V01","Verzekerden",null,"N",""]
[null,null,null,null,"zvpxlft_m981_lft19_m09V01","*='Specifieke informatie A'!$I$123","","Verzekerden risicoklasse- 90 en ouder- man","zvpxlft","m981","lft19","m06V01","Verzekerden",null,"N",""]
[null,null,null,null,"zvpxlft_m981_lft19_m10V01","*='Specifieke informatie A'!$I$168","","Verzekerden risicoklasse- 90 en ouder- man","zvpxlft","m981","lft19","m07V01","Verzekerden",null,"N",""]
[null,null,null,null,"zvpxlft_o981_lft01a_m08V01","*='Specifieke informatie A'!$K$59","","Verzekerden risicoklasse- 00 t/m 01- onbepaald","zvpxlft","v981","lft01a","m05V01","Verzekerden",null,"N",""]
[null,null,null,null,"zvpxlft_o981_lft01a_m09V01","*='Specifieke informatie A'!$K$104","","Verzekerden risicoklasse- 00 t/m 01- onbepaald","zvpxlft","v981","lft01a","m06V01","Verzekerden",null,"N",""]
[null,null,null,null,"zvpxlft_o981_lft01a_m10V01","*='Specifieke informatie A'!$K$149","","Verzekerden risicoklasse- 00 t/m 01- onbepaald","zvpxlft","v981","lft01a","m07V01","Verzekerden",null,"N",""]
[null,null,null,null,"zvpxlft_o981_lft01b_m08V01","*='Specifieke informatie A'!$K$60","","Verzekerden risicoklasse- 02 t/m 04- onbepaald","zvpxlft","v981","lft01b","m05V01","Verzekerden",null,"N",""]
[null,null,null,null,"zvpxlft_o981_lft01b_m09V01","*='Specifieke informatie A'!$K$105","","Verzekerden risicoklasse- 02 t/m 04- onbepaald","zvpxlft","v981","lft01b","m06V01","Verzekerden",null,"N",""]
[null,null,null,null,"zvpxlft_o981_lft01b_m10V01","*='Specifieke informatie A'!$K$150","","Verzekerden risicoklasse- 02 t/m 04- onbepaald","zvpxlft","v981","lft01b","m07V01","Verzekerden",null,"N",""]
[null,null,null,null,"zvpxlft_o981_lft02_m08V01","*='Specifieke informatie A'!$K$61","","Verzekerden risicoklasse- 05 t/m 09- onbepaald","zvpxlft","v981","lft02","m05V01","Verzekerden",null,"N",""]
[null,null,null,null,"zvpxlft_o981_lft02_m09V01","*='Specifieke informatie A'!$K$106","","Verzekerden risicoklasse- 05 t/m 09- onbepaald","zvpxlft","v981","lft02","m06V01","Verzekerden",null,"N",""]
[null,null,null,null,"zvpxlft_o981_lft02_m10V01","*='Specifieke informatie A'!$K$151","","Verzekerden risicoklasse- 05 t/m 09- onbepaald","zvpxlft","v981","lft02","m07V01","Verzekerden",null,"N",""]
[null,null,null,null,"zvpxlft_o981_lft03_m08V01","*='Specifieke informatie A'!$K$62","","Verzekerden risicoklasse- 10 t/m 14- onbepaald","zvpxlft","v981","lft03","m05V01","Verzekerden",null,"N",""]
[null,null,null,null,"zvpxlft_o981_lft03_m09V01","*='Specifieke informatie A'!$K$107","","Verzekerden risicoklasse- 10 t/m 14- onbepaald","zvpxlft","v981","lft03","m06V01","Verzekerden",null,"N",""]
[null,null,null,null,"zvpxlft_o981_lft03_m10V01","*='Specifieke informatie A'!$K$152","","Verzekerden risicoklasse- 10 t/m 14- onbepaald","zvpxlft","v981","lft03","m07V01","Verzekerden",null,"N",""]
[null,null,null,null,"zvpxlft_o981_lft04_m08V01","*='Specifieke informatie A'!$K$63","","Verzekerden risicoklasse- 15 t/m 19- onbepaald","zvpxlft","v981","lft04","m05V01","Verzekerden",null,"N",""]
[null,null,null,null,"zvpxlft_o981_lft04_m09V01","*='Specifieke informatie A'!$K$108","","Verzekerden risicoklasse- 15 t/m 19- onbepaald","zvpxlft","v981","lft04","m06V01","Verzekerden",null,"N",""]
[null,null,null,null,"zvpxlft_o981_lft04_m10V01","*='Specifieke informatie A'!$K$153","","Verzekerden risicoklasse- 15 t/m 19- onbepaald","zvpxlft","v981","lft04","m07V01","Verzekerden",null,"N",""]
[null,null,null,null,"zvpxlft_o981_lft05_m08V01","*='Specifieke informatie A'!$K$64","","Verzekerden risicoklasse- 20 t/m 24- onbepaald","zvpxlft","v981","lft05","m05V01","Verzekerden",null,"N",""]
[null,null,null,null,"zvpxlft_o981_lft05_m09V01","*='Specifieke informatie A'!$K$109","","Verzekerden risicoklasse- 20 t/m 24- onbepaald","zvpxlft","v981","lft05","m06V01","Verzekerden",null,"N",""]
[null,null,null,null,"zvpxlft_o981_lft05_m10V01","*='Specifieke informatie A'!$K$154","","Verzekerden risicoklasse- 20 t/m 24- onbepaald","zvpxlft","v981","lft05","m07V01","Verzekerden",null,"N",""]
[null,null,null,null,"zvpxlft_o981_lft06_m08V01","*='Specifieke informatie A'!$K$65","","Verzekerden risicoklasse- 25 t/m 29- onbepaald","zvpxlft","v981","lft06","m05V01","Verzekerden",null,"N",""]
[null,null,null,null,"zvpxlft_o981_lft06_m09V01","*='Specifieke informatie A'!$K$110","","Verzekerden risicoklasse- 25 t/m 29- onbepaald","zvpxlft","v981","lft06","m06V01","Verzekerden",null,"N",""]
[null,null,null,null,"zvpxlft_o981_lft06_m10V01","*='Specifieke informatie A'!$K$155","","Verzekerden risicoklasse- 25 t/m 29- onbepaald","zvpxlft","v981","lft06","m07V01","Verzekerden",null,"N",""]
[null,null,null,null,"zvpxlft_o981_lft07_m08V01","*='Specifieke informatie A'!$K$66","","Verzekerden risicoklasse- 30 t/m 34- onbepaald","zvpxlft","v981","lft07","m05V01","Verzekerden",null,"N",""]
[null,null,null,null,"zvpxlft_o981_lft07_m09V01","*='Specifieke informatie A'!$K$111","","Verzekerden risicoklasse- 30 t/m 34- onbepaald","zvpxlft","v981","lft07","m06V01","Verzekerden",null,"N",""]
[null,null,null,null,"zvpxlft_o981_lft07_m10V01","*='Specifieke informatie A'!$K$156","","Verzekerden risicoklasse- 30 t/m 34- onbepaald","zvpxlft","v981","lft07","m07V01","Verzekerden",null,"N",""]
[null,null,null,null,"zvpxlft_o981_lft08_m08V01","*='Specifieke informatie A'!$K$67","","Verzekerden risicoklasse- 35 t/m 39- onbepaald","zvpxlft","v981","lft08","m05V01","Verzekerden",null,"N",""]
[null,null,null,null,"zvpxlft_o981_lft08_m09V01","*='Specifieke informatie A'!$K$112","","Verzekerden risicoklasse- 35 t/m 39- onbepaald","zvpxlft","v981","lft08","m06V01","Verzekerden",null,"N",""]
[null,null,null,null,"zvpxlft_o981_lft08_m10V01","*='Specifieke informatie A'!$K$157","","Verzekerden risicoklasse- 35 t/m 39- onbepaald","zvpxlft","v981","lft08","m07V01","Verzekerden",null,"N",""]
[null,null,null,null,"zvpxlft_o981_lft09_m08V01","*='Specifieke informatie A'!$K$68","","Verzekerden risicoklasse- 40 t/m 44- onbepaald","zvpxlft","v981","lft09","m05V01","Verzekerden",null,"N",""]
[null,null,null,null,"zvpxlft_o981_lft09_m09V01","*='Specifieke informatie A'!$K$113","","Verzekerden risicoklasse- 40 t/m 44- onbepaald","zvpxlft","v981","lft09","m06V01","Verzekerden",null,"N",""]
[null,null,null,null,"zvpxlft_o981_lft09_m10V01","*='Specifieke informatie A'!$K$158","","Verzekerden risicoklasse- 40 t/m 44- onbepaald","zvpxlft","v981","lft09","m07V01","Verzekerden",null,"N",""]
[null,null,null,null,"zvpxlft_o981_lft10_m08V01","*='Specifieke informatie A'!$K$69","","Verzekerden risicoklasse- 45 t/m 49- onbepaald","zvpxlft","v981","lft10","m05V01","Verzekerden",null,"N",""]
[null,null,null,null,"zvpxlft_o981_lft10_m09V01","*='Specifieke informatie A'!$K$114","","Verzekerden risicoklasse- 45 t/m 49- onbepaald","zvpxlft","v981","lft10","m06V01","Verzekerden",null,"N",""]
[null,null,null,null,"zvpxlft_o981_lft10_m10V01","*='Specifieke informatie A'!$K$159","","Verzekerden risicoklasse- 45 t/m 49- onbepaald","zvpxlft","v981","lft10","m07V01","Verzekerden",null,"N",""]
[null,null,null,null,"zvpxlft_o981_lft11_m08V01","*='Specifieke informatie A'!$K$70","","Verzekerden risicoklasse- 50 t/m 54- onbepaald","zvpxlft","v981","lft11","m05V01","Verzekerden",null,"N",""]
[null,null,null,null,"zvpxlft_o981_lft11_m09V01","*='Specifieke informatie A'!$K$115","","Verzekerden risicoklasse- 50 t/m 54- onbepaald","zvpxlft","v981","lft11","m06V01","Verzekerden",null,"N",""]
[null,null,null,null,"zvpxlft_o981_lft11_m10V01","*='Specifieke informatie A'!$K$160","","Verzekerden risicoklasse- 50 t/m 54- onbepaald","zvpxlft","v981","lft11","m07V01","Verzekerden",null,"N",""]
[null,null,null,null,"zvpxlft_o981_lft12_m08V01","*='Specifieke informatie A'!$K$71","","Verzekerden risicoklasse- 55 t/m 59- onbepaald","zvpxlft","v981","lft12","m05V01","Verzekerden",null,"N",""]
[null,null,null,null,"zvpxlft_o981_lft12_m09V01","*='Specifieke informatie A'!$K$116","","Verzekerden risicoklasse- 55 t/m 59- onbepaald","zvpxlft","v981","lft12","m06V01","Verzekerden",null,"N",""]
[null,null,null,null,"zvpxlft_o981_lft12_m10V01","*='Specifieke informatie A'!$K$161","","Verzekerden risicoklasse- 55 t/m 59- onbepaald","zvpxlft","v981","lft12","m07V01","Verzekerden",null,"N",""]
[null,null,null,null,"zvpxlft_o981_lft13_m08V01","*='Specifieke informatie A'!$K$72","","Verzekerden risicoklasse- 60 t/m 64- onbepaald","zvpxlft","v981","lft13","m05V01","Verzekerden",null,"N",""]
[null,null,null,null,"zvpxlft_o981_lft13_m09V01","*='Specifieke informatie A'!$K$117","","Verzekerden risicoklasse- 60 t/m 64- onbepaald","zvpxlft","v981","lft13","m06V01","Verzekerden",null,"N",""]
[null,null,null,null,"zvpxlft_o981_lft13_m10V01","*='Specifieke informatie A'!$K$162","","Verzekerden risicoklasse- 60 t/m 64- onbepaald","zvpxlft","v981","lft13","m07V01","Verzekerden",null,"N",""]
[null,null,null,null,"zvpxlft_o981_lft14_m08V01","*='Specifieke informatie A'!$K$73","","Verzekerden risicoklasse- 65 t/m 69- onbepaald","zvpxlft","v981","lft14","m05V01","Verzekerden",null,"N",""]
[null,null,null,null,"zvpxlft_o981_lft14_m09V01","*='Specifieke informatie A'!$K$118","","Verzekerden risicoklasse- 65 t/m 69- onbepaald","zvpxlft","v981","lft14","m06V01","Verzekerden",null,"N",""]
[null,null,null,null,"zvpxlft_o981_lft14_m10V01","*='Specifieke informatie A'!$K$163","","Verzekerden risicoklasse- 65 t/m 69- onbepaald","zvpxlft","v981","lft14","m07V01","Verzekerden",null,"N",""]
[null,null,null,null,"zvpxlft_o981_lft15_m08V01","*='Specifieke informatie A'!$K$74","","Verzekerden risicoklasse- 70 t/m 74- onbepaald","zvpxlft","v981","lft15","m05V01","Verzekerden",null,"N",""]
[null,null,null,null,"zvpxlft_o981_lft15_m09V01","*='Specifieke informatie A'!$K$119","","Verzekerden risicoklasse- 70 t/m 74- onbepaald","zvpxlft","v981","lft15","m06V01","Verzekerden",null,"N",""]
[null,null,null,null,"zvpxlft_o981_lft15_m10V01","*='Specifieke informatie A'!$K$164","","Verzekerden risicoklasse- 70 t/m 74- onbepaald","zvpxlft","v981","lft15","m07V01","Verzekerden",null,"N",""]
[null,null,null,null,"zvpxlft_o981_lft16_m08V01","*='Specifieke informatie A'!$K$75","","Verzekerden risicoklasse- 75 t/m 79- onbepaald","zvpxlft","v981","lft16","m05V01","Verzekerden",null,"N",""]
[null,null,null,null,"zvpxlft_o981_lft16_m09V01","*='Specifieke informatie A'!$K$120","","Verzekerden risicoklasse- 75 t/m 79- onbepaald","zvpxlft","v981","lft16","m06V01","Verzekerden",null,"N",""]
[null,null,null,null,"zvpxlft_o981_lft16_m10V01","*='Specifieke informatie A'!$K$165","","Verzekerden risicoklasse- 75 t/m 79- onbepaald","zvpxlft","v981","lft16","m07V01","Verzekerden",null,"N",""]
[null,null,null,null,"zvpxlft_o981_lft17_m08V01","*='Specifieke informatie A'!$K$76","","Verzekerden risicoklasse- 80 t/m 84- onbepaald","zvpxlft","v981","lft17","m05V01","Verzekerden",null,"N",""]
[null,null,null,null,"zvpxlft_o981_lft17_m09V01","*='Specifieke informatie A'!$K$121","","Verzekerden risicoklasse- 80 t/m 84- onbepaald","zvpxlft","v981","lft17","m06V01","Verzekerden",null,"N",""]
[null,null,null,null,"zvpxlft_o981_lft17_m10V01","*='Specifieke informatie A'!$K$166","","Verzekerden risicoklasse- 80 t/m 84- onbepaald","zvpxlft","v981","lft17","m07V01","Verzekerden",null,"N",""]
[null,null,null,null,"zvpxlft_o981_lft18_m08V01","*='Specifieke informatie A'!$K$77","","Verzekerden risicoklasse- 85 t/m 89- onbepaald","zvpxlft","v981","lft18","m05V01","Verzekerden",null,"N",""]
[null,null,null,null,"zvpxlft_o981_lft18_m09V01","*='Specifieke informatie A'!$K$122","","Verzekerden risicoklasse- 85 t/m 89- onbepaald","zvpxlft","v981","lft18","m06V01","Verzekerden",null,"N",""]
[null,null,null,null,"zvpxlft_o981_lft18_m10V01","*='Specifieke informatie A'!$K$167","","Verzekerden risicoklasse- 85 t/m 89- onbepaald","zvpxlft","v981","lft18","m07V01","Verzekerden",null,"N",""]
[null,null,null,null,"zvpxlft_o981_lft19_m08V01","*='Specifieke informatie A'!$K$78","","Verzekerden risicoklasse- 90 en ouder- onbepaald","zvpxlft","v981","lft19","m05V01","Verzekerden",null,"N",""]
[null,null,null,null,"zvpxlft_o981_lft19_m09V01","*='Specifieke informatie A'!$K$123","","Verzekerden risicoklasse- 90 en ouder- onbepaald","zvpxlft","v981","lft19","m06V01","Verzekerden",null,"N",""]
[null,null,null,null,"zvpxlft_o981_lft19_m10V01","*='Specifieke informatie A'!$K$168","","Verzekerden risicoklasse- 90 en ouder- onbepaald","zvpxlft","v981","lft19","m07V01","Verzekerden",null,"N",""]
[null,null,null,null,"zvpxlft_v981_lft01a_m08V01","*='Specifieke informatie A'!$J$59","","Verzekerden risicoklasse- 00 t/m 01- vrouw","zvpxlft","v981","lft01a","m05V01","Verzekerden",null,"N",""]
[null,null,null,null,"zvpxlft_v981_lft01a_m09V01","*='Specifieke informatie A'!$J$104","","Verzekerden risicoklasse- 00 t/m 01- vrouw","zvpxlft","v981","lft01a","m06V01","Verzekerden",null,"N",""]
[null,null,null,null,"zvpxlft_v981_lft01a_m10V01","*='Specifieke informatie A'!$J$149","","Verzekerden risicoklasse- 00 t/m 01- vrouw","zvpxlft","v981","lft01a","m07V01","Verzekerden",null,"N",""]
[null,null,null,null,"zvpxlft_v981_lft01b_m08V01","*='Specifieke informatie A'!$J$60","","Verzekerden risicoklasse- 02 t/m 04- vrouw","zvpxlft","v981","lft01b","m05V01","Verzekerden",null,"N",""]
[null,null,null,null,"zvpxlft_v981_lft01b_m09V01","*='Specifieke informatie A'!$J$105","","Verzekerden risicoklasse- 02 t/m 04- vrouw","zvpxlft","v981","lft01b","m06V01","Verzekerden",null,"N",""]
[null,null,null,null,"zvpxlft_v981_lft01b_m10V01","*='Specifieke informatie A'!$J$150","","Verzekerden risicoklasse- 02 t/m 04- vrouw","zvpxlft","v981","lft01b","m07V01","Verzekerden",null,"N",""]
[null,null,null,null,"zvpxlft_v981_lft02_m08V01","*='Specifieke informatie A'!$J$61","","Verzekerden risicoklasse- 05 t/m 09- vrouw","zvpxlft","v981","lft02","m05V01","Verzekerden",null,"N",""]
[null,null,null,null,"zvpxlft_v981_lft02_m09V01","*='Specifieke informatie A'!$J$106","","Verzekerden risicoklasse- 05 t/m 09- vrouw","zvpxlft","v981","lft02","m06V01","Verzekerden",null,"N",""]
[null,null,null,null,"zvpxlft_v981_lft02_m10V01","*='Specifieke informatie A'!$J$151","","Verzekerden risicoklasse- 05 t/m 09- vrouw","zvpxlft","v981","lft02","m07V01","Verzekerden",null,"N",""]
[null,null,null,null,"zvpxlft_v981_lft03_m08V01","*='Specifieke informatie A'!$J$62","","Verzekerden risicoklasse- 10 t/m 14- vrouw","zvpxlft","v981","lft03","m05V01","Verzekerden",null,"N",""]
[null,null,null,null,"zvpxlft_v981_lft03_m09V01","*='Specifieke informatie A'!$J$107","","Verzekerden risicoklasse- 10 t/m 14- vrouw","zvpxlft","v981","lft03","m06V01","Verzekerden",null,"N",""]
[null,null,null,null,"zvpxlft_v981_lft03_m10V01","*='Specifieke informatie A'!$J$152","","Verzekerden risicoklasse- 10 t/m 14- vrouw","zvpxlft","v981","lft03","m07V01","Verzekerden",null,"N",""]
[null,null,null,null,"zvpxlft_v981_lft04_m08V01","*='Specifieke informatie A'!$J$63","","Verzekerden risicoklasse- 15 t/m 19- vrouw","zvpxlft","v981","lft04","m05V01","Verzekerden",null,"N",""]
[null,null,null,null,"zvpxlft_v981_lft04_m09V01","*='Specifieke informatie A'!$J$108","","Verzekerden risicoklasse- 15 t/m 19- vrouw","zvpxlft","v981","lft04","m06V01","Verzekerden",null,"N",""]
[null,null,null,null,"zvpxlft_v981_lft04_m10V01","*='Specifieke informatie A'!$J$153","","Verzekerden risicoklasse- 15 t/m 19- vrouw","zvpxlft","v981","lft04","m07V01","Verzekerden",null,"N",""]
[null,null,null,null,"zvpxlft_v981_lft05_m08V01","*='Specifieke informatie A'!$J$64","","Verzekerden risicoklasse- 20 t/m 24- vrouw","zvpxlft","v981","lft05","m05V01","Verzekerden",null,"N",""]
[null,null,null,null,"zvpxlft_v981_lft05_m09V01","*='Specifieke informatie A'!$J$109","","Verzekerden risicoklasse- 20 t/m 24- vrouw","zvpxlft","v981","lft05","m06V01","Verzekerden",null,"N",""]
[null,null,null,null,"zvpxlft_v981_lft05_m10V01","*='Specifieke informatie A'!$J$154","","Verzekerden risicoklasse- 20 t/m 24- vrouw","zvpxlft","v981","lft05","m07V01","Verzekerden",null,"N",""]
[null,null,null,null,"zvpxlft_v981_lft06_m08V01","*='Specifieke informatie A'!$J$65","","Verzekerden risicoklasse- 25 t/m 29- vrouw","zvpxlft","v981","lft06","m05V01","Verzekerden",null,"N",""]
[null,null,null,null,"zvpxlft_v981_lft06_m09V01","*='Specifieke informatie A'!$J$110","","Verzekerden risicoklasse- 25 t/m 29- vrouw","zvpxlft","v981","lft06","m06V01","Verzekerden",null,"N",""]
[null,null,null,null,"zvpxlft_v981_lft06_m10V01","*='Specifieke informatie A'!$J$155","","Verzekerden risicoklasse- 25 t/m 29- vrouw","zvpxlft","v981","lft06","m07V01","Verzekerden",null,"N",""]
[null,null,null,null,"zvpxlft_v981_lft07_m08V01","*='Specifieke informatie A'!$J$66","","Verzekerden risicoklasse- 30 t/m 34- vrouw","zvpxlft","v981","lft07","m05V01","Verzekerden",null,"N",""]
[null,null,null,null,"zvpxlft_v981_lft07_m09V01","*='Specifieke informatie A'!$J$111","","Verzekerden risicoklasse- 30 t/m 34- vrouw","zvpxlft","v981","lft07","m06V01","Verzekerden",null,"N",""]
[null,null,null,null,"zvpxlft_v981_lft07_m10V01","*='Specifieke informatie A'!$J$156","","Verzekerden risicoklasse- 30 t/m 34- vrouw","zvpxlft","v981","lft07","m07V01","Verzekerden",null,"N",""]
[null,null,null,null,"zvpxlft_v981_lft08_m08V01","*='Specifieke informatie A'!$J$67","","Verzekerden risicoklasse- 35 t/m 39- vrouw","zvpxlft","v981","lft08","m05V01","Verzekerden",null,"N",""]
[null,null,null,null,"zvpxlft_v981_lft08_m09V01","*='Specifieke informatie A'!$J$112","","Verzekerden risicoklasse- 35 t/m 39- vrouw","zvpxlft","v981","lft08","m06V01","Verzekerden",null,"N",""]
[null,null,null,null,"zvpxlft_v981_lft08_m10V01","*='Specifieke informatie A'!$J$157","","Verzekerden risicoklasse- 35 t/m 39- vrouw","zvpxlft","v981","lft08","m07V01","Verzekerden",null,"N",""]
[null,null,null,null,"zvpxlft_v981_lft09_m08V01","*='Specifieke informatie A'!$J$68","","Verzekerden risicoklasse- 40 t/m 44- vrouw","zvpxlft","v981","lft09","m05V01","Verzekerden",null,"N",""]
[null,null,null,null,"zvpxlft_v981_lft09_m09V01","*='Specifieke informatie A'!$J$113","","Verzekerden risicoklasse- 40 t/m 44- vrouw","zvpxlft","v981","lft09","m06V01","Verzekerden",null,"N",""]
[null,null,null,null,"zvpxlft_v981_lft09_m10V01","*='Specifieke informatie A'!$J$158","","Verzekerden risicoklasse- 40 t/m 44- vrouw","zvpxlft","v981","lft09","m07V01","Verzekerden",null,"N",""]
[null,null,null,null,"zvpxlft_v981_lft10_m08V01","*='Specifieke informatie A'!$J$69","","Verzekerden risicoklasse- 45 t/m 49- vrouw","zvpxlft","v981","lft10","m05V01","Verzekerden",null,"N",""]
[null,null,null,null,"zvpxlft_v981_lft10_m09V01","*='Specifieke informatie A'!$J$114","","Verzekerden risicoklasse- 45 t/m 49- vrouw","zvpxlft","v981","lft10","m06V01","Verzekerden",null,"N",""]
[null,null,null,null,"zvpxlft_v981_lft10_m10V01","*='Specifieke informatie A'!$J$159","","Verzekerden risicoklasse- 45 t/m 49- vrouw","zvpxlft","v981","lft10","m07V01","Verzekerden",null,"N",""]
[null,null,null,null,"zvpxlft_v981_lft11_m08V01","*='Specifieke informatie A'!$J$70","","Verzekerden risicoklasse- 50 t/m 54- vrouw","zvpxlft","v981","lft11","m05V01","Verzekerden",null,"N",""]
[null,null,null,null,"zvpxlft_v981_lft11_m09V01","*='Specifieke informatie A'!$J$115","","Verzekerden risicoklasse- 50 t/m 54- vrouw","zvpxlft","v981","lft11","m06V01","Verzekerden",null,"N",""]
[null,null,null,null,"zvpxlft_v981_lft11_m10V01","*='Specifieke informatie A'!$J$160","","Verzekerden risicoklasse- 50 t/m 54- vrouw","zvpxlft","v981","lft11","m07V01","Verzekerden",null,"N",""]
[null,null,null,null,"zvpxlft_v981_lft12_m08V01","*='Specifieke informatie A'!$J$71","","Verzekerden risicoklasse- 55 t/m 59- vrouw","zvpxlft","v981","lft12","m05V01","Verzekerden",null,"N",""]
[null,null,null,null,"zvpxlft_v981_lft12_m09V01","*='Specifieke informatie A'!$J$116","","Verzekerden risicoklasse- 55 t/m 59- vrouw","zvpxlft","v981","lft12","m06V01","Verzekerden",null,"N",""]
[null,null,null,null,"zvpxlft_v981_lft12_m10V01","*='Specifieke informatie A'!$J$161","","Verzekerden risicoklasse- 55 t/m 59- vrouw","zvpxlft","v981","lft12","m07V01","Verzekerden",null,"N",""]
[null,null,null,null,"zvpxlft_v981_lft13_m08V01","*='Specifieke informatie A'!$J$72","","Verzekerden risicoklasse- 60 t/m 64- vrouw","zvpxlft","v981","lft13","m05V01","Verzekerden",null,"N",""]
[null,null,null,null,"zvpxlft_v981_lft13_m09V01","*='Specifieke informatie A'!$J$117","","Verzekerden risicoklasse- 60 t/m 64- vrouw","zvpxlft","v981","lft13","m06V01","Verzekerden",null,"N",""]
[null,null,null,null,"zvpxlft_v981_lft13_m10V01","*='Specifieke informatie A'!$J$162","","Verzekerden risicoklasse- 60 t/m 64- vrouw","zvpxlft","v981","lft13","m07V01","Verzekerden",null,"N",""]
[null,null,null,null,"zvpxlft_v981_lft14_m08V01","*='Specifieke informatie A'!$J$73","","Verzekerden risicoklasse- 65 t/m 69- vrouw","zvpxlft","v981","lft14","m05V01","Verzekerden",null,"N",""]
[null,null,null,null,"zvpxlft_v981_lft14_m09V01","*='Specifieke informatie A'!$J$118","","Verzekerden risicoklasse- 65 t/m 69- vrouw","zvpxlft","v981","lft14","m06V01","Verzekerden",null,"N",""]
[null,null,null,null,"zvpxlft_v981_lft14_m10V01","*='Specifieke informatie A'!$J$163","","Verzekerden risicoklasse- 65 t/m 69- vrouw","zvpxlft","v981","lft14","m07V01","Verzekerden",null,"N",""]
[null,null,null,null,"zvpxlft_v981_lft15_m08V01","*='Specifieke informatie A'!$J$74","","Verzekerden risicoklasse- 70 t/m 74- vrouw","zvpxlft","v981","lft15","m05V01","Verzekerden",null,"N",""]
[null,null,null,null,"zvpxlft_v981_lft15_m09V01","*='Specifieke informatie A'!$J$119","","Verzekerden risicoklasse- 70 t/m 74- vrouw","zvpxlft","v981","lft15","m06V01","Verzekerden",null,"N",""]
[null,null,null,null,"zvpxlft_v981_lft15_m10V01","*='Specifieke informatie A'!$J$164","","Verzekerden risicoklasse- 70 t/m 74- vrouw","zvpxlft","v981","lft15","m07V01","Verzekerden",null,"N",""]
[null,null,null,null,"zvpxlft_v981_lft16_m08V01","*='Specifieke informatie A'!$J$75","","Verzekerden risicoklasse- 75 t/m 79- vrouw","zvpxlft","v981","lft16","m05V01","Verzekerden",null,"N",""]
[null,null,null,null,"zvpxlft_v981_lft16_m09V01","*='Specifieke informatie A'!$J$120","","Verzekerden risicoklasse- 75 t/m 79- vrouw","zvpxlft","v981","lft16","m06V01","Verzekerden",null,"N",""]
[null,null,null,null,"zvpxlft_v981_lft16_m10V01","*='Specifieke informatie A'!$J$165","","Verzekerden risicoklasse- 75 t/m 79- vrouw","zvpxlft","v981","lft16","m07V01","Verzekerden",null,"N",""]
[null,null,null,null,"zvpxlft_v981_lft17_m08V01","*='Specifieke informatie A'!$J$76","","Verzekerden risicoklasse- 80 t/m 84- vrouw","zvpxlft","v981","lft17","m05V01","Verzekerden",null,"N",""]
[null,null,null,null,"zvpxlft_v981_lft17_m09V01","*='Specifieke informatie A'!$J$121","","Verzekerden risicoklasse- 80 t/m 84- vrouw","zvpxlft","v981","lft17","m06V01","Verzekerden",null,"N",""]
[null,null,null,null,"zvpxlft_v981_lft17_m10V01","*='Specifieke informatie A'!$J$166","","Verzekerden risicoklasse- 80 t/m 84- vrouw","zvpxlft","v981","lft17","m07V01","Verzekerden",null,"N",""]
[null,null,null,null,"zvpxlft_v981_lft18_m08V01","*='Specifieke informatie A'!$J$77","","Verzekerden risicoklasse- 85 t/m 89- vrouw","zvpxlft","v981","lft18","m05V01","Verzekerden",null,"N",""]
[null,null,null,null,"zvpxlft_v981_lft18_m09V01","*='Specifieke informatie A'!$J$122","","Verzekerden risicoklasse- 85 t/m 89- vrouw","zvpxlft","v981","lft18","m06V01","Verzekerden",null,"N",""]
[null,null,null,null,"zvpxlft_v981_lft18_m10V01","*='Specifieke informatie A'!$J$167","","Verzekerden risicoklasse- 85 t/m 89- vrouw","zvpxlft","v981","lft18","m07V01","Verzekerden",null,"N",""]
[null,null,null,null,"zvpxlft_v981_lft19_m08V01","*='Specifieke informatie A'!$J$78","","Verzekerden risicoklasse- 90 en ouder- vrouw","zvpxlft","v981","lft19","m05V01","Verzekerden",null,"N",""]
[null,null,null,null,"zvpxlft_v981_lft19_m09V01","*='Specifieke informatie A'!$J$123","","Verzekerden risicoklasse- 90 en ouder- vrouw","zvpxlft","v981","lft19","m06V01","Verzekerden",null,"N",""]
[null,null,null,null,"zvpxlft_v981_lft19_m10V01","*='Specifieke informatie A'!$J$168","","Verzekerden risicoklasse- 90 en ouder- vrouw","zvpxlft","v981","lft19","m07V01","Verzekerden",null,"N",""]
[null,null,null,null,"zvpxprm_s981_nomn_m08V01","*='Specifieke informatie A'!$L$85","","Verzekerden premiekenmerk- zonder nominale premie ZVW","zvpxprm","s981","nomn","m05V01","Verzekerden",null,"N",""]
[null,null,null,null,"zvpxprm_s981_nomn_m09V01","*='Specifieke informatie A'!$L$130","","Verzekerden premiekenmerk- zonder nominale premie ZVW","zvpxprm","s981","nomn","m06V01","Verzekerden",null,"N",""]
[null,null,null,null,"zvpxprm_s981_nomn_m10V01","*='Specifieke informatie A'!$L$175","","Verzekerden premiekenmerk- zonder nominale premie ZVW","zvpxprm","s981","nomn","m07V01","Verzekerden",null,"N",""]
[null,null,null,null,"zvpxprm_s981_nomy_m08V01","*='Specifieke informatie A'!$L$84","","Verzekerden premiekenmerk- met nominale premie ZVW","zvpxprm","s981","nomy","m05V01","Verzekerden",null,"N",""]
[null,null,null,null,"zvpxprm_s981_nomy_m09V01","*='Specifieke informatie A'!$L$129","","Verzekerden premiekenmerk- met nominale premie ZVW","zvpxprm","s981","nomy","m06V01","Verzekerden",null,"N",""]
[null,null,null,null,"zvpxprm_s981_nomy_m10V01","*='Specifieke informatie A'!$L$174","","Verzekerden premiekenmerk- met nominale premie ZVW","zvpxprm","s981","nomy","m07V01","Verzekerden",null,"N",""]
[null,null,null,null,"zvpxwnb_s982_d2m_m07V01","*=Wanbetalers!$I$12","","Wanbetalers- achterstand 2 of 3 maanden","zvpxwnb","s982","d2m","m04V01","Wanbetalers",null,"N",""]
[null,null,null,null,"zvpxwnb_s982_d2m_m08V01","*=Wanbetalers!$J$12","","Wanbetalers- achterstand 2 of 3 maanden","zvpxwnb","s982","d2m","m05V01","Wanbetalers",null,"N",""]
[null,null,null,null,"zvpxwnb_s982_d2m_m09V01","*=Wanbetalers!$K$12","","Wanbetalers- achterstand 2 of 3 maanden","zvpxwnb","s982","d2m","m06V01","Wanbetalers",null,"N",""]
[null,null,null,null,"zvpxwnb_s982_d4m_m07V01","*=Wanbetalers!$I$13","","Wanbetalers- achterstand 4 of 5 maanden","zvpxwnb","s982","d4m","m04V01","Wanbetalers",null,"N",""]
[null,null,null,null,"zvpxwnb_s982_d4m_m08V01","*=Wanbetalers!$J$13","","Wanbetalers- achterstand 4 of 5 maanden","zvpxwnb","s982","d4m","m05V01","Wanbetalers",null,"N",""]
[null,null,null,null,"zvpxwnb_s982_d4m_m09V01","*=Wanbetalers!$K$13","","Wanbetalers- achterstand 4 of 5 maanden","zvpxwnb","s982","d4m","m06V01","Wanbetalers",null,"N",""]
[null,null,null,null,"zvpxwnb_s982_d6m_m07V01","*=Wanbetalers!$I$14","","Wanbetalers- achterstand 6 of meer maanden","zvpxwnb","s982","d6m","m04V01","Wanbetalers",null,"N",""]
[null,null,null,null,"zvpxwnb_s982_d6m_m08V01","*=Wanbetalers!$J$14","","Wanbetalers- achterstand 6 of meer maanden","zvpxwnb","s982","d6m","m05V01","Wanbetalers",null,"N",""]
[null,null,null,null,"zvpxwnb_s982_d6m_m09V01","*=Wanbetalers!$K$14","","Wanbetalers- achterstand 6 of meer maanden","zvpxwnb","s982","d6m","m06V01","Wanbetalers",null,"N",""]
[null,null,null,null,"zvpxwnb_s982_dm2b_m07V01","*=Wanbetalers!$I$17","","Wanbetalers- tweedemaandsbrieven","zvpxwnb","s982","dm2b","m04V01","Wanbetalers",null,"N",""]
[null,null,null,null,"zvpxwnb_s982_dm2b_m08V01","*=Wanbetalers!$J$17","","Wanbetalers- tweedemaandsbrieven","zvpxwnb","s982","dm2b","m05V01","Wanbetalers",null,"N",""]
[null,null,null,null,"zvpxwnb_s982_dm2b_m09V01","*=Wanbetalers!$K$17","","Wanbetalers- tweedemaandsbrieven","zvpxwnb","s982","dm2b","m06V01","Wanbetalers",null,"N",""]
[null,null,null,null,"zvpxwnb_s982_dm4b_m07V01","*=Wanbetalers!$I$18","","Wanbetalers- vierdemaandsbrieven","zvpxwnb","s982","dm4b","m04V01","Wanbetalers",null,"N",""]
[null,null,null,null,"zvpxwnb_s982_dm4b_m08V01","*=Wanbetalers!$J$18","","Wanbetalers- vierdemaandsbrieven","zvpxwnb","s982","dm4b","m05V01","Wanbetalers",null,"N",""]
[null,null,null,null,"zvpxwnb_s982_dm4b_m09V01","*=Wanbetalers!$K$18","","Wanbetalers- vierdemaandsbrieven","zvpxwnb","s982","dm4b","m06V01","Wanbetalers",null,"N",""]
[null,null,null,null,"zvpxwnb_s982_dr0i_m07V01","*=Wanbetalers!$I$21","","Wanbetalers- interne betalingsregeling","zvpxwnb","s982","dr0i","m04V01","Wanbetalers",null,"N",""]
[null,null,null,null,"zvpxwnb_s982_dr0i_m08V01","*=Wanbetalers!$J$21","","Wanbetalers- interne betalingsregeling","zvpxwnb","s982","dr0i","m05V01","Wanbetalers",null,"N",""]
[null,null,null,null,"zvpxwnb_s982_dr0i_m09V01","*=Wanbetalers!$K$21","","Wanbetalers- interne betalingsregeling","zvpxwnb","s982","dr0i","m06V01","Wanbetalers",null,"N",""]
[null,null,null,null,"zvpxwnb_s982_dr0e_m0701","*=Wanbetalers!$I$22","","Wanbetalers- externe betalingsregeling","zvpxwnb","s982","dr0e","m04V01","Wanbetalers",null,"N",""]
[null,null,null,null,"zvpxwnb_s982_dr0e_m08V01","*=Wanbetalers!$J$22","","Wanbetalers- externe betalingsregeling","zvpxwnb","s982","dr0e","m05V01","Wanbetalers",null,"N",""]
[null,null,null,null,"zvpxwnb_s982_dr0e_m09V01","*=Wanbetalers!$K$22","","Wanbetalers- externe betalingsregeling","zvpxwnb","s982","dr0e","m06V01","Wanbetalers",null,"N",""]
[null,null,null,null,"zvpxwnb_s982_dr0s_m07V01","*=Wanbetalers!$I$23","","Wanbetalers- stabilisatieovereenkomst","zvpxwnb","s982","dr0s","m04V01","Wanbetalers",null,"N",""]
[null,null,null,null,"zvpxwnb_s982_dr0s_m08V01","*=Wanbetalers!$J$23","","Wanbetalers- stabilisatieovereenkomst","zvpxwnb","s982","dr0s","m05V01","Wanbetalers",null,"N",""]
[null,null,null,null,"zvpxwnb_s982_dr0s_m09V01","*=Wanbetalers!$K$23","","Wanbetalers- stabilisatieovereenkomst","zvpxwnb","s982","dr0s","m06V01","Wanbetalers",null,"N",""]
[null,null,null,null,"zvpxwnb_s982_dr81_m07V01","*=Wanbetalers!$I$26","","Wanbetalers- cak bdr < 250","zvpxwnb","s982","dr81","m04V01","Wanbetalers",null,"N",""]
[null,null,null,null,"zvpxwnb_s982_dr81_m08V01","*=Wanbetalers!$J$26","","Wanbetalers- cak bdr < 250","zvpxwnb","s982","dr81","m05V01","Wanbetalers",null,"N",""]
[null,null,null,null,"zvpxwnb_s982_dr81_m09V01","*=Wanbetalers!$K$26","","Wanbetalers- cak bdr < 250","zvpxwnb","s982","dr81","m06V01","Wanbetalers",null,"N",""]
[null,null,null,null,"zvpxwnb_s982_dr82_m07V01","*=Wanbetalers!$I$27","","Wanbetalers- cak 250 < bdr < 750","zvpxwnb","s982","dr82","m04V01","Wanbetalers",null,"N",""]
[null,null,null,null,"zvpxwnb_s982_dr82_m08V01","*=Wanbetalers!$J$27","","Wanbetalers- cak 250 < bdr < 750","zvpxwnb","s982","dr82","m05V01","Wanbetalers",null,"N",""]
[null,null,null,null,"zvpxwnb_s982_dr82_m09V01","*=Wanbetalers!$K$27","","Wanbetalers- cak 250 < bdr < 750","zvpxwnb","s982","dr82","m06V01","Wanbetalers",null,"N",""]
[null,null,null,null,"zvpxwnb_s982_dr83_m07V01","*=Wanbetalers!$I$28","","Wanbetalers- cak 750 < bdr","zvpxwnb","s982","dr83","m04V01","Wanbetalers",null,"N",""]
[null,null,null,null,"zvpxwnb_s982_dr83_m08V01","*=Wanbetalers!$J$28","","Wanbetalers- cak 750 < bdr","zvpxwnb","s982","dr83","m05V01","Wanbetalers",null,"N",""]
[null,null,null,null,"zvpxwnb_s982_dr83_m09V01","*=Wanbetalers!$K$28","","Wanbetalers- cak 750 < bdr","zvpxwnb","s982","dr83","m06V01","Wanbetalers",null,"N",""]
[null,null,null,null,"zvsx06k_a610_d1l_TY0V01","*='Specifieke informatie C'!$H$100","","C610 Overige kosten ziekenhuiszorg en curatieve zorg- eerstelijnsdiagnostiek eerstelijnszorgaanbieders - huisartslab- geaccepteerd","zvsx06k","a610","d1l","TY0V01"]
[null,null,null,null,"zvsx06k_a610_d1l_TY1V01","*='Specifieke informatie C'!$J$100","","C610 Overige kosten ziekenhuiszorg en curatieve zorg- eerstelijnsdiagnostiek eerstelijnszorgaanbieders - huisartslab- geaccepteerd","zvsx06k","a610","d1l","TY1V01"]
[null,null,null,null,"zvsx06k_a610_d1l_TY2V01","*='Specifieke informatie C'!$L$100","","C610 Overige kosten ziekenhuiszorg en curatieve zorg- eerstelijnsdiagnostiek eerstelijnszorgaanbieders - huisartslab- geaccepteerd","zvsx06k","a610","d1l","TY2V01"]
[null,null,null,null,"zvsx06k_a610_sknt_TY0V01","*='Specifieke informatie C'!$H$102","","C610 Overige kosten ziekenhuiszorg en curatieve zorg- SKION en NTS- geaccepteerd","zvsx06k","a610","sknt","TY0V01"]
[null,null,null,null,"zvsx06k_a610_sknt_TY1V01","*='Specifieke informatie C'!$J$102","","C610 Overige kosten ziekenhuiszorg en curatieve zorg- SKION en NTS- geaccepteerd","zvsx06k","a610","sknt","TY1V01"]
[null,null,null,null,"zvsx06k_a610_sknt_TY2V01","*='Specifieke informatie C'!$L$102","","C610 Overige kosten ziekenhuiszorg en curatieve zorg- SKION en NTS- geaccepteerd","zvsx06k","a610","sknt","TY2V01"]
[null,null,null,null,"zvsx06k_a610_trmb_TY0V01","*='Specifieke informatie C'!$H$101","","C610 Overige kosten ziekenhuiszorg en curatieve zorg- Trombosediensten- geaccepteerd","zvsx06k","a610","trmb","TY0V01"]
[null,null,null,null,"zvsx06k_a610_trmb_TY1V01","*='Specifieke informatie C'!$J$101","","C610 Overige kosten ziekenhuiszorg en curatieve zorg- Trombosediensten- geaccepteerd","zvsx06k","a610","trmb","TY1V01"]
[null,null,null,null,"zvsx06k_a610_trmb_TY2V01","*='Specifieke informatie C'!$L$101","","C610 Overige kosten ziekenhuiszorg en curatieve zorg- Trombosediensten- geaccepteerd","zvsx06k","a610","trmb","TY2V01"]
[null,null,null,null,"zvsx06k_a611_az_TY0V01","*='Specifieke informatie C'!$H$109","","C611 Naar Instelling- Academische ziekenhuizen- geaccepteerd","zvsx06k","a611","az","TY0V01"]
[null,null,null,null,"zvsx06k_a611_az_TY1V01","*='Specifieke informatie C'!$J$109","","C611 Naar Instelling- Academische ziekenhuizen- geaccepteerd","zvsx06k","a611","az","TY1V01"]
[null,null,null,null,"zvsx06k_a611_az_TY2V01","*='Specifieke informatie C'!$L$109","","C611 Naar Instelling- Academische ziekenhuizen- geaccepteerd","zvsx06k","a611","az","TY2V01"]
[null,null,null,null,"zvsx06k_a611_ov_TY0V01","*='Specifieke informatie C'!$H$112","","C611 Naar Instelling- Overige zorgaanbieders- geaccepteerd","zvsx06k","a611","ov","TY0V01"]
[null,null,null,null,"zvsx06k_a611_ov_TY1V01","*='Specifieke informatie C'!$J$112","","C611 Naar Instelling- Overige zorgaanbieders- geaccepteerd","zvsx06k","a611","ov","TY1V01"]
[null,null,null,null,"zvsx06k_a611_ov_TY2V01","*='Specifieke informatie C'!$L$112","","C611 Naar Instelling- Overige zorgaanbieders- geaccepteerd","zvsx06k","a611","ov","TY2V01"]
[null,null,null,null,"zvsx06k_a611_sz_TY0V01","*='Specifieke informatie C'!$H$110","","C611 Naar Instelling- Algemene ziekenhuizen- geaccepteerd","zvsx06k","a611","sz","TY0V01"]
[null,null,null,null,"zvsx06k_a611_sz_TY1V01","*='Specifieke informatie C'!$J$110","","C611 Naar Instelling- Algemene ziekenhuizen- geaccepteerd","zvsx06k","a611","sz","TY1V01"]
[null,null,null,null,"zvsx06k_a611_sz_TY2V01","*='Specifieke informatie C'!$L$110","","C611 Naar Instelling- Algemene ziekenhuizen- geaccepteerd","zvsx06k","a611","sz","TY2V01"]
[null,null,null,null,"zvsx06k_a611_zb_TY0V01","*='Specifieke informatie C'!$H$111","","C611 Naar Instelling- Zelfstandige behandelcentra- geaccepteerd","zvsx06k","a611","zb","TY0V01"]
[null,null,null,null,"zvsx06k_a611_zb_TY1V01","*='Specifieke informatie C'!$J$111","","C611 Naar Instelling- Zelfstandige behandelcentra- geaccepteerd","zvsx06k","a611","zb","TY1V01"]
[null,null,null,null,"zvsx06k_a611_zb_TY2V01","*='Specifieke informatie C'!$L$111","","C611 Naar Instelling- Zelfstandige behandelcentra- geaccepteerd","zvsx06k","a611","zb","TY2V01"]
[null,null,null,null,"zvsx06k_a6121_az_TY0V01","*='Specifieke informatie C'!$H$118","","C612.1 Kosten add-ons dure geneesmiddelen naar instelling- Academische ziekenhuizen- geaccepteerd","zvsx06k","a6121","az","TY0V01"]
[null,null,null,null,"zvsx06k_a6121_az_TY1V01","*='Specifieke informatie C'!$J$118","","C612.1 Kosten add-ons dure geneesmiddelen naar instelling- Academische ziekenhuizen- geaccepteerd","zvsx06k","a6121","az","TY1V01"]
[null,null,null,null,"zvsx06k_a6121_az_TY2V01","*='Specifieke informatie C'!$L$118","","C612.1 Kosten add-ons dure geneesmiddelen naar instelling- Academische ziekenhuizen- geaccepteerd","zvsx06k","a6121","az","TY2V01"]
[null,null,null,null,"zvsx06k_a6121_ov_TY0V01","*='Specifieke informatie C'!$H$121","","C612.1 Kosten add-ons dure geneesmiddelen naar instelling- Overige zorgaanbieders- geaccepteerd","zvsx06k","a6121","ov","TY0V01"]
[null,null,null,null,"zvsx06k_a6121_ov_TY1V01","*='Specifieke informatie C'!$J$121","","C612.1 Kosten add-ons dure geneesmiddelen naar instelling- Overige zorgaanbieders- geaccepteerd","zvsx06k","a6121","ov","TY1V01"]
[null,null,null,null,"zvsx06k_a6121_ov_TY2V01","*='Specifieke informatie C'!$L$121","","C612.1 Kosten add-ons dure geneesmiddelen naar instelling- Overige zorgaanbieders- geaccepteerd","zvsx06k","a6121","ov","TY2V01"]
[null,null,null,null,"zvsx06k_a6121_sz_TY0V01","*='Specifieke informatie C'!$H$119","","C612.1 Kosten add-ons dure geneesmiddelen naar instelling- Algemene ziekenhuizen- geaccepteerd","zvsx06k","a6121","sz","TY0V01"]
[null,null,null,null,"zvsx06k_a6121_sz_TY1V01","*='Specifieke informatie C'!$J$119","","C612.1 Kosten add-ons dure geneesmiddelen naar instelling- Algemene ziekenhuizen- geaccepteerd","zvsx06k","a6121","sz","TY1V01"]
[null,null,null,null,"zvsx06k_a6121_sz_TY2V01","*='Specifieke informatie C'!$L$119","","C612.1 Kosten add-ons dure geneesmiddelen naar instelling- Algemene ziekenhuizen- geaccepteerd","zvsx06k","a6121","sz","TY2V01"]
[null,null,null,null,"zvsx06k_a6121_zb_TY0V01","*='Specifieke informatie C'!$H$120","","C612.1 Kosten add-ons dure geneesmiddelen naar instelling- Zelfstandige behandelcentra- geaccepteerd","zvsx06k","a6121","zb","TY0V01"]
[null,null,null,null,"zvsx06k_a6121_zb_TY1V01","*='Specifieke informatie C'!$J$120","","C612.1 Kosten add-ons dure geneesmiddelen naar instelling- Zelfstandige behandelcentra- geaccepteerd","zvsx06k","a6121","zb","TY1V01"]
[null,null,null,null,"zvsx06k_a6121_zb_TY2V01","*='Specifieke informatie C'!$L$120","","C612.1 Kosten add-ons dure geneesmiddelen naar instelling- Zelfstandige behandelcentra- geaccepteerd","zvsx06k","a6121","zb","TY2V01"]
[null,null,null,null,"zvsx06k_a6122_az_TY0V01","*='Specifieke informatie C'!$H$127","","C612.2 Kosten add-ons IC naar instelling- Academische ziekenhuizen- geaccepteerd","zvsx06k","a6122","az","TY0V01"]
[null,null,null,null,"zvsx06k_a6122_az_TY1V01","*='Specifieke informatie C'!$J$127","","C612.2 Kosten add-ons IC naar instelling- Academische ziekenhuizen- geaccepteerd","zvsx06k","a6122","az","TY1V01"]
[null,null,null,null,"zvsx06k_a6122_az_TY2V01","*='Specifieke informatie C'!$L$127","","C612.2 Kosten add-ons IC naar instelling- Academische ziekenhuizen- geaccepteerd","zvsx06k","a6122","az","TY2V01"]
[null,null,null,null,"zvsx06k_a6122_ov_TY0V01","*='Specifieke informatie C'!$H$130","","C612.2 Kosten add-ons IC naar instelling- Overige zorgaanbieders- geaccepteerd","zvsx06k","a6122","ov","TY0V01"]
[null,null,null,null,"zvsx06k_a6122_ov_TY1V01","*='Specifieke informatie C'!$J$130","","C612.2 Kosten add-ons IC naar instelling- Overige zorgaanbieders- geaccepteerd","zvsx06k","a6122","ov","TY1V01"]
[null,null,null,null,"zvsx06k_a6122_ov_TY2V01","*='Specifieke informatie C'!$L$130","","C612.2 Kosten add-ons IC naar instelling- Overige zorgaanbieders- geaccepteerd","zvsx06k","a6122","ov","TY2V01"]
[null,null,null,null,"zvsx06k_a6122_sz_TY0V01","*='Specifieke informatie C'!$H$128","","C612.2 Kosten add-ons IC naar instelling- Algemene ziekenhuizen- geaccepteerd","zvsx06k","a6122","sz","TY0V01"]
[null,null,null,null,"zvsx06k_a6122_sz_TY1V01","*='Specifieke informatie C'!$J$128","","C612.2 Kosten add-ons IC naar instelling- Algemene ziekenhuizen- geaccepteerd","zvsx06k","a6122","sz","TY1V01"]
[null,null,null,null,"zvsx06k_a6122_sz_TY2V01","*='Specifieke informatie C'!$L$128","","C612.2 Kosten add-ons IC naar instelling- Algemene ziekenhuizen- geaccepteerd","zvsx06k","a6122","sz","TY2V01"]
[null,null,null,null,"zvsx06k_a6122_zb_TY0V01","*='Specifieke informatie C'!$H$129","","C612.2 Kosten add-ons IC naar instelling- Zelfstandige behandelcentra- geaccepteerd","zvsx06k","a6122","zb","TY0V01"]
[null,null,null,null,"zvsx06k_a6122_zb_TY1V01","*='Specifieke informatie C'!$J$129","","C612.2 Kosten add-ons IC naar instelling- Zelfstandige behandelcentra- geaccepteerd","zvsx06k","a6122","zb","TY1V01"]
[null,null,null,null,"zvsx06k_a6122_zb_TY2V01","*='Specifieke informatie C'!$L$129","","C612.2 Kosten add-ons IC naar instelling- Zelfstandige behandelcentra- geaccepteerd","zvsx06k","a6122","zb","TY2V01"]
[null,null,null,null,"zvsx06k_a6131_az_TY0V01","*='Specifieke informatie C'!$H$143","","C613.1 Integrale kosten DBC-zorgproducten gereguleerde segment- Academische ziekenhuizen- geaccepteerd","zvsx06k","a6131","az","TY0V01"]
[null,null,null,null,"zvsx06k_a6131_az_TY1V01","*='Specifieke informatie C'!$J$143","","C613.1 Integrale kosten DBC-zorgproducten gereguleerde segment- Academische ziekenhuizen- geaccepteerd","zvsx06k","a6131","az","TY1V01"]
[null,null,null,null,"zvsx06k_a6131_az_TY2V01","*='Specifieke informatie C'!$L$143","","C613.1 Integrale kosten DBC-zorgproducten gereguleerde segment- Academische ziekenhuizen- geaccepteerd","zvsx06k","a6131","az","TY2V01"]
[null,null,null,null,"zvsx06k_a6131_ov_TY0V01","*='Specifieke informatie C'!$H$146","","C613.1 Integrale kosten DBC-zorgproducten gereguleerde segment- Overige zorgaanbieders- geaccepteerd","zvsx06k","a6131","ov","TY0V01"]
[null,null,null,null,"zvsx06k_a6131_ov_TY1V01","*='Specifieke informatie C'!$J$146","","C613.1 Integrale kosten DBC-zorgproducten gereguleerde segment- Overige zorgaanbieders- geaccepteerd","zvsx06k","a6131","ov","TY1V01"]
[null,null,null,null,"zvsx06k_a6131_ov_TY2V01","*='Specifieke informatie C'!$L$146","","C613.1 Integrale kosten DBC-zorgproducten gereguleerde segment- Overige zorgaanbieders- geaccepteerd","zvsx06k","a6131","ov","TY2V01"]
[null,null,null,null,"zvsx06k_a6131_sz_TY0V01","*='Specifieke informatie C'!$H$144","","C613.1 Integrale kosten DBC-zorgproducten gereguleerde segment- Algemene ziekenhuizen- geaccepteerd","zvsx06k","a6131","sz","TY0V01"]
[null,null,null,null,"zvsx06k_a6131_sz_TY1V01","*='Specifieke informatie C'!$J$144","","C613.1 Integrale kosten DBC-zorgproducten gereguleerde segment- Algemene ziekenhuizen- geaccepteerd","zvsx06k","a6131","sz","TY1V01"]
[null,null,null,null,"zvsx06k_a6131_sz_TY2V01","*='Specifieke informatie C'!$L$144","","C613.1 Integrale kosten DBC-zorgproducten gereguleerde segment- Algemene ziekenhuizen- geaccepteerd","zvsx06k","a6131","sz","TY2V01"]
[null,null,null,null,"zvsx06k_a6131_zb_TY0V01","*='Specifieke informatie C'!$H$145","","C613.1 Integrale kosten DBC-zorgproducten gereguleerde segment- Zelfstandige behandelcentra- geaccepteerd","zvsx06k","a6131","zb","TY0V01"]
[null,null,null,null,"zvsx06k_a6131_zb_TY1V01","*='Specifieke informatie C'!$J$145","","C613.1 Integrale kosten DBC-zorgproducten gereguleerde segment- Zelfstandige behandelcentra- geaccepteerd","zvsx06k","a6131","zb","TY1V01"]
[null,null,null,null,"zvsx06k_a6131_zb_TY2V01","*='Specifieke informatie C'!$L$145","","C613.1 Integrale kosten DBC-zorgproducten gereguleerde segment- Zelfstandige behandelcentra- geaccepteerd","zvsx06k","a6131","zb","TY2V01"]
[null,null,null,null,"zvsx06k_a6151_az_TY0V01","*='Specifieke informatie C'!$H$152","","C615.1 Integrale kosten DBC-zorgproduct vrije segment- Academische ziekenhuizen- geaccepteerd","zvsx06k","a6151","az","TY0V01"]
[null,null,null,null,"zvsx06k_a6151_az_TY1V01","*='Specifieke informatie C'!$J$152","","C615.1 Integrale kosten DBC-zorgproduct vrije segment- Academische ziekenhuizen- geaccepteerd","zvsx06k","a6151","az","TY1V01"]
[null,null,null,null,"zvsx06k_a6151_az_TY2V01","*='Specifieke informatie C'!$L$152","","C615.1 Integrale kosten DBC-zorgproduct vrije segment- Academische ziekenhuizen- geaccepteerd","zvsx06k","a6151","az","TY2V01"]
[null,null,null,null,"zvsx06k_a6151_ov_TY0V01","*='Specifieke informatie C'!$H$155","","C615.1 Integrale kosten DBC-zorgproduct vrije segment- Overige zorgaanbieders- geaccepteerd","zvsx06k","a6151","ov","TY0V01"]
[null,null,null,null,"zvsx06k_a6151_ov_TY1V01","*='Specifieke informatie C'!$J$155","","C615.1 Integrale kosten DBC-zorgproduct vrije segment- Overige zorgaanbieders- geaccepteerd","zvsx06k","a6151","ov","TY1V01"]
[null,null,null,null,"zvsx06k_a6151_ov_TY2V01","*='Specifieke informatie C'!$L$155","","C615.1 Integrale kosten DBC-zorgproduct vrije segment- Overige zorgaanbieders- geaccepteerd","zvsx06k","a6151","ov","TY2V01"]
[null,null,null,null,"zvsx06k_a6151_sz_TY0V01","*='Specifieke informatie C'!$H$153","","C615.1 Integrale kosten DBC-zorgproduct vrije segment- Algemene ziekenhuizen- geaccepteerd","zvsx06k","a6151","sz","TY0V01"]
[null,null,null,null,"zvsx06k_a6151_sz_TY1V01","*='Specifieke informatie C'!$J$153","","C615.1 Integrale kosten DBC-zorgproduct vrije segment- Algemene ziekenhuizen- geaccepteerd","zvsx06k","a6151","sz","TY1V01"]
[null,null,null,null,"zvsx06k_a6151_sz_TY2V01","*='Specifieke informatie C'!$L$153","","C615.1 Integrale kosten DBC-zorgproduct vrije segment- Algemene ziekenhuizen- geaccepteerd","zvsx06k","a6151","sz","TY2V01"]
[null,null,null,null,"zvsx06k_a6151_zb_TY0V01","*='Specifieke informatie C'!$H$154","","C615.1 Integrale kosten DBC-zorgproduct vrije segment- Zelfstandige behandelcentra- geaccepteerd","zvsx06k","a6151","zb","TY0V01"]
[null,null,null,null,"zvsx06k_a6151_zb_TY1V01","*='Specifieke informatie C'!$J$154","","C615.1 Integrale kosten DBC-zorgproduct vrije segment- Zelfstandige behandelcentra- geaccepteerd","zvsx06k","a6151","zb","TY1V01"]
[null,null,null,null,"zvsx06k_a6151_zb_TY2V01","*='Specifieke informatie C'!$L$154","","C615.1 Integrale kosten DBC-zorgproduct vrije segment- Zelfstandige behandelcentra- geaccepteerd","zvsx06k","a6151","zb","TY2V01"]
[null,null,null,null,"zvsx06k_c610_d1l_TY0V01","*='Specifieke informatie C'!$G$100","","C610 Overige kosten ziekenhuiszorg en curatieve zorg- eerstelijnsdiagnostiek eerstelijnszorgaanbieders - huisartslab- incl balans","zvsx06k","c610","d1l","TY0V01"]
[null,null,null,null,"zvsx06k_c610_d1l_TY1V01","*='Specifieke informatie C'!$I$100","","C610 Overige kosten ziekenhuiszorg en curatieve zorg- eerstelijnsdiagnostiek eerstelijnszorgaanbieders - huisartslab- incl balans","zvsx06k","c610","d1l","TY1V01"]
[null,null,null,null,"zvsx06k_c610_d1l_TY2V01","*='Specifieke informatie C'!$K$100","","C610 Overige kosten ziekenhuiszorg en curatieve zorg- eerstelijnsdiagnostiek eerstelijnszorgaanbieders - huisartslab- incl balans","zvsx06k","c610","d1l","TY2V01"]
[null,null,null,null,"zvsx06k_c610_sknt_TY0V01","*='Specifieke informatie C'!$G$102","","C610 Overige kosten ziekenhuiszorg en curatieve zorg- SKION en NTS- incl balans","zvsx06k","c610","sknt","TY0V01"]
[null,null,null,null,"zvsx06k_c610_sknt_TY1V01","*='Specifieke informatie C'!$I$102","","C610 Overige kosten ziekenhuiszorg en curatieve zorg- SKION en NTS- incl balans","zvsx06k","c610","sknt","TY1V01"]
[null,null,null,null,"zvsx06k_c610_sknt_TY2V01","*='Specifieke informatie C'!$K$102","","C610 Overige kosten ziekenhuiszorg en curatieve zorg- SKION en NTS- incl balans","zvsx06k","c610","sknt","TY2V01"]
[null,null,null,null,"zvsx06k_c610_trmb_TY0V01","*='Specifieke informatie C'!$G$100","","C610 Overige kosten ziekenhuiszorg en curatieve zorg- Trombosediensten- incl balans","zvsx06k","c610","trmb","TY0V01"]
[null,null,null,null,"zvsx06k_c610_trmb_TY1V01","*='Specifieke informatie C'!$I$100","","C610 Overige kosten ziekenhuiszorg en curatieve zorg- Trombosediensten- incl balans","zvsx06k","c610","trmb","TY1V01"]
[null,null,null,null,"zvsx06k_c610_trmb_TY2V01","*='Specifieke informatie C'!$K$100","","C610 Overige kosten ziekenhuiszorg en curatieve zorg- Trombosediensten- incl balans","zvsx06k","c610","trmb","TY2V01"]
[null,null,null,null,"zvsx06k_c611_az_TY0V01","*='Specifieke informatie C'!$G$109","","C611 Naar Instelling- Academische ziekenhuizen- incl balans","zvsx06k","c611","az","TY0V01"]
[null,null,null,null,"zvsx06k_c611_az_TY1V01","*='Specifieke informatie C'!$I$109","","C611 Naar Instelling- Academische ziekenhuizen- incl balans","zvsx06k","c611","az","TY1V01"]
[null,null,null,null,"zvsx06k_c611_az_TY2V01","*='Specifieke informatie C'!$K$109","","C611 Naar Instelling- Academische ziekenhuizen- incl balans","zvsx06k","c611","az","TY2V01"]
[null,null,null,null,"zvsx06k_c611_ov_TY0V01","*='Specifieke informatie C'!$G$112","","C611 Naar Instelling- Overige zorgaanbieders- incl balans","zvsx06k","c611","ov","TY0V01"]
[null,null,null,null,"zvsx06k_c611_ov_TY1V01","*='Specifieke informatie C'!$I$112","","C611 Naar Instelling- Overige zorgaanbieders- incl balans","zvsx06k","c611","ov","TY1V01"]
[null,null,null,null,"zvsx06k_c611_ov_TY2V01","*='Specifieke informatie C'!$K$112","","C611 Naar Instelling- Overige zorgaanbieders- incl balans","zvsx06k","c611","ov","TY2V01"]
[null,null,null,null,"zvsx06k_c611_sz_TY0V01","*='Specifieke informatie C'!$G$110","","C611 Naar Instelling- Algemene ziekenhuizen- incl balans","zvsx06k","c611","sz","TY0V01"]
[null,null,null,null,"zvsx06k_c611_sz_TY1V01","*='Specifieke informatie C'!$I$110","","C611 Naar Instelling- Algemene ziekenhuizen- incl balans","zvsx06k","c611","sz","TY1V01"]
[null,null,null,null,"zvsx06k_c611_sz_TY2V01","*='Specifieke informatie C'!$K$110","","C611 Naar Instelling- Algemene ziekenhuizen- incl balans","zvsx06k","c611","sz","TY2V01"]
[null,null,null,null,"zvsx06k_c611_zb_TY0V01","*='Specifieke informatie C'!$G$111","","C611 Naar Instelling- Zelfstandige behandelcentra- incl balans","zvsx06k","c611","zb","TY0V01"]
[null,null,null,null,"zvsx06k_c611_zb_TY1V01","*='Specifieke informatie C'!$I$111","","C611 Naar Instelling- Zelfstandige behandelcentra- incl balans","zvsx06k","c611","zb","TY1V01"]
[null,null,null,null,"zvsx06k_c611_zb_TY2V01","*='Specifieke informatie C'!$K$111","","C611 Naar Instelling- Zelfstandige behandelcentra- incl balans","zvsx06k","c611","zb","TY2V01"]
[null,null,null,null,"zvsx06k_c6121_az_TY0V01","*='Specifieke informatie C'!$G$118","","C612.1 Kosten add-ons dure geneesmiddelen naar instelling- Academische ziekenhuizen- incl balans","zvsx06k","c6121","az","TY0V01"]
[null,null,null,null,"zvsx06k_c6121_az_TY1V01","*='Specifieke informatie C'!$I$118","","C612.1 Kosten add-ons dure geneesmiddelen naar instelling- Academische ziekenhuizen- incl balans","zvsx06k","c6121","az","TY1V01"]
[null,null,null,null,"zvsx06k_c6121_az_TY2V01","*='Specifieke informatie C'!$K$118","","C612.1 Kosten add-ons dure geneesmiddelen naar instelling- Academische ziekenhuizen- incl balans","zvsx06k","c6121","az","TY2V01"]
[null,null,null,null,"zvsx06k_c6121_ov_TY0V01","*='Specifieke informatie C'!$G$121","","C612.1 Kosten add-ons dure geneesmiddelen naar instelling- Overige zorgaanbieders- incl balans","zvsx06k","c6121","ov","TY0V01"]
[null,null,null,null,"zvsx06k_c6121_ov_TY1V01","*='Specifieke informatie C'!$I$121","","C612.1 Kosten add-ons dure geneesmiddelen naar instelling- Overige zorgaanbieders- incl balans","zvsx06k","c6121","ov","TY1V01"]
[null,null,null,null,"zvsx06k_c6121_ov_TY2V01","*='Specifieke informatie C'!$K$121","","C612.1 Kosten add-ons dure geneesmiddelen naar instelling- Overige zorgaanbieders- incl balans","zvsx06k","c6121","ov","TY2V01"]
[null,null,null,null,"zvsx06k_c6121_sz_TY0V01","*='Specifieke informatie C'!$G$119","","C612.1 Kosten add-ons dure geneesmiddelen naar instelling- Algemene ziekenhuizen- incl balans","zvsx06k","c6121","sz","TY0V01"]
[null,null,null,null,"zvsx06k_c6121_sz_TY1V01","*='Specifieke informatie C'!$I$119","","C612.1 Kosten add-ons dure geneesmiddelen naar instelling- Algemene ziekenhuizen- incl balans","zvsx06k","c6121","sz","TY1V01"]
[null,null,null,null,"zvsx06k_c6121_sz_TY2V01","*='Specifieke informatie C'!$K$119","","C612.1 Kosten add-ons dure geneesmiddelen naar instelling- Algemene ziekenhuizen- incl balans","zvsx06k","c6121","sz","TY2V01"]
[null,null,null,null,"zvsx06k_c6121_zb_TY0V01","*='Specifieke informatie C'!$G$120","","C612.1 Kosten add-ons dure geneesmiddelen naar instelling- Zelfstandige behandelcentra- incl balans","zvsx06k","c6121","zb","TY0V01"]
[null,null,null,null,"zvsx06k_c6121_zb_TY1V01","*='Specifieke informatie C'!$I$120","","C612.1 Kosten add-ons dure geneesmiddelen naar instelling- Zelfstandige behandelcentra- incl balans","zvsx06k","c6121","zb","TY1V01"]
[null,null,null,null,"zvsx06k_c6121_zb_TY2V01","*='Specifieke informatie C'!$K$120","","C612.1 Kosten add-ons dure geneesmiddelen naar instelling- Zelfstandige behandelcentra- incl balans","zvsx06k","c6121","zb","TY2V01"]
[null,null,null,null,"zvsx06k_c6122_az_TY0V01","*='Specifieke informatie C'!$G$127","","C612.2 Kosten add-ons IC naar instelling- Academische ziekenhuizen- incl balans","zvsx06k","c6122","az","TY0V01"]
[null,null,null,null,"zvsx06k_c6122_az_TY1V01","*='Specifieke informatie C'!$I$127","","C612.2 Kosten add-ons IC naar instelling- Academische ziekenhuizen- incl balans","zvsx06k","c6122","az","TY1V01"]
[null,null,null,null,"zvsx06k_c6122_az_TY2V01","*='Specifieke informatie C'!$K$127","","C612.2 Kosten add-ons IC naar instelling- Academische ziekenhuizen- incl balans","zvsx06k","c6122","az","TY2V01"]
[null,null,null,null,"zvsx06k_c6122_ov_TY0V01","*='Specifieke informatie C'!$G$130","","C612.2 Kosten add-ons IC naar instelling- Overige zorgaanbieders- incl balans","zvsx06k","c6122","ov","TY0V01"]
[null,null,null,null,"zvsx06k_c6122_ov_TY1V01","*='Specifieke informatie C'!$I$130","","C612.2 Kosten add-ons IC naar instelling- Overige zorgaanbieders- incl balans","zvsx06k","c6122","ov","TY1V01"]
[null,null,null,null,"zvsx06k_c6122_ov_TY2V01","*='Specifieke informatie C'!$K$130","","C612.2 Kosten add-ons IC naar instelling- Overige zorgaanbieders- incl balans","zvsx06k","c6122","ov","TY2V01"]
[null,null,null,null,"zvsx06k_c6122_sz_TY0V01","*='Specifieke informatie C'!$G$128","","C612.2 Kosten add-ons IC naar instelling- Algemene ziekenhuizen- incl balans","zvsx06k","c6122","sz","TY0V01"]
[null,null,null,null,"zvsx06k_c6122_sz_TY1V01","*='Specifieke informatie C'!$I$128","","C612.2 Kosten add-ons IC naar instelling- Algemene ziekenhuizen- incl balans","zvsx06k","c6122","sz","TY1V01"]
[null,null,null,null,"zvsx06k_c6122_sz_TY2V01","*='Specifieke informatie C'!$K$128","","C612.2 Kosten add-ons IC naar instelling- Algemene ziekenhuizen- incl balans","zvsx06k","c6122","sz","TY2V01"]
[null,null,null,null,"zvsx06k_c6122_zb_TY0V01","*='Specifieke informatie C'!$G$129","","C612.2 Kosten add-ons IC naar instelling- Zelfstandige behandelcentra- incl balans","zvsx06k","c6122","zb","TY0V01"]
[null,null,null,null,"zvsx06k_c6122_zb_TY1V01","*='Specifieke informatie C'!$I$129","","C612.2 Kosten add-ons IC naar instelling- Zelfstandige behandelcentra- incl balans","zvsx06k","c6122","zb","TY1V01"]
[null,null,null,null,"zvsx06k_c6122_zb_TY2V01","*='Specifieke informatie C'!$K$129","","C612.2 Kosten add-ons IC naar instelling- Zelfstandige behandelcentra- incl balans","zvsx06k","c6122","zb","TY2V01"]
[null,null,null,null,"zvsx06k_c6131_az_TY0V01","*='Specifieke informatie C'!$G$143","","C613.1 Integrale kosten DBC-zorgproducten gereguleerde segment- Academische ziekenhuizen- incl balans","zvsx06k","c6131","az","TY0V01"]
[null,null,null,null,"zvsx06k_c6131_az_TY1V01","*='Specifieke informatie C'!$I$143","","C613.1 Integrale kosten DBC-zorgproducten gereguleerde segment- Academische ziekenhuizen- incl balans","zvsx06k","c6131","az","TY1V01"]
[null,null,null,null,"zvsx06k_c6131_az_TY2V01","*='Specifieke informatie C'!$K$143","","C613.1 Integrale kosten DBC-zorgproducten gereguleerde segment- Academische ziekenhuizen- incl balans","zvsx06k","c6131","az","TY2V01"]
[null,null,null,null,"zvsx06k_c6131_ov_TY0V01","*='Specifieke informatie C'!$G$146","","C613.1 Integrale kosten DBC-zorgproducten gereguleerde segment- Overige zorgaanbieders- incl balans","zvsx06k","c6131","ov","TY0V01"]
[null,null,null,null,"zvsx06k_c6131_ov_TY1V01","*='Specifieke informatie C'!$I$146","","C613.1 Integrale kosten DBC-zorgproducten gereguleerde segment- Overige zorgaanbieders- incl balans","zvsx06k","c6131","ov","TY1V01"]
[null,null,null,null,"zvsx06k_c6131_ov_TY2V01","*='Specifieke informatie C'!$K$146","","C613.1 Integrale kosten DBC-zorgproducten gereguleerde segment- Overige zorgaanbieders- incl balans","zvsx06k","c6131","ov","TY2V01"]
[null,null,null,null,"zvsx06k_c6131_sz_TY0V01","*='Specifieke informatie C'!$G$144","","C613.1 Integrale kosten DBC-zorgproducten gereguleerde segment- Algemene ziekenhuizen- incl balans","zvsx06k","c6131","sz","TY0V01"]
[null,null,null,null,"zvsx06k_c6131_sz_TY1V01","*='Specifieke informatie C'!$I$144","","C613.1 Integrale kosten DBC-zorgproducten gereguleerde segment- Algemene ziekenhuizen- incl balans","zvsx06k","c6131","sz","TY1V01"]
[null,null,null,null,"zvsx06k_c6131_sz_TY2V01","*='Specifieke informatie C'!$K$144","","C613.1 Integrale kosten DBC-zorgproducten gereguleerde segment- Algemene ziekenhuizen- incl balans","zvsx06k","c6131","sz","TY2V01"]
[null,null,null,null,"zvsx06k_c6131_zb_TY0V01","*='Specifieke informatie C'!$G$145","","C613.1 Integrale kosten DBC-zorgproducten gereguleerde segment- Zelfstandige behandelcentra- incl balans","zvsx06k","c6131","zb","TY0V01"]
[null,null,null,null,"zvsx06k_c6131_zb_TY1V01","*='Specifieke informatie C'!$I$145","","C613.1 Integrale kosten DBC-zorgproducten gereguleerde segment- Zelfstandige behandelcentra- incl balans","zvsx06k","c6131","zb","TY1V01"]
[null,null,null,null,"zvsx06k_c6131_zb_TY2V01","*='Specifieke informatie C'!$K$145","","C613.1 Integrale kosten DBC-zorgproducten gereguleerde segment- Zelfstandige behandelcentra- incl balans","zvsx06k","c6131","zb","TY2V01"]
[null,null,null,null,"zvsx06k_c6151_az_TY0V01","*='Specifieke informatie C'!$G$152","","C615.1 Integrale kosten DBC-zorgproduct vrije segment- Academische ziekenhuizen- incl balans","zvsx06k","c6151","az","TY0V01"]
[null,null,null,null,"zvsx06k_c6151_az_TY1V01","*='Specifieke informatie C'!$I$152","","C615.1 Integrale kosten DBC-zorgproduct vrije segment- Academische ziekenhuizen- incl balans","zvsx06k","c6151","az","TY1V01"]
[null,null,null,null,"zvsx06k_c6151_az_TY2V01","*='Specifieke informatie C'!$K$152","","C615.1 Integrale kosten DBC-zorgproduct vrije segment- Academische ziekenhuizen- incl balans","zvsx06k","c6151","az","TY2V01"]
[null,null,null,null,"zvsx06k_c6151_ov_TY0V01","*='Specifieke informatie C'!$G$155","","C615.1 Integrale kosten DBC-zorgproduct vrije segment- Overige zorgaanbieders- incl balans","zvsx06k","c6151","ov","TY0V01"]
[null,null,null,null,"zvsx06k_c6151_ov_TY1V01","*='Specifieke informatie C'!$I$155","","C615.1 Integrale kosten DBC-zorgproduct vrije segment- Overige zorgaanbieders- incl balans","zvsx06k","c6151","ov","TY1V01"]
[null,null,null,null,"zvsx06k_c6151_ov_TY2V01","*='Specifieke informatie C'!$K$155","","C615.1 Integrale kosten DBC-zorgproduct vrije segment- Overige zorgaanbieders- incl balans","zvsx06k","c6151","ov","TY2V01"]
[null,null,null,null,"zvsx06k_c6151_sz_TY0V01","*='Specifieke informatie C'!$G$153","","C615.1 Integrale kosten DBC-zorgproduct vrije segment- Algemene ziekenhuizen- incl balans","zvsx06k","c6151","sz","TY0V01"]
[null,null,null,null,"zvsx06k_c6151_sz_TY1V01","*='Specifieke informatie C'!$I$153","","C615.1 Integrale kosten DBC-zorgproduct vrije segment- Algemene ziekenhuizen- incl balans","zvsx06k","c6151","sz","TY1V01"]
[null,null,null,null,"zvsx06k_c6151_sz_TY2V01","*='Specifieke informatie C'!$K$153","","C615.1 Integrale kosten DBC-zorgproduct vrije segment- Algemene ziekenhuizen- incl balans","zvsx06k","c6151","sz","TY2V01"]
[null,null,null,null,"zvsx06k_c6151_zb_TY0V01","*='Specifieke informatie C'!$G$154","","C615.1 Integrale kosten DBC-zorgproduct vrije segment- Zelfstandige behandelcentra- incl balans","zvsx06k","c6151","zb","TY0V01"]
[null,null,null,null,"zvsx06k_c6151_zb_TY1V01","*='Specifieke informatie C'!$I$154","","C615.1 Integrale kosten DBC-zorgproduct vrije segment- Zelfstandige behandelcentra- incl balans","zvsx06k","c6151","zb","TY1V01"]
[null,null,null,null,"zvsx06k_c6151_zb_TY2V01","*='Specifieke informatie C'!$K$154","","C615.1 Integrale kosten DBC-zorgproduct vrije segment- Zelfstandige behandelcentra- incl balans","zvsx06k","c6151","zb","TY2V01"]

{"sheet":"Parameters","index":13,"n_rows":39,"n_cols":7,"rows_kept":39,"cut":false,"hidden":true,"merged":[[1,4,1,5]]}
[]
[null,"Kwartaal:",3,null,"HASHTOTALEN"]
[null,"Jaar:",2020,null,"Alle waarden tabblad specifieke informatie A",{"$f":"ROUND(SUM(alle_cellen_info_a),0)","v":{"$error":"#REF!"}},"Opm: kolom I..L"]
[null,"Wet:","ZVW",null,"Alle waarden tabblad specifieke informatie B",{"$f":"ROUND(SUM(alle_cellen_info_c),0)","v":220462},"Opm: kolom I..L"]
[null,"Document:",{"$f":"CONCATENATE(\"KS\",jaar_id,wet_id,\".\",kwartaal_id)","v":"KS2020ZVW.3"},null,"Alle waarden tabbladen specifieke informatie A en C",{"$f":"SUM(F3:F4)","v":{"$error":"#REF!"}},"Opm: kolom I..L"]
[null,"Revisie:","A"]
[null,"Revisiedatum:","2020-09-01"]
[null,"Versie:",{"$f":"CONCATENATE(document_id,revisie_id)","v":"KS2020ZVW.3A"}]
[]
[]
[]
[null,"NUMMER_UO","NAAM_UO","FORMAT_UO1"]
[null,"0000","KIES UW UZOVI-NUMMER",{"$f":"CONCATENATE(B13,\" \",C13)","v":"0000 KIES UW UZOVI-NUMMER"}]
[null,"0101","UNIVÉ ZORG","0101 UNIVÉ ZORG"]
[null,"0104","NATIONALE-NEDERLANDEN ZORG","0104 NATIONALE-NEDERLANDEN ZORG"]
[null,"0201","OHRA ZIEKTEKOSTENVERZEKERINGEN","0201 OHRA ZIEKTEKOSTENVERZEKERINGEN"]
[null,"0403","ASR ","0403 ASR "]
[null,"0699","IZA","0699 IZA"]
[null,"0736","UMC","0736 UMC"]
[null,"3311","ZILVEREN KRUIS","3311 ZILVEREN KRUIS"]
[null,"3313","INTERPOLIS","3313 INTERPOLIS"]
[null,"3329","AVERO",{"$f":"CONCATENATE(B22,\" \",C22)","v":"3329 AVERO"}]
[null,"3332","MENZIS","3332 MENZIS"]
[null,"3333","ANDERZORG","3333 ANDERZORG"]
[null,"3343","ONVZ",{"$f":"CONCATENATE(B25,\" \",C25)","v":"3343 ONVZ"}]
[null,"3347","ENO",{"$f":"CONCATENATE(B26,\" \",C26)","v":"3347 ENO"}]
[null,"3351","FBTO",{"$f":"CONCATENATE(B27,\" \",C27)","v":"3351 FBTO"}]
[null,"3352","IPTIQ",{"$f":"CONCATENATE(B28,\" \",C28)","v":"3352 IPTIQ"}]
[null,"3358","DE FRIESLAND",{"$f":"CONCATENATE(B29,\" \",C29)","v":"3358 DE FRIESLAND"}]
[null,"3359","EUCARE INSURANCE PCC LTD",{"$f":"CONCATENATE(B30,\" \",C30)","v":"3359 EUCARE INSURANCE PCC LTD"}]
[null,"7029","DSW","7029 DSW"]
[null,"7032","ENO","7032 ENO"]
[null,"7037","STAD HOLLAND","7037 STAD HOLLAND"]
[null,"7053","OHRA ZORGVERZEKERINGEN","7053 OHRA ZORGVERZEKERINGEN"]
[null,"7084","DE FRIESLAND",{"$f":"CONCATENATE(B35,\" \",C35)","v":"7084 DE FRIESLAND"}]
[null,"7085","ZORG EN ZEKERHEID","7085 ZORG EN ZEKERHEID"]
[null,"7095","VGZ ZORGVERZEKERAAR","7095 VGZ ZORGVERZEKERAAR"]
[null,"7119","CZ","7119 CZ"]
[null,"9015","VGZ VOOR DE ZORG","9015 VGZ VOOR DE ZORG"]